Workbook

Sheet SERIES
A2: YOUR MOVE ACADATA SCOTLAND HPI NATIONAL AND REGIONAL FORMATTED DATA FROM 2000 | K2: 21st December 2018
A3: A TRUE MEASURE OF HOUSE PRICE INFLATION | K3: OCTOBER 2018
A5: The following table provides national smoothed, seasonally and mix adjusted current and back data for our Your Move Acadata Scotland HPI. The data are based upon the prices for all residential transactions in Scotland, including cash purchases, reported by Registers of Scotland (RoS).
A6: At national level, monthly transactions ranged from only 4,427 to 7,313 in the 12 months to January 2013, averaging something less than 6,500 p.m. Of these sales, RoS reports prices for some 99% for the current month of the index but does so after a delay of over a month from the end of the month in question. Since our Your Move Acadata Scotland HPI average prices are averaged over the month and the prior two months, the volume of data used is such that we describe our first updated results as the final Your Move Acadata Scotland HPI index since the averages will be very close, in normal circumstances, to those of the ultimate Your Move Acadata Scotland HPI, calculated when every transaction has been reported.
A7: Note that Your Move Acadata Scotland HPI results are reported, every month, for the month preceding the month reported for LSL Acadata E&W HPI. That said, LSL Acadata E&W HPI reports the average price for the month only at national level. Regional (including Wales), county and London borough prices are reported for the preceding month and are averaged over three months, centre month smoothed. By end month smoothing the Your Move Acadata Scotland HPI average prices, the averages for Scotland are synchronised and comparable with those of e.g. Greater London or Wales.
A8: Our Acadata House Prices series is calibrated to provide portfolio revaluations with standard errors.
A9: Please use this link to our “Index Monitor” report.
A10: Your Move Acadata Scotland HPI is prepared from Registers of Scotland data that we believe to be correct using a methodology designed to provide the best possible guide to house price movements in Scotland, and applied with care. We do not guarantee the accuracy of the results and Acadata shall not be liable for any loss or damage, whatsoever, consequential upon any error, misdescription or other inadequacy in the data. Persons using the data do so entirely at their own risk. No part of the house price index may be reproduced in any form or for any purpose without the prior permission of Acadata. Please email information@Acadata.co.uk.
L12: © Acadata Limited
M13: Your Move Acadata Scotland HPI clb/cms
M14: www.acadata.co.uk
A15: SCOTLAND
B17: 2000-01-01 | C17: 2000-02-01 | D17: 2000-03-01 | E17: 2000-04-01 | F17: 2000-05-01 | G17: 2000-06-01 | H17: 2000-07-01 | I17: 2000-08-01 | J17: 2000-09-01 | K17: 2000-10-01 | L17: 2000-11-01 | M17: 2000-12-01
A18: HP | B18: 76353.59484 | C18: 76365.32758 | D18: 76377.06033 | E18: 76251.79602 | F18: 76126.53172 | G18: 76001.26742 | H18: 76162.42012 | I18: 76323.57281 | J18: 76484.72551 | K18: 76455.73873 | L18: 76426.75195 | M18: 76397.76517
A19: Index | B19: 100 | C19: =+B19*C18/B18 -> 100.0153663 | D19: 100.0307327 | E19: 99.8666745 | F19: 99.70261634 | G19: 99.53855819 | H19: 99.74961923 | I19: 99.96068028 | J19: 100.1717413 | K19: 100.1337775 | L19: 100.0958136 | M19: 100.0578497
A20: Monthly% | C20: =(+C18-B18)/B18*100 -> 0.01536632876 | D20: =(+D18-C18)/C18*100 -> 0.01536396788 | E20: -0.1640077531 | F20: -0.1642771804 | G20: -0.1645474944 | H20: 0.2120394838 | I20: 0.2115908277 | J20: 0.2111440663 | K20: -0.03789878318 | L20: -0.0379131518 | M20: -0.03792753132
A21: Annual%
B23: 2001-01-01 | C23: 2001-02-01 | D23: 2001-03-01 | E23: 2001-04-01 | F23: 2001-05-01 | G23: 2001-06-01 | H23: 2001-07-01 | I23: 2001-08-01 | J23: 2001-09-01 | K23: 2001-10-01 | L23: 2001-11-01 | M23: 2001-12-01
A24: HP | B24: 77476.48749 | C24: 78555.20982 | D24: 79633.93214 | E24: 78772.63951 | F24: 77911.34688 | G24: 77050.05425 | H24: 76606.62007 | I24: 76104.60552 | J24: 75568.69795 | K24: 76205.91404 | L24: 77330.9139 | M24: 78104.69111
A25: Index | B25: =+M19/M18*B24 -> 101.4706481 | C25: =+B25*C24/B24 -> 102.8834464 | D25: 104.2962447 | E25: 103.1682132 | F25: 102.0401817 | G25: 100.9121501 | H25: 100.3313861 | I25: 99.67389968 | J25: 98.97202367 | K25: 99.80658304 | L25: 101.2799909 | M25: 102.2934038
A26: Monthly% | B26: =(B24-M18)/M18*100 -> 1.411981517 | C26: =(+C24-B24)/B24*100 -> 1.392322185 | D26: =(+D24-C24)/C24*100 -> 1.373202778 | E26: -1.081564864 | F26: -1.093390593 | G26: -1.105477783 | H26: -0.5755144217 | I26: -0.6553148496 | J26: -0.7041723156 | K26: 0.8432275545 | L26: 1.476263196 | M26: 1.000605284
A27: Annual% | B27: =(B24-B18)/B18*100 -> 1.470648052 | C27: =(C24-C18)/C18*100 -> 2.867639417 | D27: 4.26420158 | E27: 3.305946372 | F27: 2.344537593 | G27: 1.379959651 | H27: 0.5832272071 | I27: -0.2868934047 | J27: -1.197660773 | K27: -0.326757278 | L27: 1.183043802 | M27: 2.234261616
B29: 2002-01-01 | C29: 2002-02-01 | D29: 2002-03-01 | E29: 2002-04-01 | F29: 2002-05-01 | G29: 2002-06-01 | H29: 2002-07-01 | I29: 2002-08-01 | J29: 2002-09-01 | K29: 2002-10-01 | L29: 2002-11-01 | M29: 2002-12-01
A30: HP | B30: 79834.40698 | C30: 80903.44317 | D30: 82907.24261 | E30: 83356.02639 | F30: 83966.22393 | G30: 83657.27544 | H30: 84068.28832 | I30: 84774.41661 | J30: 85976.86757 | K30: 86678.43352 | L30: 87569.67352 | M30: 87456.82417
A31: Index | B31: =+M25/M24*B30 -> 104.5588058 | C31: =+B31*C30/B30 -> 105.9589183 | D31: 108.5832865 | E31: 109.1710568 | F31: 109.9702301 | G31: 109.5656015 | H31: 110.1039034 | I31: 111.0287168 | J31: 112.6035621 | K31: 113.5224002 | L31: 114.6896537 | M31: 114.5418554
A32: Monthly% | B32: =(B30-M24)/M24*100 -> 2.214612013 | C32: =(+C30-B30)/B30*100 -> 1.339066989 | D32: =(+D30-C30)/C30*100 -> 2.476778927 | E32: 0.5413082984 | F32: 0.7320377065 | G32: -0.3679437759 | H32: 0.4913056003 | I32: 0.8399460775 | J32: 1.418412546 | K32: 0.8159938501 | L32: 1.028214244 | M32: -0.1288680733
A33: Annual% | B33: =(B30-B24)/B24*100 -> 3.043400091 | C33: =(C30-C24)/C24*100 -> 2.989277685 | D33: 4.110446864 | E33: 5.81850108 | F33: 7.771495805 | G33: 8.575232366 | H33: 9.740239467 | I33: 11.3919664 | J33: 13.77312286 | K33: 13.74239731 | L33: 13.2401896 | M33: 11.97384296
B35: 2003-01-01 | C35: 2003-02-01 | D35: 2003-03-01 | E35: 2003-04-01 | F35: 2003-05-01 | G35: 2003-06-01 | H35: 2003-07-01 | I35: 2003-08-01 | J35: 2003-09-01 | K35: 2003-10-01 | L35: 2003-11-01 | M35: 2003-12-01
A36: HP | B36: 87436.77497 | C36: 87129.65792 | D36: 87321.0001 | E36: 88318.53342 | F36: 89419.69342 | G36: 92801.47871 | H36: 95036.61212 | I36: 95533.91791 | J36: 96043.20113 | K36: 96961.50112 | L36: 97789.6535 | M36: 99255.61591
A37: Index | B37: =+M31/M30*B36 -> 114.515597 | C37: =+B37*C36/B36 -> 114.113367 | D37: 114.3639671 | E37: 115.6704326 | F37: 117.1126174 | G37: 121.5417282 | H37: 124.4690736 | I37: 125.120393 | J37: 125.7873992 | K37: 126.990093 | L37: 128.0747209 | M37: 129.9946861
A38: Monthly% | B38: =(B36-M30)/M30*100 -> -0.02292468651 | C38: =(+C36-B36)/B36*100 -> -0.3512447055 | D38: =(+D36-C36)/C36*100 -> 0.2196062488 | E38: 1.142375058 | F38: 1.246805121 | G38: 3.781924502 | H38: 2.408510553 | I38: 0.5232781118 | J38: 0.5330915217 | K38: 0.9561322209 | L38: 0.8541043287 | M38: 1.49909766
A39: Annual% | B39: =(B36-B30)/B30*100 -> 9.522671077 | C39: =(C36-C30)/C30*100 -> 7.695858799 | D39: 5.323729692 | E39: 5.953387233 | F39: 6.494837127 | G39: 10.93055353 | H39: 13.04692176 | I39: 12.6919202 | J39: 11.70818831 | K39: 11.86346728 | L39: 11.67068412 | M39: 13.49099038
B41: 2004-01-01 | C41: 2004-02-01 | D41: 2004-03-01 | E41: 2004-04-01 | F41: 2004-05-01 | G41: 2004-06-01 | H41: 2004-07-01 | I41: 2004-08-01 | J41: 2004-09-01 | K41: 2004-10-01 | L41: 2004-11-01 | M41: 2004-12-01
A42: HP | B42: 102794.3688 | C42: 105290.5104 | D42: 106735.1338 | E42: 106243.4101 | F42: 107011.8876 | G42: 107952.5602 | H42: 109762.839 | I42: 112151.3944 | J42: 113034.7802 | K42: 113679.9277 | L42: 115093.8215 | M42: 118568.6265
A43: Index | B43: =+M37/M36*B42 -> 134.6293767 | C43: =+B43*C42/B42 -> 137.8985634 | D43: =+C43*D42/C42 -> 139.790581 | E43: 139.1465723 | F43: 140.1530443 | G43: 141.3850395 | H43: 143.7559544 | I43: 146.8842359 | J43: 148.0412028 | K43: 148.88615 | L43: 150.737921 | M43: =+L43*M42/L42 -> 155.2888594
A44: Monthly% | B44: =(B42-M36)/M36*100 -> 3.565292368 | C44: =(+C42-B42)/B42*100 -> 2.428286337 | D44: =(+D42-C42)/C42*100 -> 1.372035716 | E44: -0.4606953014 | F44: 0.7233178421 | G44: 0.8790355762 | H44: 1.676920684 | I44: 2.176105694 | J44: 0.787672606 | K44: 0.5707513466 | L44: 1.243749697 | M44: 3.019106479
A45: Annual% | B45: =(B42-B36)/B36*100 -> 17.56422723 | C45: =(C42-C36)/C36*100 -> 20.84347962 | D45: 22.23306388 | E45: 20.29571367 | F45: 19.67373576 | G45: 16.32633626 | H45: 15.49531969 | I45: 17.39432113 | J45: 17.6916001 | K45: 17.24233475 | L45: 17.69529532 | M45: 19.45785175
B47: 2005-01-01 | C47: 2005-02-01 | D47: 2005-03-01 | E47: 2005-04-01 | F47: 2005-05-01 | G47: 2005-06-01 | H47: 2005-07-01 | I47: 2005-08-01 | J47: 2005-09-01 | K47: 2005-10-01 | L47: 2005-11-01 | M47: 2005-12-01
A48: HP | B48: 120328.2195 | C48: 120984.496 | D48: 119923.5809 | E48: 122282.9249 | F48: 123369.6521 | G48: 124457.9443 | H48: 122974.6269 | I48: 124300.2591 | J48: 125825.2687 | K48: 128535.3667 | L48: 129095.2278 | M48: 129449.1718
A49: Index | B49: =+M43/M42*B48 -> 157.5933914 | C49: =+B49*C48/B48 -> 158.4529141 | D49: 157.0634377 | E49: 160.1534612 | F49: 161.5767435 | G49: 163.0020755 | H49: 161.0593806 | I49: 162.7955558 | J49: 164.7928549 | K49: 168.3422595 | L49: 169.0755073 | M49: 169.5390663
A50: Monthly% | B50: =(B48-M42)/M42*100 -> 1.484029196 | C50: =(+C48-B48)/B48*100 -> 0.5454053201 | D50: =(+D48-C48)/C48*100 -> -0.8769017762 | E50: 1.967372873 | F50: 0.8886991039 | G50: 0.8821393352 | H50: -1.191822187 | I50: 1.077972084 | J50: 1.226875666 | K50: 2.153858313 | L50: 0.4355696472 | M50: 0.2741727863
A51: Annual% | B51: =(B48-B42)/B42*100 -> 17.05720939 | C51: =(C48-C42)/C42*100 -> 14.90541319 | D51: 12.35623787 | E51: 15.09695026 | F51: 15.28593211 | G51: 15.28947912 | H51: 12.03666748 | I51: 10.83255788 | J51: 11.3155336 | K51: 13.06777661 | L51: 12.16521106 | M51: 9.176580331
B53: 2006-01-01 | C53: 2006-02-01 | D53: 2006-03-01 | E53: 2006-04-01 | F53: 2006-05-01 | G53: 2006-06-01 | H53: 2006-07-01 | I53: 2006-08-01 | J53: 2006-09-01 | K53: 2006-10-01 | L53: 2006-11-01 | M53: 2006-12-01
A54: HP | B54: 129537.3488 | C54: 130837.4649 | D54: 133081.4648 | E54: 134805.4558 | F54: 136660.0177 | G54: 137909.0459 | H54: 138794.3821 | I54: 139639.9797 | J54: 141506.7289 | K54: 144047.727 | L54: 145604.9087 | M54: 147695.7705
A55: Index | B55: =+M49/M48*B54 -> 169.6545514 | C55: =+B55*C54/B54 -> 171.3573083 | D55: 174.2962661 | E55: 176.5541703 | F55: 178.9830826 | G55: 180.6189299 | H55: 181.7784512 | I55: 182.885927 | J55: 185.3308011 | K55: 188.6587361 | L55: 190.6981708 | M55: 193.4365642
A56: Monthly% | B56: =(B54-M48)/M48*100 -> 0.06811710318 | C56: =(+C54-B54)/B54*100 -> 1.003661228 | D56: =(+D54-C54)/C54*100 -> 1.715105001 | E56: 1.295440345 | F56: 1.375732075 | G56: 0.9139675246 | H56: 0.641971099 | I56: 0.6092448415 | J56: 1.336830052 | K56: 1.795672918 | L56: 1.08101792 | M56: 1.435983062
A57: Annual% | B57: =(B54-B48)/B48*100 -> 7.65334124 | C57: =(C54-C48)/C48*100 -> 8.143992996 | D57: 10.97189051 | E57: 10.24062107 | F57: 10.77279978 | G57: 10.80774846 | H57: 12.86424327 | I57: 12.34085975 | J57: 12.46288633 | K57: 12.06855406 | L57: 12.7887616 | M57: 14.09557011
B59: 2007-01-01 | C59: 2007-02-01 | D59: 2007-03-01 | E59: 2007-04-01 | F59: 2007-05-01 | G59: 2007-06-01 | H59: 2007-07-01 | I59: 2007-08-01 | J59: 2007-09-01 | K59: 2007-10-01 | L59: 2007-11-01 | M59: 2007-12-01
A60: HP | B60: 150281.5895 | C60: 152393.0755 | D60: 151623.5641 | E60: 152523.2587 | F60: 154099.198 | G60: 158000.2447 | H60: 159739.3802 | I60: 161105.9838 | J60: 161757.2291 | K60: 162485.0432 | L60: 163144.5254 | M60: 163273.6763
A61: Index | B61: =+M55/M54*B60 -> 196.8232011 | C61: =+B61*C60/B60 -> 199.5886059 | D61: 198.5807799 | E61: 199.7591063 | F61: 201.8231078 | G61: 206.9322931 | H61: 209.210032 | I61: 210.9998673 | J61: 211.8528006 | K61: 212.806016 | L61: 213.6697371 | M61: 213.8388856
A62: Monthly% | B62: =(B60-M54)/M54*100 -> 1.750773885 | C62: =(+C60-B60)/B60*100 -> 1.405019757 | D62: =(+D60-C60)/C60*100 -> -0.5049516768 | E62: 0.5933738352 | F62: 1.033245263 | G62: 2.531516507 | H62: 1.100716966 | I62: 0.8555207929 | J62: 0.4042340649 | K62: 0.4499422992 | L62: 0.4058725085 | M62: 0.07916353511
A63: Annual% | B63: =(B60-B54)/B54*100 -> 16.01410011 | C63: =(C60-C54)/C54*100 -> 16.47510566 | D63: 13.9328939 | E63: 13.14323872 | F63: 12.76099668 | G63: 14.56844157 | H63: 15.09066702 | I63: 15.37239127 | J63: 14.31062696 | K63: 12.79944966 | L63: 12.04603391 | M63: 10.5472931
B65: 2008-01-01 | C65: 2008-02-01 | D65: 2008-03-01 | E65: 2008-04-01 | F65: 2008-05-01 | G65: 2008-06-01 | H65: 2008-07-01 | I65: 2008-08-01 | J65: 2008-09-01 | K65: 2008-10-01 | L65: 2008-11-01 | M65: 2008-12-01
A66: HP | B66: 162766.3035 | C66: 162599.0163 | D66: 163226.9607 | E66: 163660.6831 | F66: 163596.9019 | G66: 163574.5757 | H66: 162941.5597 | I66: 161729.2375 | J66: 159850.6008 | K66: 157854.0797 | L66: 157197.2337 | M66: 156414.4071
A67: Index | B67: =+M61/M60*B66 -> 213.1743815 | C67: =+B67*C66/B66 -> 212.955286 | D67: 213.7777024 | E67: 214.3457469 | F67: 214.2622129 | G67: 214.2329723 | H67: 213.4039138 | I67: 211.8161402 | J67: 209.3556972 | K67: 206.7408615 | L67: 205.8805929 | M67: 204.855328
A68: Monthly% | B68: =(B66-M60)/M60*100 -> -0.310749911 | C68: =(+C66-B66)/B66*100 -> -0.1027775816 | D68: =(+D66-C66)/C66*100 -> 0.3861920275 | E68: 0.2657174022 | F68: -0.03897163279 | G68: -0.01364711094 | H68: -0.3869891934 | I68: -0.7440227412 | J68: -1.161593737 | K68: -1.248991899 | L68: -0.4161096108 | M68: -0.4979900704
A69: Annual% | B69: =(B66-B60)/B60*100 -> 8.307547237 | C69: =(C66-C60)/C60*100 -> 6.697115802 | D69: 7.652766004 | E69: 7.30211546 | F69: 6.163370081 | G69: 3.528052119 | H69: 2.004627504 | I69: 0.3868594226 | J69: -1.178697418 | K69: -2.850086038 | L69: -3.645412946 | M69: -4.201087028
B71: 2009-01-01 | C71: 2009-02-01 | D71: 2009-03-01 | E71: 2009-04-01 | F71: 2009-05-01 | G71: 2009-06-01 | H71: 2009-07-01 | I71: 2009-08-01 | J71: 2009-09-01 | K71: 2009-10-01 | L71: 2009-11-01 | M71: 2009-12-01
A72: HP | B72: 153799.6623 | C72: 150926.732 | D72: 146795.0469 | E72: 148864.3103 | F72: 149504.0764 | G72: 151057.2046 | H72: 149437.3088 | I72: 149093.5981 | J72: 149564.1865 | K72: 150756.779 | L72: 152367.7202 | M72: 153494.4965
A73: Index | B73: =+M67/M66*B72 -> 201.4308071 | C73: =+B73*C72/B72 -> 197.6681416 | D73: 192.2568901 | E73: 194.9669961 | F73: 195.8048952 | G73: 197.8390211 | H73: 195.71745 | I73: 195.2672935 | J73: 195.8836212 | K73: 197.4455549 | L73: 199.5553982 | M73: 201.0311326
A74: Monthly% | B74: =(B72-M66)/M66*100 -> -1.671677706 | C74: =(+C72-B72)/B72*100 -> -1.867969234 | D74: =(+D72-C72)/C72*100 -> -2.737543589 | E74: 1.409627517 | F74: 0.4297645978 | G74: 1.038853437 | H74: -1.072372441 | I74: -0.230003233 | J74: 0.3156328587 | K74: 0.7973784032 | L74: 1.068569637 | M74: 0.7395111326
A75: Annual% | B75: =(B72-B66)/B66*100 -> -5.508905106 | C75: =(C72-C66)/C66*100 -> -7.178570066 | D75: -10.06691159 | E75: -9.040884226 | F75: -8.614359672 | G75: -7.652394026 | H75: -8.287787953 | I75: -7.812835537 | J75: -6.435017579 | K75: -4.496114827 | L75: -3.072263682 | M75: -1.866778582
B77: 2010-01-01 | C77: 2010-02-01 | D77: 2010-03-01 | E77: 2010-04-01 | F77: 2010-05-01 | G77: 2010-06-01 | H77: 2010-07-01 | I77: 2010-08-01 | J77: 2010-09-01 | K77: 2010-10-01 | L77: 2010-11-01 | M77: 2010-12-01
A78: HP | B78: 154264.3099 | C78: 155047.7352 | D78: 155372.8453 | E78: 156155.6673 | F78: 156107.0169 | G78: 156318.9484 | H78: 156630.8326 | I78: 157714.7397 | J78: 158489.2857 | K78: 158618.0518 | L78: 157714.6747 | M78: 158307.8245
A79: Index | B79: =+M73/M72*B78 -> 202.0393542 | C79: =+B79*C78/B78 -> 203.0654032 | D79: 203.4911986 | E79: 204.5164575 | F79: 204.4527402 | G79: 204.730306 | H79: 205.1387795 | I79: 206.5583684 | J79: 207.5727882 | K79: 207.7414327 | L79: 206.5582832 | M79: 207.3351292
A80: Monthly% | B80: =(B78-M72)/M72*100 -> 0.5015251441 | C80: =(+C78-B78)/B78*100 -> 0.5078461082 | D80: =(+D78-C78)/C78*100 -> 0.2096838361 | E80: 0.5038345395 | F80: -0.03115508882 | G80: 0.1357603774 | H80: 0.1995178452 | I80: 0.6920138856 | J80: 0.4911056539 | K80: 0.08124596815 | L80: -0.5695298658 | M80: 0.3760904456
A81: Annual% | B81: =(B78-B72)/B72*100 -> 0.302112247 | C81: =(C78-C72)/C72*100 -> 2.730466121 | D81: 5.843384078 | E81: 4.897988692 | F81: 4.416562212 | G81: 3.483278931 | H81: 4.813740203 | I81: 5.782368707 | J81: 5.967403954 | K81: 5.214540177 | L81: 3.509243599 | M81: 3.135831022
B83: 2011-01-01 | C83: 2011-02-01 | D83: 2011-03-01 | E83: 2011-04-01 | F83: 2011-05-01 | G83: 2011-06-01 | H83: 2011-07-01 | I83: 2011-08-01 | J83: 2011-09-01 | K83: 2011-10-01 | L83: 2011-11-01 | M83: 2011-12-01
A84: HP | B84: 157982.6848 | C84: 156846.6049 | D84: 155576.2512 | E84: 154727.9002 | F84: 155224.671 | G84: 154325.0782 | H84: 154893.0133 | I84: 156049.771 | J84: 157482.4961 | K84: 157767.5559 | L84: 157664.6474 | M84: 156849.9466
A85: Index | B85: =+M79/M78*B84 -> 206.909295 | C85: =+B85*C84/B84 -> 205.4213757 | D85: 203.7575985 | E85: 202.6465166 | F85: 203.2971353 | G85: 202.1189422 | H85: 202.8627645 | I85: 204.3777655 | J85: 206.2541998 | K85: 206.6275415 | L85: 206.4927627 | M85: 205.4257523
A86: Monthly% | B86: =B84/M78*100-100 -> -0.2053844987 | C86: =(+C84-B84)/B84*100 -> -0.7191166935 | D86: -0.8099338297 | E86: -0.5452959297 | F86: 0.3210609169 | G86: -0.5795424345 | H86: 0.3680121922 | I86: 0.7468107474 | J86: 0.9181205937 | K86: 0.1810104648 | L86: -0.06522790165 | M86: -0.5167301785
A87: Annual% | B87: =B84/B78*100-100 -> 2.410392146 | C87: =(C84-C78)/C78*100 -> 1.160203762 | D87: =(D84-D78)/D78*100 -> 0.1309147065 | E87: =(E84-E78)/E78*100 -> -0.9143229604 | F87: =(F84-F78)/F78*100 -> -0.5652185827 | G87: =(G84-G78)/G78*100 -> -1.27551407 | H87: =(H84-H78)/H78*100 -> -1.10950012 | I87: -1.055683647 | J87: -0.6352414492 | K87: -0.5361911724 | L87: -0.03172011751 | M87: -0.920913367
B89: 2012-01-01 | C89: 2012-02-01 | D89: 2012-03-01 | E89: 2012-04-01 | F89: 2012-05-01 | G89: 2012-06-01 | H89: 2012-07-01 | I89: 2012-08-01 | J89: 2012-09-01 | K89: 2012-10-01 | L89: 2012-11-01 | M89: 2012-12-01
A90: HP | B90: 154933.5903 | C90: 154190.899 | D90: 154402.8418 | E90: 155718.4891 | F90: 155855.9361 | G90: 156411.4182 | H90: 155810.8509 | I90: 154795.8953 | J90: 154656.2693 | K90: 153768.6494 | L90: 153214.7772 | M90: 151743.7919
A91: Index | B91: =+M85/M84*B90 -> 202.915908 | C91: =+B91*C90/B90 -> 201.9432083 | D91: 202.2207889 | E91: 203.9438868 | F91: 204.1239007 | G91: 204.8514134 | H91: 204.0648528 | I91: 202.7355695 | J91: 202.5527019 | K91: 201.3901896 | L91: 200.6647854 | M91: 198.7382418
A92: Monthly% | B92: =B90/M84*100-100 -> -1.221776824 | C92: =(+C90-B90)/B90*100 -> -0.4793610274 | D92: 0.1374548003 | E92: 0.8520874494 | F92: 0.08826636884 | G92: 0.3564074083 | H92: -0.3839664314 | I92: -0.6514023721 | J92: -0.09020004129 | K92: -0.5739307675 | L92: -0.3601984045 | M92: -0.9600805624
A93: Annual% | B93: =B90/B84*100-100 -> -1.930018144 | C93: =(C90-C84)/C84*100 -> -1.693186711 | D93: =(D90-D84)/D84*100 -> -0.7542342461 | E93: =(E90-E84)/E84*100 -> 0.6402134557 | F93: =(F90-F84)/F84*100 -> 0.4066783156 | G93: =(G90-G84)/G84*100 -> 1.351912497 | H93: =(H90-H84)/H84*100 -> 0.5925622814 | I93: -0.8035101031 | J93: -1.794629112 | K93: -2.534682375 | L93: -2.822363962 | M93: -3.255439215
B95: 2013-01-01 | C95: 2013-02-01 | D95: 2013-03-01 | E95: 2013-04-01 | F95: 2013-05-01 | G95: 2013-06-01 | H95: 2013-07-01 | I95: 2013-08-01 | J95: 2013-09-01 | K95: 2013-10-01 | L95: 2013-11-01 | M95: 2013-12-01
A96: HP | B96: 151552.8719 | C96: 152293.1593 | D96: 152525.0153 | E96: 153011.7331 | F96: 153179.3681 | G96: 153311.4429 | H96: 154180.6524 | I96: 154227.5132 | J96: 154663.3345 | K96: 154718.4939 | L96: 155934.1541 | M96: 156825.8014
A97: Index | B97: =+M91/M90*B96 -> 198.4881946 | C97: =+B97*C96/B96 -> 199.4577461 | D97: 199.7614069 | E97: 200.3988593 | F97: 200.6184102 | G97: 200.7913881 | H97: 201.9297882 | I97: 201.9911617 | J97: 202.5619551 | K97: 202.6341971 | L97: 204.2263425 | M97: 205.3941294
A98: Monthly% | B98: =B96/M90*100-100 -> -0.125817337 | C98: =(+C96-B96)/B96*100 -> 0.4884680782 | D98: 0.1522432072 | E98: 0.3191068746 | F98: 0.1095569283 | G98: 0.08622234234 | H98: 0.5669566705 | I98: 0.03039347193 | J98: 0.2825833462 | K98: 0.03566415864 | L98: 0.7857239364 | M98: 0.5718101288
A99: Annual% | B99: =B96/B90*100-100 -> -2.182043523 | C99: =(C96-C90)/C90*100 -> -1.230772849 | D99: -1.216186503 | E99: -1.738236716 | F99: -1.717334686 | G99: -1.981936709 | H99: -1.046267646 | I99: =(I96-I90)/I90*100 -> -0.367181629 | J99: =(J96-J90)/J90*100 -> 0.004568284986 | K99: =(K96-K90)/K90*100 -> 0.6177100685 | L99: =(L96-L90)/L90*100 -> 1.774878991 | M99: =(M96-M90)/M90*100 -> 3.349072413
B101: 2014-01-01 | C101: 2014-02-01 | D101: 2014-03-01 | E101: 2014-04-01 | F101: 2014-05-01 | G101: 2014-06-01 | H101: 2014-07-01 | I101: 2014-08-01 | J101: 2014-09-01 | K101: 2014-10-01 | L101: 2014-11-01 | M101: 2014-12-01
A102: HP | B102: 158592.6047 | C102: 157170.3798 | D102: 158037.2496 | E102: 158252.1308 | F102: 161224.4688 | G102: 162413.9296 | H102: 162928.1681 | I102: 163300.7034 | J102: 163257.8471 | K102: 163717.4321 | L102: 162576.1433 | M102: 163218.0047
A103: Index | B103: =+M97/M96*B102 -> 207.7081047 | C103: =+B103*C102/B102 -> 205.8454223 | D103: 206.9807583 | E103: 207.2621874 | F103: 211.1550467 | G103: 212.7128787 | H103: 213.3863749 | I103: 213.8742829 | J103: 213.8181542 | K103: 214.4200709 | L103: 212.9253294 | M103: 213.7659727
A104: Monthly% | B104: =B102/M96*100-100 -> 1.126602435 | C104: =(+C102-B102)/B102*100 -> -0.8967788391 | D104: 0.5515478543 | E104: 0.1359687012 | F104: 1.878229371 | G104: 0.7377669018 | H104: 0.3166221934 | I104: 0.2286500064 | J104: -0.02624378142 | K104: 0.2815086954 | L104: -0.697108939 | M104: 0.3948066218
A105: Annual% | B105: =B102/B96*100-100 -> 4.645067217 | C105: =(C102-C96)/C96*100 -> 3.202521027 | D105: 3.61398706 | E105: 3.424833897 | F105: 5.25207856 | G105: 5.937251979 | H105: 5.673549592 | I105: =(I102-I96)/I96*100 -> 5.882990652 | J105: =(J102-J96)/J96*100 -> 5.556916684 | K105: =(K102-K96)/K96*100 -> 5.81633008 | L105: =(L102-L96)/L96*100 -> 4.259483268 | M105: =(M102-M96)/M96*100 -> 4.075989562
B107: 2015-01-01 | C107: 2015-02-01 | D107: 2015-03-01 | E107: 2015-04-01 | F107: 2015-05-01 | G107: 2015-06-01 | H107: 2015-07-01 | I107: 2015-08-01 | J107: 2015-09-01 | K107: 2015-10-01 | L107: 2015-11-01 | M107: 2015-12-01
A108: HP | B108: 164242.2382 | C108: 168493.0083 | D108: 184247.2226 | E108: 181443.8303 | F108: 178013.3391 | G108: 161596.387 | H108: 162858.8347 | I108: 163463.2779 | J108: 164297.4241 | K108: 165187.3402 | L108: 166147.5834 | M108: 166574.152
A109: Index | B109: =+M103/M102*B108 -> 215.1074072 | C109: =+B109*C108/B108 -> 220.674624 | D109: 241.3078559 | E109: 237.6362641 | F109: 233.1433634 | G109: 211.6421464 | H109: 213.2955691 | I109: 214.087206 | J109: 215.179684 | K109: 216.3452037 | L109: 217.6028302 | M109: 218.1615055
A110: Monthly% | B110: =B108/M102*100-100 -> 0.6275248128 | C110: =(+C108-B108)/B108*100 -> 2.588110213 | D110: 9.350070059 | E110: -1.521538443 | F110: -1.890662909 | G110: -9.222315687 | H110: 0.7812350804 | I110: 0.3711454807 | J110: 0.510295794 | K110: 0.5416494867 | L110: 0.5813055053 | M110: 0.2567407892
A111: Annual% | B111: =B108/B102*100-100 -> 3.562356194 | C111: =(C108-C102)/C102*100 -> 7.204047322 | D111: 16.58468055 | E111: 14.65490503 | F111: 10.41335128 | G111: -0.5033697459 | H111: -0.04255462262 | I111: =(I108-I102)/I102*100 -> 0.09955527902 | J111: =(J108-J102)/J102*100 -> 0.6367699934 | K111: =(K108-K102)/K102*100 -> 0.8978323699 | L111: =(L108-L102)/L102*100 -> 2.196779912 | M111: =(M108-M102)/M102*100 -> 2.056235954
B113: 2016-01-01 | C113: 2016-02-01 | D113: 2016-03-01 | E113: 2016-04-01 | F113: 2016-05-01 | G113: 2016-06-01 | H113: 2016-07-01 | I113: 2016-08-01 | J113: 2016-09-01 | K113: 2016-10-01 | L113: 2016-11-01 | M113: 2016-12-01
A114: HP | B114: 166418.9738 | C114: 164765.2698 | D114: 166543.0764 | E114: 167274.3142 | F114: 168783.9473 | G114: 167415.9594 | H114: 167425.0912 | I114: 167831.7572 | J114: 168143.3231 | K114: 169561.1617 | L114: 169741.617 | M114: 169554.4526
A115: Index | B115: =+M109/M108*B114 -> 217.9582692 | C115: =+B115*C114/B114 -> 215.7924197 | D115: 218.120806 | E115: 219.0785052 | F115: 221.0556656 | G115: 219.2640173 | H115: 219.2759772 | I115: 219.808586 | J115: 220.2166426 | K115: 222.0735802 | L115: 222.3099218 | M115: 222.0647933
A116: Monthly% | B116: =B114/M108*100-100 -> -0.0931586228 | C116: =(+C114-B114)/B114*100 -> -0.9936991591 | D116: 1.07899353 | E116: 0.4390682472 | F116: 0.9024894581 | G116: -0.8104964389 | H116: 0.005454589647 | I116: 0.2428942777 | J116: 0.1856417801 | K116: 0.8432321709 | L116: 0.1064249245 | M116: -0.110264305
A117: Annual% | B117: =B114/B108*100-100 -> 1.325320244 | C117: =(C114-C108)/C108*100 -> -2.212399487 | D117: -9.608908031 | E117: -7.8093127 | F117: -5.184663058 | G117: 3.601301051 | H117: 2.803812628 | I117: =(I114-I108)/I108*100 -> 2.672453037 | J117: =(J114-J108)/J108*100 -> 2.340815131 | K117: =(K114-K108)/K108*100 -> 2.647794556 | L117: =(L114-L108)/L108*100 -> 2.163157336 | M117: =(M114-M108)/M108*100 -> 1.789173513
B119: 2017-01-01 | C119: 2017-02-01 | D119: 2017-03-01 | E119: 2017-04-01 | F119: 2017-05-01 | G119: 2017-06-01 | H119: 2017-07-01 | I119: 2017-08-01 | J119: 2017-09-01 | K119: 2017-10-01 | L119: 2017-11-01 | M119: 2017-12-01
A120: HP | B120: 169274.726 | C120: 169544.3805 | D120: 170112.9761 | E120: 172146.2898 | F120: 173594.9024 | G120: 174403.8871 | H120: 174205.5591 | I120: 174464.9435 | J120: 175061.6033 | K120: 175014.4888 | L120: 175552.5223 | M120: 176969.248
A121: Index | B121: =+M115/M114*B120 -> 221.6984365 | C121: =+B121*C120/B120 -> 222.0516019 | D121: 222.7962894 | E121: 225.4593122 | F121: 227.3565544 | G121: 228.4160785 | H121: 228.1563291 | I121: 228.4960438 | J121: 229.2774868 | K121: 229.2157812 | L121: 229.9204415 | M121: 231.7759215
A122: Monthly% | B122: =B120/M114*100-100 -> -0.1649774263 | C122: =(+C120-B120)/B120*100 -> 0.1592998927 | D122: 0.3353668498 | E122: 1.195272538 | F122: 0.8415009082 | G122: 0.4660187263 | H122: -0.1137176547 | I122: 0.1488955596 | J122: 0.3419941065 | K122: -0.02691306815 | L122: 0.3074222595 | M122: 0.8070095924
A123: Annual% | B123: =B120/B114*100-100 -> 1.716001581 | C123: =(C120-C114)/C114*100 -> 2.900557032 | D123: 2.143529316 | E123: 2.91256647 | F123: 2.850362968 | G123: 4.17399141 | H123: 4.049851698 | I123: =(I120-I114)/I114*100 -> 3.952283159 | J123: =(J120-J114)/J114*100 -> 4.114513805 | K123: =(K120-K114)/K114*100 -> 3.216141682 | L123: =(L120-L114)/L114*100 -> 3.42338282 | M123: =(M120-M114)/M114*100 -> 4.37310572
B125: 2018-01-01 | C125: 2018-02-01 | D125: 2018-03-01 | E125: 2018-04-01 | F125: 2018-05-01 | G125: 2018-06-01 | H125: 2018-07-01 | I125: 2018-08-01 | J125: 2018-09-01 | K125: 2018-10-01 | L125: 2018-11-01 | M125: 2018-12-01
A126: HP | B126: 178566.2814 | C126: 181501.236 | D126: 182945.2736 | E126: 183556.1307 | F126: 182978.2989 | G126: 181579.897 | H126: 180671.9709 | I126: 180476.8092 | J126: 182714.7137 | K126: 184569.4372
A127: Index | B127: =+M121/M120*B126 -> 233.8675497 | C127: =+B127*C126/B126 -> 237.7114481 | D127: 239.6026985 | E127: 240.4027356 | F127: 239.6459515 | G127: 237.8144701 | H127: 236.6253629 | I127: 236.3697604 | J127: 239.3007351 | K127: 241.7298591
A128: Monthly% | B128: =B126/M120*100-100 -> 0.9024355033 | C128: =(+C126-B126)/B126*100 -> 1.643621957 | D128: 0.7956076171 | E128: 0.3339015313 | F128: -0.3147984473 | G128: -0.7642446502 | H128: -0.5000146603 | I128: -0.1080199098 | J128: 1.239995618 | K128: 1.015092565
A129: Annual% | B129: =B126/B120*100-100 -> 5.489038783 | C129: =(C126-C120)/C120*100 -> 7.052345515 | D129: 7.543397227 | E129: =(E126-E120)/E120*100 -> 6.627991181 | F129: 5.405341018 | G129: =(G126-G120)/G120*100 -> 4.114592839 | H129: 3.711943401 | I129: =(I126-I120)/I120*100 -> 3.44588752 | J129: 4.371667043 | K129: =(K126-K120)/K120*100 -> 5.459518466

Sheet SERIES CHARTS
B2: YOUR MOVE ACADATA SCOTLAND HPI NATIONAL AND REGIONAL FORMATTED DATA FROM 2000 | M2: =SERIES!$K$2 -> 21st December 2018
B3: A TRUE MEASURE OF HOUSE PRICE INFLATION | M3: =SERIES!$K$3 -> OCTOBER 2018
O5: © Acadata Limited
O6: Your Move Acadata Scotland HPI clb/cms
C7: SCOTLAND | O7: www.acadata.co.uk

Sheet DATA
B2: YOUR MOVE ACADATA SCOTLAND HPI NATIONAL AND REGIONAL FORMATTED DATA FROM 2000
B3: A TRUE MEASURE OF HOUSE PRICE INFLATION | J3: =SERIES!$K$2 -> 21st December 2018
H4: =SERIES!$K$3 -> OCTOBER 2018
H5: © Acadata Limited
D6: SCOTLAND | H6: Your Move Acadata Scotland HPI clb/cms
D9: Month | E9: Average House Price | F9: Index | G9: Monthly% | H9: Annual%
D10: 2000-01-01 | E10: 76353.59484 | F10: 100
D11: 2000-02-01 | E11: 76365.32758 | F11: 100.0153663 | G11: =(E11-E10)/E10*100 -> 0.01536632876
D12: 2000-03-01 | E12: 76377.06033 | F12: 100.0307327 | G12: =(E12-E11)/E11*100 -> 0.01536396788
D13: 2000-04-01 | E13: 76251.79602 | F13: 99.8666745 | G13: -0.1640077531
D14: 2000-05-01 | E14: 76126.53172 | F14: 99.70261634 | G14: -0.1642771804
D15: 2000-06-01 | E15: 76001.26742 | F15: 99.53855819 | G15: -0.1645474944
D16: 2000-07-01 | E16: 76162.42012 | F16: 99.74961923 | G16: 0.2120394838
D17: 2000-08-01 | E17: 76323.57281 | F17: 99.96068028 | G17: 0.2115908277
D18: 2000-09-01 | E18: 76484.72551 | F18: 100.1717413 | G18: 0.2111440663
D19: 2000-10-01 | E19: 76455.73873 | F19: 100.1337775 | G19: -0.03789878318
D20: 2000-11-01 | E20: 76426.75195 | F20: 100.0958136 | G20: -0.0379131518
D21: 2000-12-01 | E21: 76397.76517 | F21: 100.0578497 | G21: -0.03792753132
D22: 2001-01-01 | E22: 77476.48749 | F22: 101.4706481 | G22: 1.411981517 | H22: =(E22-E10)/E10*100 -> 1.470648052
D23: 2001-02-01 | E23: 78555.20982 | F23: 102.8834464 | G23: 1.392322185 | H23: =(E23-E11)/E11*100 -> 2.867639417
D24: 2001-03-01 | E24: 79633.93214 | F24: 104.2962447 | G24: 1.373202778 | H24: 4.26420158
D25: 2001-04-01 | E25: 78772.63951 | F25: 103.1682132 | G25: -1.081564864 | H25: 3.305946372
D26: 2001-05-01 | E26: 77911.34688 | F26: 102.0401817 | G26: -1.093390593 | H26: 2.344537593
D27: 2001-06-01 | E27: 77050.05425 | F27: 100.9121501 | G27: -1.105477783 | H27: 1.379959651
D28: 2001-07-01 | E28: 76606.62007 | F28: 100.3313861 | G28: -0.5755144217 | H28: 0.5832272071
D29: 2001-08-01 | E29: 76104.60552 | F29: 99.67389968 | G29: -0.6553148496 | H29: -0.2868934047
D30: 2001-09-01 | E30: 75568.69795 | F30: 98.97202367 | G30: -0.7041723156 | H30: -1.197660773
D31: 2001-10-01 | E31: 76205.91404 | F31: 99.80658304 | G31: 0.8432275545 | H31: -0.326757278
D32: 2001-11-01 | E32: 77330.9139 | F32: 101.2799909 | G32: 1.476263196 | H32: 1.183043802
D33: 2001-12-01 | E33: 78104.69111 | F33: 102.2934038 | G33: 1.000605284 | H33: 2.234261616
D34: 2002-01-01 | E34: 79834.40698 | F34: 104.5588058 | G34: 2.214612013 | H34: 3.043400091
D35: 2002-02-01 | E35: 80903.44317 | F35: 105.9589183 | G35: 1.339066989 | H35: 2.989277685
D36: 2002-03-01 | E36: 82907.24261 | F36: 108.5832865 | G36: 2.476778927 | H36: 4.110446864
D37: 2002-04-01 | E37: 83356.02639 | F37: 109.1710568 | G37: 0.5413082984 | H37: 5.81850108
D38: 2002-05-01 | E38: 83966.22393 | F38: 109.9702301 | G38: 0.7320377065 | H38: 7.771495805
D39: 2002-06-01 | E39: 83657.27544 | F39: 109.5656015 | G39: -0.3679437759 | H39: 8.575232366
D40: 2002-07-01 | E40: 84068.28832 | F40: 110.1039034 | G40: 0.4913056003 | H40: 9.740239467
D41: 2002-08-01 | E41: 84774.41661 | F41: 111.0287168 | G41: 0.8399460775 | H41: 11.3919664
D42: 2002-09-01 | E42: 85976.86757 | F42: 112.6035621 | G42: 1.418412546 | H42: 13.77312286
D43: 2002-10-01 | E43: 86678.43352 | F43: 113.5224002 | G43: 0.8159938501 | H43: 13.74239731
D44: 2002-11-01 | E44: 87569.67352 | F44: 114.6896537 | G44: 1.028214244 | H44: 13.2401896
D45: 2002-12-01 | E45: 87456.82417 | F45: 114.5418554 | G45: -0.1288680733 | H45: 11.97384296
D46: 2003-01-01 | E46: 87436.77497 | F46: 114.515597 | G46: -0.02292468651 | H46: 9.522671077
D47: 2003-02-01 | E47: 87129.65792 | F47: 114.113367 | G47: -0.3512447055 | H47: 7.695858799
D48: 2003-03-01 | E48: 87321.0001 | F48: 114.3639671 | G48: 0.2196062488 | H48: 5.323729692
D49: 2003-04-01 | E49: 88318.53342 | F49: =+F48*E49/E48 -> 115.6704326 | G49: 1.142375058 | H49: 5.953387233
D50: 2003-05-01 | E50: 89419.69342 | F50: =+F49*E50/E49 -> 117.1126174 | G50: 1.246805121 | H50: 6.494837127
D51: 2003-06-01 | E51: 92801.47871 | F51: 121.5417282 | G51: 3.781924502 | H51: 10.93055353
D52: 2003-07-01 | E52: 95036.61212 | F52: 124.4690736 | G52: 2.408510553 | H52: 13.04692176
D53: 2003-08-01 | E53: 95533.91791 | F53: 125.120393 | G53: 0.5232781118 | H53: 12.6919202
D54: 2003-09-01 | E54: 96043.20113 | F54: 125.7873992 | G54: 0.5330915217 | H54: 11.70818831
D55: 2003-10-01 | E55: 96961.50112 | F55: 126.990093 | G55: 0.9561322209 | H55: 11.86346728
D56: 2003-11-01 | E56: 97789.6535 | F56: 128.0747209 | G56: 0.8541043287 | H56: 11.67068412
D57: 2003-12-01 | E57: 99255.61591 | F57: 129.9946861 | G57: 1.49909766 | H57: 13.49099038
D58: 2004-01-01 | E58: 102794.3688 | F58: 134.6293767 | G58: 3.565292368 | H58: 17.56422723
D59: 2004-02-01 | E59: 105290.5104 | F59: 137.8985634 | G59: 2.428286337 | H59: 20.84347962
D60: 2004-03-01 | E60: 106735.1338 | F60: 139.790581 | G60: 1.372035716 | H60: 22.23306388
D61: 2004-04-01 | E61: 106243.4101 | F61: 139.1465723 | G61: -0.4606953014 | H61: 20.29571367
D62: 2004-05-01 | E62: 107011.8876 | F62: 140.1530443 | G62: 0.7233178421 | H62: 19.67373576
D63: 2004-06-01 | E63: 107952.5602 | F63: 141.3850395 | G63: 0.8790355762 | H63: 16.32633626
D64: 2004-07-01 | E64: 109762.839 | F64: 143.7559544 | G64: 1.676920684 | H64: 15.49531969
D65: 2004-08-01 | E65: 112151.3944 | F65: 146.8842359 | G65: 2.176105694 | H65: 17.39432113
D66: 2004-09-01 | E66: 113034.7802 | F66: 148.0412028 | G66: 0.787672606 | H66: 17.6916001
D67: 2004-10-01 | E67: 113679.9277 | F67: 148.88615 | G67: 0.5707513466 | H67: 17.24233475
D68: 2004-11-01 | E68: 115093.8215 | F68: 150.737921 | G68: 1.243749697 | H68: 17.69529532
D69: 2004-12-01 | E69: 118568.6265 | F69: 155.2888594 | G69: 3.019106479 | H69: 19.45785175
D70: 2005-01-01 | E70: 120328.2195 | F70: 157.5933914 | G70: 1.484029196 | H70: 17.05720939
D71: 2005-02-01 | E71: 120984.496 | F71: 158.4529141 | G71: 0.5454053201 | H71: 14.90541319
D72: 2005-03-01 | E72: 119923.5809 | F72: 157.0634377 | G72: -0.8769017762 | H72: 12.35623787
D73: 2005-04-01 | E73: 122282.9249 | F73: 160.1534612 | G73: 1.967372873 | H73: 15.09695026
D74: 2005-05-01 | E74: 123369.6521 | F74: 161.5767435 | G74: 0.8886991039 | H74: 15.28593211
D75: 2005-06-01 | E75: 124457.9443 | F75: 163.0020755 | G75: 0.8821393352 | H75: 15.28947912
D76: 2005-07-01 | E76: 122974.6269 | F76: 161.0593806 | G76: =(E76-E75)/E75*100 -> -1.191822187 | H76: 12.03666748
D77: 2005-08-01 | E77: 124300.2591 | F77: 162.7955558 | G77: 1.077972084 | H77: 10.83255788
D78: 2005-09-01 | E78: 125825.2687 | F78: 164.7928549 | G78: 1.226875666 | H78: 11.3155336
D79: 2005-10-01 | E79: 128535.3667 | F79: 168.3422595 | G79: 2.153858313 | H79: 13.06777661
D80: 2005-11-01 | E80: 129095.2278 | F80: 169.0755073 | G80: 0.4355696472 | H80: 12.16521106
D81: 2005-12-01 | E81: 129449.1718 | F81: 169.5390663 | G81: 0.2741727863 | H81: 9.176580331
D82: 2006-01-01 | E82: 129537.3488 | F82: 169.6545514 | G82: 0.06811710318 | H82: 7.65334124
D83: 2006-02-01 | E83: 130837.4649 | F83: 171.3573083 | G83: 1.003661228 | H83: 8.143992996
D84: 2006-03-01 | E84: 133081.4648 | F84: 174.2962661 | G84: 1.715105001 | H84: 10.97189051
D85: 2006-04-01 | E85: 134805.4558 | F85: 176.5541703 | G85: 1.295440345 | H85: 10.24062107
D86: 2006-05-01 | E86: 136660.0177 | F86: 178.9830826 | G86: 1.375732075 | H86: 10.77279978
D87: 2006-06-01 | E87: 137909.0459 | F87: 180.6189299 | G87: 0.9139675246 | H87: =(E87-E75)/E75*100 -> 10.80774846
D88: 2006-07-01 | E88: 138794.3821 | F88: 181.7784512 | G88: 0.641971099 | H88: 12.86424327
D89: 2006-08-01 | E89: 139639.9797 | F89: 182.885927 | G89: 0.6092448415 | H89: 12.34085975
D90: 2006-09-01 | E90: 141506.7289 | F90: 185.3308011 | G90: 1.336830052 | H90: 12.46288633
D91: 2006-10-01 | E91: 144047.727 | F91: 188.6587361 | G91: 1.795672918 | H91: 12.06855406
D92: 2006-11-01 | E92: 145604.9087 | F92: 190.6981708 | G92: 1.08101792 | H92: 12.7887616
D93: 2006-12-01 | E93: 147695.7705 | F93: 193.4365642 | G93: 1.435983062 | H93: 14.09557011
D94: 2007-01-01 | E94: 150281.5895 | F94: 196.8232011 | G94: 1.750773885 | H94: 16.01410011
D95: 2007-02-01 | E95: 152393.0755 | F95: 199.5886059 | G95: 1.405019757 | H95: 16.47510566
D96: 2007-03-01 | E96: 151623.5641 | F96: 198.5807799 | G96: -0.5049516768 | H96: 13.9328939
D97: 2007-04-01 | E97: 152523.2587 | F97: 199.7591063 | G97: 0.5933738352 | H97: 13.14323872
D98: 2007-05-01 | E98: 154099.198 | F98: 201.8231078 | G98: 1.033245263 | H98: 12.76099668
D99: 2007-06-01 | E99: 158000.2447 | F99: 206.9322931 | G99: 2.531516507 | H99: 14.56844157
D100: 2007-07-01 | E100: 159739.3802 | F100: 209.210032 | G100: 1.100716966 | H100: 15.09066702
D101: 2007-08-01 | E101: 161105.9838 | F101: 210.9998673 | G101: 0.8555207929 | H101: 15.37239127
D102: 2007-09-01 | E102: 161757.2291 | F102: 211.8528006 | G102: 0.4042340649 | H102: 14.31062696
D103: 2007-10-01 | E103: 162485.0432 | F103: 212.806016 | G103: 0.4499422992 | H103: 12.79944966
D104: 2007-11-01 | E104: 163144.5254 | F104: 213.6697371 | G104: 0.4058725085 | H104: 12.04603391
D105: 2007-12-01 | E105: 163273.6763 | F105: 213.8388856 | G105: 0.07916353511 | H105: 10.5472931
D106: 2008-01-01 | E106: 162766.3035 | F106: 213.1743815 | G106: -0.310749911 | H106: 8.307547237
D107: 2008-02-01 | E107: 162599.0163 | F107: 212.955286 | G107: -0.1027775816 | H107: 6.697115802
D108: 2008-03-01 | E108: 163226.9607 | F108: 213.7777024 | G108: 0.3861920275 | H108: 7.652766004
D109: 2008-04-01 | E109: 163660.6831 | F109: 214.3457469 | G109: 0.2657174022 | H109: 7.30211546
D110: 2008-05-01 | E110: 163596.9019 | F110: 214.2622129 | G110: -0.03897163279 | H110: 6.163370081
D111: 2008-06-01 | E111: 163574.5757 | F111: 214.2329723 | G111: -0.01364711094 | H111: 3.528052119
D112: 2008-07-01 | E112: 162941.5597 | F112: 213.4039138 | G112: -0.3869891934 | H112: 2.004627504
D113: 2008-08-01 | E113: 161729.2375 | F113: 211.8161402 | G113: -0.7440227412 | H113: 0.3868594226
D114: 2008-09-01 | E114: 159850.6008 | F114: =+F113*E114/E113 -> 209.3556972 | G114: -1.161593737 | H114: -1.178697418
D115: 2008-10-01 | E115: 157854.0797 | F115: 206.7408615 | G115: -1.248991899 | H115: -2.850086038
D116: 2008-11-01 | E116: 157197.2337 | F116: 205.8805929 | G116: -0.4161096108 | H116: -3.645412946
D117: 2008-12-01 | E117: 156414.4071 | F117: 204.855328 | G117: -0.4979900704 | H117: -4.201087028
D118: 2009-01-01 | E118: 153799.6623 | F118: 201.4308071 | G118: -1.671677706 | H118: -5.508905106
D119: 2009-02-01 | E119: 150926.732 | F119: 197.6681416 | G119: -1.867969234 | H119: -7.178570066
D120: 2009-03-01 | E120: 146795.0469 | F120: 192.2568901 | G120: -2.737543589 | H120: -10.06691159
D121: 2009-04-01 | E121: 148864.3103 | F121: 194.9669961 | G121: 1.409627517 | H121: -9.040884226
D122: 2009-05-01 | E122: 149504.0764 | F122: 195.8048952 | G122: 0.4297645978 | H122: -8.614359672
D123: 2009-06-01 | E123: 151057.2046 | F123: 197.8390211 | G123: 1.038853437 | H123: -7.652394026
D124: 2009-07-01 | E124: 149437.3088 | F124: 195.71745 | G124: -1.072372441 | H124: -8.287787953
D125: 2009-08-01 | E125: 149093.5981 | F125: 195.2672935 | G125: -0.230003233 | H125: -7.812835537
D126: 2009-09-01 | E126: 149564.1865 | F126: 195.8836212 | G126: 0.3156328587 | H126: -6.435017579
D127: 2009-10-01 | E127: 150756.779 | F127: 197.4455549 | G127: 0.7973784032 | H127: -4.496114827
D128: 2009-11-01 | E128: 152367.7202 | F128: 199.5553982 | G128: 1.068569637 | H128: -3.072263682
D129: 2009-12-01 | E129: 153494.4965 | F129: 201.0311326 | G129: 0.7395111326 | H129: -1.866778582
D130: 2010-01-01 | E130: 154264.3099 | F130: 202.0393542 | G130: 0.5015251441 | H130: 0.302112247
D131: 2010-02-01 | E131: 155047.7352 | F131: 203.0654032 | G131: 0.5078461082 | H131: 2.730466121
D132: 2010-03-01 | E132: 155372.8453 | F132: 203.4911986 | G132: 0.2096838361 | H132: 5.843384078
D133: 2010-04-01 | E133: 156155.6673 | F133: 204.5164575 | G133: 0.5038345395 | H133: 4.897988692
D134: 2010-05-01 | E134: 156107.0169 | F134: 204.4527402 | G134: -0.03115508882 | H134: 4.416562212
D135: 2010-06-01 | E135: 156318.9484 | F135: 204.730306 | G135: 0.1357603774 | H135: 3.483278931
D136: 2010-07-01 | E136: 156630.8326 | F136: 205.1387795 | G136: 0.1995178452 | H136: 4.813740203
D137: 2010-08-01 | E137: 157714.7397 | F137: 206.5583684 | G137: 0.6920138856 | H137: 5.782368707
D138: 2010-09-01 | E138: 158489.2857 | F138: 207.5727882 | G138: 0.4911056539 | H138: 5.967403954
D139: 2010-10-01 | E139: 158618.0518 | F139: 207.7414327 | G139: 0.08124596815 | H139: 5.214540177
D140: 2010-11-01 | E140: 157714.6747 | F140: 206.5582832 | G140: =(E140-E139)/E139*100 -> -0.5695298658 | H140: 3.509243599
D141: 2010-12-01 | E141: 158307.8245 | F141: 207.3351292 | G141: 0.3760904456 | H141: 3.135831022
D142: 2011-01-01 | E142: 157982.6848 | F142: 206.909295 | G142: -0.2053844987 | H142: 2.410392146
D143: 2011-02-01 | E143: 156846.6049 | F143: 205.4213757 | G143: -0.7191166935 | H143: 1.160203762
D144: 2011-03-01 | E144: 155576.2512 | F144: 203.7575985 | G144: -0.8099338297 | H144: 0.1309147065
D145: 2011-04-01 | E145: 154727.9002 | F145: 202.6465166 | G145: -0.5452959297 | H145: -0.9143229604
D146: 2011-05-01 | E146: 155224.671 | F146: 203.2971353 | G146: 0.3210609169 | H146: -0.5652185827
D147: 2011-06-01 | E147: 154325.0782 | F147: 202.1189422 | G147: -0.5795424345 | H147: -1.27551407
D148: 2011-07-01 | E148: 154893.0133 | F148: 202.8627645 | G148: =(E148-E147)/E147*100 -> 0.3680121922 | H148: =(E148-E136)/E136*100 -> -1.10950012
D149: 2011-08-01 | E149: 156049.771 | F149: 204.3777655 | G149: 0.7468107474 | H149: -1.055683647
D150: 2011-09-01 | E150: 157482.4961 | F150: 206.2541998 | G150: 0.9181205937 | H150: -0.6352414492
D151: 2011-10-01 | E151: 157767.5559 | F151: 206.6275415 | G151: 0.1810104648 | H151: -0.5361911724
D152: 2011-11-01 | E152: 157664.6474 | F152: 206.4927627 | G152: -0.06522790165 | H152: -0.03172011751
D153: 2011-12-01 | E153: 156849.9466 | F153: 205.4257523 | G153: -0.5167301785 | H153: -0.920913367
D154: 2012-01-01 | E154: 154933.5903 | F154: 202.915908 | G154: =(E154-E153)/E153*100 -> -1.221776824 | H154: =(E154-E142)/E142*100 -> -1.930018144
D155: 2012-02-01 | E155: 154190.899 | F155: 201.9432083 | G155: -0.4793610274 | H155: -1.693186711
D156: 2012-03-01 | E156: 154402.8418 | F156: 202.2207889 | G156: 0.1374548003 | H156: -0.7542342461
D157: 2012-04-01 | E157: 155718.4891 | F157: 203.9438868 | G157: 0.8520874494 | H157: 0.6402134557
D158: 2012-05-01 | E158: 155855.9361 | F158: 204.1239007 | G158: 0.08826636884 | H158: 0.4066783156
D159: 2012-06-01 | E159: 156411.4182 | F159: 204.8514134 | G159: 0.3564074083 | H159: 1.351912497
D160: 2012-07-01 | E160: 155810.8509 | F160: 204.0648528 | G160: =(E160-E159)/E159*100 -> -0.3839664314 | H160: =(E160-E148)/E148*100 -> 0.5925622814
D161: 2012-08-01 | E161: 154795.8953 | F161: 202.7355695 | G161: -0.6514023721 | H161: -0.8035101031
D162: 2012-09-01 | E162: 154656.2693 | F162: 202.5527019 | G162: -0.09020004129 | H162: -1.794629112
D163: 2012-10-01 | E163: 153768.6494 | F163: 201.3901896 | G163: -0.5739307675 | H163: -2.534682375
D164: 2012-11-01 | E164: 153214.7772 | F164: 200.6647854 | G164: -0.3601984045 | H164: -2.822363962
D165: 2012-12-01 | E165: 151743.7919 | F165: 198.7382418 | G165: -0.9600805624 | H165: -3.255439215
D166: 2013-01-01 | E166: 151552.8719 | F166: 198.4881946 | G166: =(E166-E165)/E165*100 -> -0.125817337 | H166: =(E166-E154)/E154*100 -> -2.182043523
D167: 2013-02-01 | E167: 152293.1593 | F167: 199.4577461 | G167: 0.4884680782 | H167: -1.230772849
D168: 2013-03-01 | E168: 152525.0153 | F168: 199.7614069 | G168: 0.1522432072 | H168: -1.216186503
D169: 2013-04-01 | E169: 153011.7331 | F169: 200.3988593 | G169: 0.3191068746 | H169: -1.738236716
D170: 2013-05-01 | E170: 153179.3681 | F170: 200.6184102 | G170: 0.1095569283 | H170: -1.717334686
D171: 2013-06-01 | E171: 153311.4429 | F171: 200.7913881 | G171: 0.08622234234 | H171: -1.981936709
D172: 2013-07-01 | E172: 154180.6524 | F172: 201.9297882 | G172: =(E172-E171)/E171*100 -> 0.5669566705 | H172: =(E172-E160)/E160*100 -> -1.046267646
D173: 2013-08-01 | E173: 154227.5132 | F173: 201.9911617 | G173: 0.03039347193 | H173: -0.367181629
D174: 2013-09-01 | E174: 154663.3345 | F174: 202.5619551 | G174: 0.2825833462 | H174: 0.004568284986
D175: 2013-10-01 | E175: 154718.4939 | F175: 202.6341971 | G175: 0.03566415864 | H175: 0.6177100685
D176: 2013-11-01 | E176: 155934.1541 | F176: 204.2263425 | G176: 0.7857239364 | H176: 1.774878991
D177: 2013-12-01 | E177: 156825.8014 | F177: 205.3941294 | G177: 0.5718101288 | H177: 3.349072413
D178: 2014-01-01 | E178: 158592.6047 | F178: =+F177*E178/E177 -> 207.7081047 | G178: =(E178-E177)/E177*100 -> 1.126602435 | H178: =(E178-E166)/E166*100 -> 4.645067217
D179: 2014-02-01 | E179: 157170.3798 | F179: 205.8454223 | G179: -0.8967788391 | H179: 3.202521027
D180: 2014-03-01 | E180: 158037.2496 | F180: 206.9807583 | G180: 0.5515478543 | H180: 3.61398706
D181: 2014-04-01 | E181: 158252.1308 | F181: 207.2621874 | G181: 0.1359687012 | H181: 3.424833897
D182: 2014-05-01 | E182: 161224.4688 | F182: 211.1550467 | G182: 1.878229371 | H182: 5.25207856
D183: 2014-06-01 | E183: 162413.9296 | F183: 212.7128787 | G183: 0.7377669018 | H183: 5.937251979
D184: 2014-07-01 | E184: 162928.1681 | F184: =+F183*E184/E183 -> 213.3863749 | G184: =(E184-E183)/E183*100 -> 0.3166221934 | H184: =(E184-E172)/E172*100 -> 5.673549592
D185: 2014-08-01 | E185: 163300.7034 | F185: 213.8742829 | G185: 0.2286500064 | H185: 5.882990652
D186: 2014-09-01 | E186: 163257.8471 | F186: 213.8181542 | G186: -0.02624378142 | H186: 5.556916684
D187: 2014-10-01 | E187: 163717.4321 | F187: 214.4200709 | G187: 0.2815086954 | H187: 5.81633008
D188: 2014-11-01 | E188: 162576.1433 | F188: 212.9253294 | G188: -0.697108939 | H188: 4.259483268
D189: 2014-12-01 | E189: 163218.0047 | F189: 213.7659727 | G189: 0.3948066218 | H189: 4.075989562
D190: 2015-01-01 | E190: 164242.2382 | F190: =+F189*E190/E189 -> 215.1074072 | G190: =(E190-E189)/E189*100 -> 0.6275248128 | H190: =(E190-E178)/E178*100 -> 3.562356194
D191: 2015-02-01 | E191: 168493.0083 | F191: 220.674624 | G191: 2.588110213 | H191: 7.204047322
D192: 2015-03-01 | E192: 184247.2226 | F192: 241.3078559 | G192: 9.350070059 | H192: 16.58468055
D193: 2015-04-01 | E193: 181443.8303 | F193: 237.6362641 | G193: -1.521538443 | H193: 14.65490503
D194: 2015-05-01 | E194: 178013.3391 | F194: 233.1433634 | G194: -1.890662909 | H194: 10.41335128
D195: 2015-06-01 | E195: 161596.387 | F195: 211.6421464 | G195: -9.222315687 | H195: -0.5033697459
D196: 2015-07-01 | E196: 162858.8347 | F196: =+F195*E196/E195 -> 213.2955691 | G196: =(E196-E195)/E195*100 -> 0.7812350804 | H196: =(E196-E184)/E184*100 -> -0.04255462262
D197: 2015-08-01 | E197: 163463.2779 | F197: 214.087206 | G197: 0.3711454807 | H197: 0.09955527902
D198: 2015-09-01 | E198: 164297.4241 | F198: 215.179684 | G198: 0.510295794 | H198: 0.6367699934
D199: 2015-10-01 | E199: 165187.3402 | F199: 216.3452037 | G199: 0.5416494867 | H199: 0.8978323699
D200: 2015-11-01 | E200: 166147.5834 | F200: 217.6028302 | G200: 0.5813055053 | H200: 2.196779912
D201: 2015-12-01 | E201: 166574.152 | F201: 218.1615055 | G201: 0.2567407892 | H201: 2.056235954
D202: 2016-01-01 | E202: 166418.9738 | F202: =+F201*E202/E201 -> 217.9582692 | G202: =(E202-E201)/E201*100 -> -0.0931586228 | H202: =(E202-E190)/E190*100 -> 1.325320244
D203: 2016-02-01 | E203: 164765.2698 | F203: 215.7924197 | G203: -0.9936991591 | H203: -2.212399487
... 32 more rows

Sheet REGIONS
B2: YOUR MOVE ACADATA SCOTLAND HPI NATIONAL AND REGIONAL FORMATTED DATA FROM 2000
B3: A TRUE MEASURE OF HOUSE PRICE INFLATION | J3: =SERIES!$K$2 -> 21st December 2018
J4: =SERIES!$K$3 -> OCTOBER 2018
J5: © Acadata Limited
J6: Your Move Acadata Scotland HPI clb/cms
B8: SCOTLAND
A10: Region | B10: North East | E10: North West | H10: Yorks & Humber | K10: East Midlands | N10: West Midlands | Q10: East of England | T10: Greater London | W10: South East | Z10: South West | AC10: Wales | AF10: Scotland | AI10: England & Wales
A11: Month | B11: Ave HP | C11: monthly % | D11: annual % | E11: Ave HP | F11: monthly % | G11: annual % | H11: Ave HP | I11: monthly % | J11: annual % | K11: Ave HP | L11: monthly % | M11: annual % | N11: Ave HP | O11: monthly % | P11: annual % | Q11: Ave HP | R11: monthly % | S11: annual % | T11: Ave HP | U11: monthly % | V11: annual % | W11: Ave HP | X11: monthly % | Y11: annual % | Z11: Ave HP | AA11: monthly % | AB11: annual % | AC11: Ave HP | AD11: monthly % | AE11: annual % | AF11: Ave HP | AG11: monthly % | AH11: annual % | AI11: Ave HP | AJ11: monthly % | AK11: annual %
A12: 2005-01-01 | B12: 133843.2156 | C12: 1.781576266 | D12: 18.43480102 | E12: 147107.436 | F12: 0.6129857168 | G12: 17.74440003 | H12: 146258.2431 | I12: 1.227270252 | J12: 19.18629171 | K12: 160473.6031 | L12: 0.8481318913 | M12: 14.94997547 | N12: 165852.0008 | O12: -0.03042268451 | P12: 12.69615977 | Q12: 200919.6968 | R12: 0.4229980844 | S12: 11.4520611 | T12: 272751.0611 | U12: 0.2146964187 | V12: 7.470760459 | W12: 232135.8059 | X12: 0.375058946 | Y12: 9.267488095 | Z12: 203525.3933 | AA12: -0.1230640597 | AB12: 12.76335652 | AC12: 144251.1203 | AD12: 0.04866297659 | AE12: 19.83561741 | AF12: 120328.2195 | AG12: 1.484029196 | AH12: 17.05720939 | AI12: 191651.9703 | AJ12: 0.401068026 | AK12: 12.30830341
A13: 2005-02-01 | B13: 135431.8376 | C13: =B13/B12*100-100 -> 1.186927617 | D13: 18.27525943 | E13: 149793.5879 | F13: =E13/E12*100-100 -> 1.82597967 | G13: 17.99086099 | H13: 147313.9546 | I13: =H13/H12*100-100 -> 0.7218132986 | J13: 17.69306614 | K13: 160765.9849 | L13: =K13/K12*100-100 -> 0.1821993567 | M13: 13.40725925 | N13: 167345.7175 | O13: =N13/N12*100-100 -> 0.9006322776 | P13: 12.32851987 | Q13: 202367.2365 | R13: =Q13/Q12*100-100 -> 0.7204568656 | S13: 10.50911746 | T13: 273206.3306 | U13: =T13/T12*100-100 -> 0.1669175666 | V13: 7.055278352 | W13: 232416.139 | X13: =W13/W12*100-100 -> 0.1207625312 | Y13: 7.826587743 | Z13: 204766.2705 | AA13: 0.591030347 | AB13: 11.74248557 | AC13: 145288.63 | AD13: =AC13/AC12*100-100 -> 0.7192385694 | AE13: 18.65667064 | AF13: 120984.496 | AG13: 0.5454053201 | AH13: 14.90541319 | AI13: 192756.9567 | AJ13: =AI13/AI12*100-100 -> 0.5765588471 | AK13: 11.43201954
A14: 2005-03-01 | B14: 136487.8908 | C14: 0.7797672714 | D14: 16.88464362 | E14: 149466.1759 | F14: -0.2185754813 | G14: 16.17048951 | H14: 147487.9706 | I14: 0.1181259715 | J14: 15.06987676 | K14: 159414.355 | L14: -0.8407437421 | M14: 11.51169329 | N14: 166344.5676 | O14: -0.5982524353 | P14: 10.18994619 | Q14: 201951.9825 | R14: -0.2051982355 | S14: 9.274115615 | T14: 274438.6022 | U14: 0.4510406442 | V14: 5.929847688 | W14: 232954.1789 | X14: 0.2314985186 | Y14: 7.05369112 | Z14: 204098.0342 | AA14: -0.3364909269 | AB14: 9.821040201 | AC14: 144781.4542 | AD14: -0.3490815984 | AE14: 15.98846501 | AF14: 119923.5809 | AG14: -0.8769017762 | AH14: 12.35623787 | AI14: 192653.9399 | AJ14: -0.05344387102 | AK14: 9.927510579
A15: 2005-04-01 | B15: 135820.2601 | C15: -0.489150154 | D15: 13.42356656 | E15: 149759.3311 | F15: 0.1961348718 | G15: 14.37031424 | H15: 147114.0456 | I15: -0.2535291126 | J15: 12.25817941 | K15: 158405.2795 | L15: -0.6329891124 | M15: 9.674785349 | N15: 167631.303 | O15: 0.7735361383 | P15: 10.01487743 | Q15: 203101.1108 | R15: 0.5690106272 | S15: 8.696876636 | T15: 274002.7606 | U15: -0.1588120591 | V15: 4.674106212 | W15: 232702 | X15: -0.108252565 | Y15: 6.159234686 | Z15: 204002.7685 | AA15: -0.05655692176 | AB15: 8.454083428 | AC15: 145681.774 | AD15: 0.621847507 | AE15: 15.57631977 | AF15: 122282.9249 | AG15: 1.967372873 | AH15: 15.09695026 | AI15: 192730.9321 | AJ15: 0.03996400555 | AK15: 8.695361129
A16: 2005-05-01 | B16: 135875.4528 | C16: 0.04063663633 | D16: 10.27051154 | E16: 149599.6181 | F16: -0.1066464409 | G16: 11.90888131 | H16: 146757.0067 | I16: -0.2426953168 | J16: 10.27892577 | K16: 158907.6011 | L16: 0.3171116722 | M16: 8.312422424 | N16: 167726.9816 | O16: 0.05707684935 | P16: 8.638508447 | Q16: 202871.6651 | R16: -0.1129711649 | S16: 7.439703793 | T16: 273757.4759 | U16: -0.08951905828 | V16: 3.909857053 | W16: 230991.4229 | X16: -0.7350934136 | Y16: 4.662974984 | Z16: 201840.6271 | AA16: -1.033944516 | AB16: 5.551848517 | AC16: 145680.6354 | AD16: -0.0007815787878 | AE16: 13.2358313 | AF16: 123369.6521 | AG16: 0.8886991039 | AH16: 15.28593211 | AI16: 192129.4994 | AJ16: -0.3120582232 | AK16: 7.023497811
A17: 2005-06-01 | B17: 136306.5291 | C17: 0.3172583618 | D17: 8.761250181 | E17: 150794.8713 | F17: 0.7989680613 | G17: 9.868581101 | H17: 147593.889 | I17: 0.5702502971 | J17: 9.706241636 | K17: 159508.1255 | L17: 0.3779079365 | M17: 6.82828761 | N17: 170080.1504 | O17: 1.402975662 | P17: 8.226080044 | Q17: 202496.6823 | R17: -0.1848374543 | S17: 6.015878338 | T17: 273417.2619 | U17: -0.1242756827 | V17: 3.674363463 | W17: 231697.4812 | X17: 0.305664297 | Y17: 4.061780732 | Z17: 201011.0752 | AA17: -0.3836203743 | AB17: 4.203129952 | AC17: 146848.8078 | AD17: 0.8018720924 | AE17: 11.75248604 | AF17: 124457.9443 | AG17: 0.8821393352 | AH17: 15.28947912 | AI17: 192629.1366 | AJ17: 0.2600522924 | AK17: 6.075710842
A18: 2005-07-01 | B18: 136831.1981 | C18: 0.3849184747 | D18: 8.43396073 | E18: 151987.6542 | F18: 0.7909970103 | G18: 8.505837726 | H18: 148036.7679 | I18: 0.300065866 | J18: 8.119973364 | K18: 160301.8204 | L18: 0.497588986 | M18: 5.75130754 | N18: 168792.1087 | O18: -0.7573145092 | P18: 5.367687382 | Q18: 201865.5738 | R18: -0.3116636185 | S18: 4.701849947 | T18: 273862.4689 | U18: 0.1628306033 | V18: 3.421133713 | W18: 230971.0968 | X18: -0.3135055333 | Y18: 3.264659198 | Z18: 200552.47 | AA18: -0.2113758757 | AB18: 2.839176353 | AC18: 148005.1532 | AD18: 0.7874394492 | AE18: 9.59390663 | AF18: 122974.6269 | AG18: -1.191822187 | AH18: 12.03666748 | AI18: 192637.1589 | AJ18: 0.00416463727 | AK18: 4.928599031
A19: 2005-08-01 | B19: 137416.6939 | C19: 0.4278964524 | D19: 7.763717451 | E19: 152185.1329 | F19: 0.1299307444 | G19: 6.278423887 | H19: 148921.112 | I19: 0.5973813905 | J19: 6.624469633 | K19: 160354.4048 | L19: 0.03280335236 | M19: 4.471435257 | N19: 168260.667 | O19: -0.3148498354 | P19: 3.216147305 | Q19: 202003.8632 | R19: 0.0685056995 | S19: 3.972258642 | T19: 273736.3294 | U19: -0.04605941369 | V19: 2.875784087 | W19: 231693.582 | X19: 0.3128033014 | Y19: 2.739947476 | Z19: 200206.5815 | AA19: -0.184068822 | AB19: 1.703100844 | AC19: 149592.8724 | AD19: 1.072745851 | AE19: 9.156625124 | AF19: 124300.2591 | AG19: 1.077972084 | AH19: 10.83255788 | AI19: 192884.3535 | AJ19: 0.1283213663 | AK19: 3.903625925
A20: 2005-09-01 | B20: 139117.11 | C20: 1.237415944 | D20: 7.728922573 | E20: 152875.0171 | F20: 0.4533190153 | G20: 5.791758112 | H20: 150733.2992 | I20: 1.21687729 | J20: 6.017059694 | K20: 161522.2133 | L20: 0.7282671832 | M20: 3.841627469 | N20: 167632.2386 | O20: -0.3734850261 | P20: 2.063710905 | Q20: 202519.4011 | R20: 0.255211918 | S20: 3.317896024 | T20: 274567.806 | U20: 0.303750908 | V20: 2.508180961 | W20: 231510.9713 | X20: -0.07881560076 | Y20: 2.353662692 | Z20: 200575.9307 | AA20: 0.1709808307 | AB20: 0.7721197195 | AC20: 150559.2044 | AD20: 0.6459746341 | AE20: 8.07715633 | AF20: 125825.2687 | AG20: 1.226875666 | AH20: 11.3155336 | AI20: 193456.4431 | AJ20: 0.2965971913 | AK20: 3.307167747
A21: 2005-10-01 | B21: 141352.8222 | C21: 1.607072037 | D21: 8.38365954 | E21: 153646.9778 | F21: 0.5049619776 | G21: 5.634055242 | H21: 151705.1751 | I21: 0.6447652512 | J21: 5.792605611 | K21: 161831.4167 | L21: 0.1914309082 | M21: 2.916351843 | N21: 169087.5068 | O21: 0.8681314404 | P21: 2.026568974 | Q21: 203199.7807 | R21: 0.3359577 | S21: 2.999611293 | T21: 276716.6726 | U21: 0.7826360369 | V21: 2.611449063 | W21: 232493.5006 | X21: 0.4243985764 | Y21: 1.743812969 | Z21: 201624.212 | AA21: 0.5251594947 | AB21: 0.1694119613 | AC21: 152172.4215 | AD21: 1.07148356 | AE21: 7.612687661 | AF21: 128535.3667 | AG21: 2.153858313 | AH21: 13.06777661 | AI21: 194586.1432 | AJ21: 0.5839558084 | AK21: 2.983164019
A22: 2005-11-01 | B22: 142479.8288 | C22: 0.7973004296 | D22: 8.654255785 | E22: 154179.6078 | F22: 0.3466583195 | G22: 6.406443756 | H22: 152532.2313 | I22: 0.5451733542 | J22: 5.809230177 | K22: 162176.2421 | L22: 0.2130768885 | M22: 2.704072978 | N22: 170223.5838 | O22: 0.6718870228 | P22: 3.131312022 | Q22: 202976.5737 | R22: -0.1098460696 | S22: 2.323791935 | T22: 278800.7413 | U22: 0.753141724 | V22: 2.684192357 | W22: 233722.4469 | X22: 0.5285938275 | Y22: 1.324052997 | Z22: 203256.9849 | AA22: 0.7998031783 | AB22: 0.4145338872 | AC22: 152370.6639 | AD22: 0.1302748338 | AE22: 6.767358563 | AF22: 129095.2278 | AG22: 0.4355696472 | AH22: 12.16521106 | AI22: 195531.8098 | AJ22: 0.485988664 | AK22: 2.970215031
A23: 2005-12-01 | B23: 143732.5673 | C23: 0.8792391349 | D23: 9.301970938 | E23: 155181.9784 | F23: 0.6501317453 | G23: 6.135506108 | H23: 153466.0994 | I23: 0.6122431317 | J23: 6.215923232 | K23: 161441.0712 | L23: -0.4533159948 | M23: 1.456128186 | N23: 171184.6606 | O23: 0.5645967052 | P23: 3.183911421 | Q23: 204828.7967 | R23: 0.9125304323 | S23: 2.376831077 | T23: 282712.218 | U23: 1.402964941 | V23: 3.874642988 | W23: 235932.9561 | X23: 0.9457838579 | Y23: 2.016939107 | Z23: 205206.8254 | AA23: 0.9778553549 | AB23: 0.7020727133 | AC23: 153514.4663 | AD23: 0.7506710661 | AE23: 6.473468411 | AF23: 129449.1718 | AG23: 0.2741727863 | AH23: 9.176580331 | AI23: 197150.5841 | AJ23: 0.82788283 | AK23: 3.281636898
A24: 2006-01-01 | B24: 144209.8563 | C24: 0.3320674336 | D24: =B24/B12*100-100 -> 7.745361402 | E24: 156499.406 | F24: 0.8489565501 | G24: =E24/E12*100-100 -> 6.384429084 | H24: 155129.8881 | I24: 1.084140832 | J24: =H24/H12*100-100 -> 6.065740149 | K24: 161588.816 | L24: 0.09151626056 | M24: =K24/K12*100-100 -> 0.6949510482 | N24: 172614.3673 | O24: 0.8351839148 | P24: =N24/N12*100-100 -> 4.077349976 | Q24: 205125.2605 | R24: 0.1447373801 | S24: =Q24/Q12*100-100 -> 2.093156524 | T24: 284223.5378 | U24: 0.5345788633 | V24: =T24/T12*100-100 -> 4.206207877 | W24: 237622.4792 | X24: 0.7161030723 | Y24: =W24/W12*100-100 -> 2.363561846 | Z24: 205598.2548 | AA24: =Z24/Z23*100-100 -> 0.1907487182 | AB24: =Z24/Z12*100-100 -> 1.018478066 | AC24: 153204.2105 | AD24: -0.2021019912 | AE24: =AC24/AC12*100-100 -> 6.206600118 | AF24: 129537.3488 | AG24: 0.06811710318 | AH24: 7.65334124 | AI24: 198153.7538 | AJ24: 0.5088342505 | AK24: =AI24/AI12*100-100 -> 3.392495002
A25: 2006-02-01 | B25: 146097.1335 | C25: 1.308701924 | D25: 7.875028516 | E25: 157391.5444 | F25: 0.5700586966 | G25: 5.072284225 | H25: 156548.7876 | I25: 0.9146525598 | J25: 6.268810748 | K25: 162491.1448 | L25: 0.5584104303 | M25: 1.073087642 | N25: 173936.2167 | O25: 0.7657817938 | P25: 3.93825391 | Q25: 207157.4976 | R25: 0.9907297811 | S25: 2.367112937 | T25: 287020.0395 | U25: 0.9839092812 | V25: 5.056145267 | W25: 239441.4741 | X25: 0.7654978051 | Y25: 3.022739797 | Z25: 207096.2552 | AA25: 0.7286056047 | AB25: 1.13787525 | AC25: 155158.7167 | AD25: 1.275752222 | AE25: 6.793433615 | AF25: 130837.4649 | AG25: 1.003661228 | AH25: 8.143992996 | AI25: 199813.4658 | AJ25: 0.8375879694 | AK25: 3.660832401
A26: 2006-03-01 | B26: 145782.9359 | C26: -0.2150607196 | D26: 6.810161025 | E26: 159295.4827 | F26: 1.209682699 | G26: 6.576275074 | H26: 157417.9761 | I26: 0.5552189743 | J26: 6.732756244 | K26: 164088.3585 | L26: 0.9829542662 | M26: 2.931984084 | N26: 174607.673 | O26: 0.3860359424 | P26: 4.967463334 | Q26: 208343.1515 | R26: 0.5723441867 | S26: 3.164697295 | T26: 287443.4022 | U26: 0.147502838 | V26: 4.738691991 | W26: 241004.3825 | X26: 0.6527308579 | Y26: 3.455702591 | Z26: 208565.7362 | AA26: 0.7095642438 | AB26: 2.188998066 | AC26: 156113.0928 | AD26: 0.6150967035 | AE26: 7.826719741 | AF26: 133081.4648 | AG26: 1.715105001 | AH26: 10.97189051 | AI26: 200983.9902 | AJ26: 0.585808576 | AK26: 4.323841146
A27: 2006-04-01 | B27: 146161.6298 | C27: 0.2597655459 | D27: 7.614011124 | E27: 159543.2119 | F27: 0.1555154981 | G27: 6.5330692 | H27: 157529.315 | I27: 0.07072818964 | J27: 7.079724666 | K27: 164563.7958 | L27: 0.2897447199 | M27: 3.88782268 | N27: 175332.8061 | O27: 0.4152927933 | P27: 4.594310851 | Q27: 211013.0127 | R27: 1.28147298 | S27: 3.895548304 | T27: 290173.5572 | U27: 0.9498060891 | V27: 5.901691122 | W27: 242754.3793 | X27: 0.7261265416 | Y27: 4.319850821 | Z27: 210179.1641 | AA27: 0.7735824342 | AB27: 3.027603795 | AC27: 155562.5852 | AD27: -0.352633847 | AE27: 6.782462153 | AF27: 134805.4558 | AG27: 1.295440345 | AH27: 10.24062107 | AI27: 202245.961 | AJ27: 0.62789616 | AK27: 4.936949531
A28: 2006-05-01 | B28: 145752.2157 | C28: -0.2801105263 | D28: 7.268982445 | E28: 160478.0097 | F28: 0.5859213937 | G28: 7.271670663 | H28: 157648.953 | I28: 0.07594651319 | J28: 7.421755553 | K28: 165095.9141 | L28: 0.3233507157 | M28: 3.894283797 | N28: 175671.0602 | O28: 0.1929211499 | P28: 4.736315209 | Q28: 211670.684 | R28: 0.3116733734 | S28: 4.337234053 | T28: 291977.7058 | U28: 0.6217481144 | V28: 6.655609987 | W28: 244316.017 | X28: 0.6432994941 | Y28: 5.768436705 | Z28: 210943.3131 | AA28: 0.3635703077 | AB28: 4.509838341 | AC28: 155294.0236 | AD28: -0.1726389258 | AE28: 6.598947212 | AF28: 136660.0177 | AG28: 1.375732075 | AH28: 10.77279978 | AI28: 203065.0419 | AJ28: 0.4049924981 | AK28: 5.69175612
A29: 2006-06-01 | B29: 146442.7244 | C29: 0.4737552245 | D29: 7.436324131 | E29: 160248.746 | F29: -0.1428629933 | G29: 6.269360891 | H29: 157216.9313 | I29: -0.274040367 | J29: 6.519946269 | K29: 165669.0832 | L29: 0.3471734098 | M29: 3.862472598 | N29: 176724.3858 | O29: 0.5996011107 | P29: 3.906531964 | Q29: 212681.7375 | R29: 0.4776539651 | S29: 5.029739285 | T29: 293918.7973 | U29: 0.6648081321 | V29: 7.498259352 | W29: 244829.0323 | X29: 0.2099802316 | Y29: 5.667541566 | Z29: 211426.863 | AA29: 0.229232148 | AB29: 5.181698446 | AC29: 155732.3297 | AD29: 0.2822427403 | AE29: 6.049434185 | AF29: 137909.0459 | AG29: 0.9139675246 | AH29: 10.80774846 | AI29: 203685.6727 | AJ29: 0.3056315343 | AK29: 5.73980467
A30: 2006-07-01 | B30: 145859.1012 | C30: -0.398533406 | D30: 6.597839711 | E30: 161102.023 | F30: 0.5324703028 | G30: 5.9967823 | H30: 157723.2534 | I30: 0.3220531975 | J30: 6.543297095 | K30: 166550.8944 | L30: 0.5322726438 | M30: 3.898317542 | N30: 176843.157 | O30: 0.06720699924 | P30: 4.769801332 | Q30: 213162.193 | R30: 0.2259035378 | S30: 5.596109839 | T30: 295710.2314 | U30: 0.6094996763 | V30: 7.977640251 | W30: 246307.493 | X30: 0.6038747442 | Y30: 6.639963348 | Z30: 212130.4851 | AA30: 0.3327969443 | AB30: 5.773060356 | AC30: 156905.3486 | AD30: 0.7532276024 | AE30: 6.013436177 | AF30: 138794.3821 | AG30: 0.641971099 | AH30: 12.86424327 | AI30: 204559.2784 | AJ30: 0.4288989412 | AK30: 6.18889919
A31: 2006-08-01 | B31: 145323.2626 | C31: -0.3673673163 | D31: 5.753717681 | E31: 162608.5237 | F31: 0.9351221706 | G31: 6.849151813 | H31: 158627.6838 | I31: 0.5734286637 | J31: 6.517928617 | K31: 166805.0269 | L31: 0.1525854897 | M31: 4.022728356 | N31: 178035.1899 | O31: 0.6740622284 | P31: 5.80915494 | Q31: 215649.8747 | R31: 1.167037015 | S31: 6.755322047 | T31: 297537.327 | U31: 0.6178668622 | V31: 8.694862525 | W31: 247097.1309 | X31: 0.3205902892 | Y31: 6.648241495 | Z31: 213027.1104 | AA31: 0.422676274 | AB31: 6.403650047 | AC31: 157678.2768 | AD31: 0.4926078879 | AE31: 5.40493961 | AF31: 139639.9797 | AG31: 0.6092448415 | AH31: 12.34085975 | AI31: 205714.0784 | AJ31: 0.5645307079 | AK31: 6.651511458
A32: 2006-09-01 | B32: 146868.6128 | C32: 1.063388109 | D32: 5.571926291 | E32: 163638.3932 | F32: 0.6333428577 | G32: 7.040637719 | H32: 160659.2252 | I32: 1.280697938 | J32: 6.585091756 | K32: 168564.1447 | L32: 1.054595194 | M32: 4.359729388 | N32: 179064.5022 | O32: 0.5781510544 | P32: 6.819847822 | Q32: 216787.8105 | R32: 0.5276774538 | S32: 7.045453059 | T32: 300739.1185 | U32: 1.07609744 | V32: 9.531821257 | W32: 249214.7582 | X32: 0.8570019959 | Y32: 7.647061731 | Z32: 214592.3272 | AA32: 0.734750077 | AB32: 6.98807504 | AC32: 158625.6761 | AD32: 0.6008432708 | AE32: 5.357674246 | AF32: 141506.7289 | AG32: 1.336830052 | AH32: 12.46288633 | AI32: 207431.7457 | AJ32: 0.8349780058 | AK32: 7.224004735
A33: 2006-10-01 | B33: 148388.2685 | C33: 1.034704154 | D33: 4.977223789 | E33: 165472.6198 | F33: 1.120902385 | G33: 7.696631739 | H33: 162954.6798 | I33: 1.428772329 | J33: 7.415373054 | K33: 169198.9763 | L33: 0.3766113295 | M33: 4.552613934 | N33: 180108.9583 | O33: 0.5832848253 | P33: 6.518193854 | Q33: 218862.4926 | R33: 0.9570104922 | S33: 7.708035836 | T33: 303217.2414 | U33: 0.8240108308 | V33: 9.576787897 | W33: 251410.6336 | X33: 0.8811177141 | Y33: 8.136628748 | Z33: 217687.1262 | AA33: 1.442175973 | AB33: 7.966758561 | AC33: 161719.0131 | AD33: 1.950085958 | AE33: 6.27353599 | AF33: 144047.727 | AG33: 1.795672918 | AH33: 12.06855406 | AI33: 209492.2303 | AJ33: 0.9933313841 | AK33: 7.660405236
A34: 2006-11-01 | B34: 150359.5033 | C34: 1.328430379 | D34: 5.530378956 | E34: 165602.3708 | F34: 0.07841232075 | G34: 7.408737842 | H34: 164176.9479 | I34: 0.7500662485 | J34: 7.634266173 | K34: 170788.8408 | L34: 0.9396419053 | M34: 5.310641469 | N34: 180650.4956 | O34: 0.3006720871 | P34: 6.125421396 | Q34: 219147.6715 | R34: 0.1303005112 | S34: 7.966977438 | T34: 307735.6808 | U34: 1.490165698 | V34: 10.37835813 | W34: 253511.7724 | X34: 0.8357398312 | Y34: 8.467019656 | Z34: 220074.608 | AA34: 1.096749203 | AB34: 8.274068964 | AC34: 163264.6494 | AD34: 0.9557542299 | AE34: 7.149660763 | AF34: 145604.9087 | AG34: 1.08101792 | AH34: 12.7887616 | AI34: 211163.5132 | AJ34: 0.7977779693 | AK34: 7.994455419
A35: 2006-12-01 | B35: 151170.9353 | C35: 0.5396612368 | D35: 5.175144474 | E35: 167446.6759 | F35: 1.113694886 | G35: 7.903429015 | H35: 165267.6146 | I35: 0.6643239198 | J35: 7.689981832 | K35: 170999.672 | L35: 0.123445521 | M35: 5.920798662 | N35: 181885.6147 | O35: 0.6837064121 | P35: 6.251117399 | Q35: 221292.5924 | R35: 0.9787559489 | S35: 8.037832552 | T35: 313222.9571 | U35: 1.783113455 | V35: 10.79215441 | W35: 255954.8375 | X35: 0.9636889875 | Y35: 8.486258855 | Z35: 223320.1214 | AA35: 1.474733244 | AB35: 8.826848715 | AC35: 163971.0296 | AD35: 0.4326595808 | AE35: 6.811451375 | AF35: 147695.7705 | AG35: 1.435983062 | AH35: 14.09557011 | AI35: 213373.8108 | AJ35: 1.046723247 | AK35: 8.22885042
A36: 2007-01-01 | B36: 153212.6286 | C36: 1.350585918 | D36: 6.242827334 | E36: 167835.4665 | F36: 0.2321877056 | G36: 7.243516652 | H36: 165481.1121 | I36: 0.1291829067 | J36: 6.672617479 | K36: 172908.6643 | L36: 1.116371927 | M36: 7.005341435 | N36: 183621.8451 | O36: 0.9545727272 | P36: 6.376918674 | Q36: 223010.7391 | R36: 0.776414024 | S36: 8.719295975 | T36: 318733.1242 | U36: 1.759183687 | V36: 12.14170605 | W36: 258410.1306 | X36: 0.9592681001 | Y36: 8.748183843 | Z36: 223890.433 | AA36: 0.2553784772 | AB36: 8.897049339 | AC36: 164470.5277 | AD36: 0.3046258205 | AE36: 7.353790784 | AF36: 150281.5895 | AG36: 1.750773885 | AH36: 16.01410011 | AI36: 215210.6548 | AJ36: 0.8608573108 | AK36: 8.607912135
A37: 2007-02-01 | B37: 154132.146 | C37: 0.6001577086 | D37: 5.499774276 | E37: 170398.5203 | F37: 1.527122873 | G37: 8.264088076 | H37: 166477.5743 | I37: 0.6021607099 | J37: 6.342295541 | K37: 174765.0387 | L37: 1.073615577 | M37: 7.553577056 | N37: 184034.6971 | O37: 0.2248381517 | P37: 5.805852616 | Q37: 226013.6634 | R37: 1.346537961 | S37: 9.102333259 | T37: 324266.6569 | U37: 1.73610217 | V37: 12.97700937 | W37: 261994.0428 | X37: 1.386908573 | Y37: 9.41882304 | Z37: 226535.9179 | AA37: 1.181598009 | AB37: 9.386776521 | AC37: 165413.0492 | AD37: 0.5730640878 | AE37: 6.608931 | AF37: 152393.0755 | AG37: 1.405019757 | AH37: 16.47510566 | AI37: 217819.5534 | AJ37: 1.21225345 | AK37: 9.011448518
A38: 2007-03-01 | B38: 153796.2836 | C38: -0.2179055072 | D38: 5.496766563 | E38: 171102.3765 | F38: 0.4130647281 | G38: 7.411945121 | H38: 166453.0589 | I38: -0.0147259518 | J38: 5.739549583 | K38: 175490.389 | L38: 0.4150431267 | M38: 6.94871384 | N38: 184525.8939 | O38: 0.2669044327 | P38: 5.680289226 | Q38: 228141.2322 | R38: 0.9413452088 | S38: 9.502630904 | T38: 327686.2436 | U38: 1.054560059 | V38: 14.00026616 | W38: 264521.7383 | X38: 0.9647912054 | Y38: 9.758061485 | Z38: 227548.6321 | AA38: 0.4470435605 | AB38: 9.101636857 | AC38: 165986.2329 | AD38: 0.3465165918 | AE38: 6.324351056 | AF38: 151623.5641 | AG38: -0.5049516768 | AH38: 13.9328939 | AI38: 219232.9827 | AJ38: 0.648899195 | AK38: 9.079823967
A39: 2007-04-01 | B39: 153306.1855 | C39: -0.3186670933 | D39: 4.888119886 | E39: 171947.9144 | F39: 0.4941707761 | G39: 7.775136523 | H39: 168067.5233 | I39: 0.9699217366 | J39: 6.689680779 | K39: 175935.0939 | L39: 0.2534070065 | M39: 6.9099634 | N39: 185044.5517 | O39: 0.2810758875 | P39: 5.539035031 | Q39: 229562.1949 | R39: 0.6228434597 | S39: 8.79053951 | T39: 331438.2819 | U39: 1.145009424 | V39: 14.22070474 | W39: 267148.5636 | X39: 0.9930470468 | Y39: 10.04891628 | Z39: 231538.4639 | AA39: 1.753397408 | AB39: 10.16242496 | AC39: 165438.2323 | AD39: -0.3301481999 | AE39: 6.34834338 | AF39: 152523.2587 | AG39: 0.5933738352 | AH39: 13.14323872 | AI39: 221043.7838 | AJ39: 0.8259711125 | AK39: 9.29453561
A40: 2007-05-01 | B40: 153291.2911 | C40: -0.009715440417 | D40: 5.172528868 | E40: 171797.1379 | F40: -0.08768731364 | G40: 7.053382729 | H40: 168594.8448 | I40: 0.3137557287 | J40: 6.943206128 | K40: 176919.784 | L40: 0.5596894133 | M40: 7.16181864 | N40: 185701.5551 | O40: 0.3550514924 | P40: 5.709816356 | Q40: 230760.012 | R40: 0.5217832441 | S40: 9.018408964 | T40: 335058.256 | U40: 1.09220156 | V40: 14.75473963 | W40: 268028.1243 | X40: 0.3292402862 | Y40: 9.705506681 | Z40: 233288.2398 | AA40: 0.7557171442 | AB40: 10.5928585 | AC40: 165234.2346 | AD40: -0.1233074936 | AE40: 6.400897269 | AF40: 154099.198 | AG40: 1.033245263 | AH40: 12.76099668 | AI40: 222128.2176 | AJ40: 0.4905968012 | AK40: 9.38771905
A41: 2007-06-01 | B41: 154332.1307 | C41: 0.6789945935 | D41: 5.387366498 | E41: 171935.7285 | F41: 0.08067108617 | G41: 7.293025884 | H41: 169050.8382 | I41: 0.2704669687 | J41: 7.52711989 | K41: 177380.1573 | L41: 0.2602158117 | M41: 7.068955692 | N41: 186361.6428 | O41: 0.3554561842 | P41: 5.453269461 | Q41: 231661.439 | R41: 0.3906339984 | S41: 8.923992166 | T41: 341147.308 | U41: 1.817311428 | V41: 16.06855742 | W41: 271048.5504 | X41: 1.126906411 | Y41: 10.70931739 | Z41: 234541.6806 | AA41: 0.5372927425 | AB41: 10.93277232 | AC41: 166210.621 | AD41: 0.5909105201 | AE41: 6.728398209 | AF41: 158000.2447 | AG41: 2.531516507 | AH41: 14.56844157 | AI41: 223865.0023 | AJ41: 0.781883904 | AK41: 9.907093282
A42: 2007-07-01 | B42: 153856.2511 | C42: -0.3083476685 | D42: 5.482791171 | E42: 172485.7111 | F42: 0.3198768483 | G42: 7.066136055 | H42: 168118.1179 | I42: -0.5517395263 | J42: 6.590571923 | K42: 177688.1302 | L42: 0.1736231015 | M42: 6.68698649 | N42: 185734.3909 | O42: -0.3365777712 | P42: 5.027751197 | Q42: 232522.3041 | R42: 0.3716048012 | S42: 9.08233809 | T42: 345723.0659 | U42: 1.341285067 | V42: 16.9127846 | W42: 271546.7474 | X42: 0.1838035982 | Y42: 10.247051 | Z42: 234565.781 | AA42: 0.01027553699 | AB42: 10.57617712 | AC42: 167409.4193 | AD42: 0.7212524999 | AE42: 6.694526823 | AF42: 159739.3802 | AG42: 1.100716966 | AH42: 15.09066702 | AI42: 224582.1446 | AJ42: 0.3203458614 | AK42: 9.788295271
A43: 2007-08-01 | B43: 153527.4457 | C43: -0.2137095156 | D43: 5.645471341 | E43: 173201.2745 | F43: 0.4148536952 | G43: 6.514265366 | H43: 169579.5358 | I43: 0.8692804373 | J43: 6.904124023 | K43: 177672.2344 | L43: -0.008945918262 | M43: 6.514916053 | N43: 187485.295 | O43: 0.9426924793 | P43: 5.307998468 | Q43: 234126.1136 | R43: 0.6897443952 | S43: 8.567702132 | T43: 350544.8726 | U43: 1.394702048 | V43: 17.81542712 | W43: 274624.2134 | X43: 1.133309848 | Y43: 11.14018704 | Z43: 235307.2027 | AA43: 0.3160826617 | AB43: 10.45880608 | AC43: 169150.6809 | AD43: 1.040121652 | AE43: 7.275830494 | AF43: 161105.9838 | AG43: 0.8555207929 | AH43: 15.37239127 | AI43: 226402.2515 | AJ43: 0.8104414765 | AK43: 10.05676094
A44: 2007-09-01 | B44: 153306.5354 | C44: -0.1438897409 | D44: 4.383457076 | E44: 175113.3345 | F44: 1.103952627 | G44: 7.01237715 | H44: 171678.4468 | I44: 1.237714783 | J44: 6.858754307 | K44: 179700.275 | L44: 1.141450543 | M44: 6.60646449 | N44: 188846.1603 | O44: 0.725851725 | P44: 5.462644997 | Q44: 235523.7707 | R44: 0.5969675926 | S44: 8.642533973 | T44: 353255.6183 | U44: 0.7732949104 | V44: 17.46247711 | W44: 276717.6531 | X44: 0.7622924549 | Y44: 11.0358211 | Z44: 236826.9041 | AA44: 0.6458371598 | AB44: 10.36131028 | AC44: 170205.6651 | AD44: 0.6236949175 | AE44: 7.300198375 | AF44: 161757.2291 | AG44: 0.4042340649 | AH44: 14.31062696 | AI44: 228182.408 | AJ44: 0.7862803922 | AK44: 10.00360973
A45: 2007-10-01 | B45: 154325.8041 | C45: 0.6648566006 | D45: 4.001351081 | E45: 175460.2461 | F45: 0.1981068865 | G45: 6.035818025 | H45: 173951.8695 | I45: 1.324233047 | J45: 6.748618523 | K45: 179998.2656 | L45: 0.1658264213 | M45: 6.382597261 | N45: 189661.2038 | O45: 0.4315912728 | P45: 5.303592692 | Q45: 237043.3721 | R45: 0.6452008675 | S45: 8.306987312 | T45: 354492.2891 | U45: 0.3500781937 | V45: 16.91033382 | W45: 278744.9315 | X45: 0.7326162064 | Y45: 10.87237141 | Z45: 238363.7171 | AA45: 0.6489182303 | AB45: 9.498306676 | AC45: 171612.3731 | AD45: 0.8264754516 | AE45: 6.117623304 | AF45: 162485.0432 | AG45: 0.4499422992 | AH45: 12.79944966 | AI45: 229491.543 | AJ45: 0.5737230259 | AK45: 9.54656535
A46: 2007-11-01 | B46: 155800.6115 | C46: 0.9556454137 | D46: 3.618732502 | E46: 175291.0317 | F46: -0.09644025847 | G46: 5.85055693 | H46: 174160.2625 | I46: 0.1197992242 | J46: 6.080826067 | K46: 179425.3263 | L46: -0.3183026714 | M46: 5.0568207 | N46: 189143.3396 | O46: -0.2730469816 | P46: 4.701256956 | Q46: 235737.7096 | R46: -0.5508116159 | S46: 7.570255253 | T46: 353503.9267 | U46: -0.2788107059 | V46: 14.87258345 | W46: 279556.5508 | X46: 0.2911691704 | Y46: 10.2735972 | Z46: 237810.582 | AA46: -0.2320550332 | AB46: 8.059073319 | AC46: 171008.494 | AD46: -0.3518855258 | AE46: 4.74312391 | AF46: 163144.5254 | AG46: 0.4058725085 | AH46: 12.04603391 | AI46: 229231.0879 | AJ46: -0.1134922497 | AK46: 8.556201032
A47: 2007-12-01 | B47: 155788.7215 | C47: -0.007631569437 | D47: 3.054678613 | E47: 174768.2856 | F47: -0.2982161102 | G47: 4.372502297 | H47: 174299.9886 | I47: 0.08022843933 | J47: 5.465301831 | K47: 178283.2614 | L47: -0.6365126456 | M47: 4.259417171 | N47: 187869.5771 | O47: -0.6734377056 | P47: 3.28995914 | Q47: 237398.5283 | R47: 0.704519741 | S47: 7.278117975 | T47: 354308.1694 | U47: 0.2275060181 | V47: 13.11692243 | W47: 280299.8258 | X47: 0.2658764407 | Y47: 9.511439038 | Z47: 238219.3506 | AA47: 0.1718882831 | AB47: 6.671691311 | AC47: 170416.6619 | AD47: -0.3460834954 | AE47: 3.930957998 | AF47: 163273.6763 | AG47: 0.07916353511 | AH47: 10.5472931 | AI47: 229404.4603 | AJ47: 0.07563214828 | AK47: 7.512941467
A48: 2008-01-01 | B48: 159237.5539 | C48: 2.213788268 | D48: 3.932394711 | E48: 174950.7592 | F48: 0.1044088636 | G48: 4.239445264 | H48: 173996.6264 | I48: -0.1740460193 | J48: 5.145913125 | K48: 178140.6406 | L48: -0.07999671046 | M48: 3.025861274 | N48: 187975.7836 | O48: 0.05653207021 | P48: 2.37114407 | Q48: 237392.0307 | R48: -0.002737003084 | S48: 6.448699141 | T48: 357235.3237 | U48: 0.8261605513 | V48: 12.07976095 | W48: 282359.7347 | X48: 0.7348948174 | Y48: 9.268059292 | Z48: 235641.3262 | AA48: -1.08220612 | AB48: 5.248501718 | AC48: 168709.502 | AD48: -1.001756446 | AE48: 2.577345845 | AF48: 162766.3035 | AG48: -0.310749911 | AH48: 8.307547237 | AI48: 229854.0072 | AJ48: 0.1959626016 | AK48: 6.804194905
A49: 2008-02-01 | B49: 161368.3357 | C49: 1.338115128 | D49: 4.694795919 | E49: 175628.3343 | F49: 0.3872947113 | G49: 3.069166308 | H49: 173521.6343 | I49: -0.272989247 | J49: 4.231236535 | K49: 179193.6015 | L49: 0.5910840336 | M49: 2.534009592 | N49: 188571.5985 | O49: 0.3169636042 | P49: 2.465242381 | Q49: 241246.0593 | R49: 1.623486923 | S49: 6.739590743 | T49: 360023.7653 | U49: 0.780561543 | V49: 11.0270691 | W49: 282615.6736 | X49: 0.09064284789 | Y49: 7.871030404 | Z49: 234373.834 | AA49: -0.537890428 | AB49: 3.459899983 | AC49: 168222.0051 | AD49: -0.2889563588 | AE49: 1.698146526 | AF49: 162599.0163 | AG49: -0.1027775816 | AH49: 6.697115802 | AI49: 230778.5966 | AJ49: 0.402250723 | AK49: 5.949439812
A50: 2008-03-01 | B50: 162579.9458 | C50: 0.7508350845 | D50: 5.711231774 | E50: 174313.3788 | F50: -0.7487149027 | G50: 1.87665557 | H50: 173568.2282 | I50: 0.0268519098 | J50: 4.274580037 | K50: 177795.5165 | L50: -0.780209222 | M50: 1.313534931 | N50: 189373.5831 | O50: 0.4252944844 | P50: 2.627105113 | Q50: 240047.7626 | R50: -0.496711432 | S50: 5.21892964 | T50: 358759.5553 | U50: -0.3511462466 | V50: 9.482641509 | W50: 282287.6683 | X50: -0.1160605561 | Y50: 6.716245733 | Z50: 233407.3725 | AA50: -0.4123589679 | AB50: 2.574720126 | AC50: 167924.9251 | AD50: -0.1765999706 | AE50: 1.16798378 | AF50: 163226.9607 | AG50: 0.3861920275 | AH50: 7.652766004 | AI50: 230153.0804 | AJ50: -0.2710460507 | AK50: 4.981046871
A51: 2008-04-01 | B51: 160205.6485 | C51: -1.46038758 | D51: 4.50044661 | E51: 173618.7558 | F51: -0.3984909093 | G51: 0.9717136575 | H51: 173126.4342 | I51: -0.2545362182 | J51: 3.010046631 | K51: 176942.1487 | L51: -0.4799715141 | M51: 0.5724013115 | N51: 189273.8576 | O51: -0.05266069387 | P51: 2.285560919 | Q51: 240005.9057 | R51: -0.01743688655 | S51: 4.549403612 | T51: 358290.4645 | U51: -0.1307535446 | V51: 8.101714259 | W51: 281256.4177 | X51: -0.3653190329 | Y51: 5.280902087 | Z51: 234656.6765 | AA51: 0.5352461678 | AB51: 1.346736337 | AC51: 167180.9745 | AD51: -0.4430257368 | AE51: 1.053409587 | AF51: 163660.6831 | AG51: 0.2657174022 | AH51: 7.30211546 | AI51: 229721.0047 | AJ51: -0.1877340509 | AK51: 3.925566541
A52: 2008-05-01 | B52: 158845.5385 | C52: -0.8489775451 | D52: 3.623328746 | E52: 171641.5292 | F52: -1.138832358 | G52: -0.09057700059 | H52: 171466.5002 | I52: -0.9587986776 | J52: 1.703287774 | K52: 174480.8385 | L52: -1.391025381 | M52: -1.378560075 | N52: 187529.0238 | O52: -0.9218567563 | P52: 0.9840890496 | Q52: 237894.7416 | R52: -0.8796300589 | S52: 3.091839686 | T52: 356643.9712 | U52: -0.4595414704 | V52: 6.442376753 | W52: 280931.0951 | X52: -0.1156676186 | Y52: 4.814036142 | Z52: 234690.9253 | AA52: 0.01459527025 | AB52: 0.6012671436 | AC52: 164783.2983 | AD52: -1.434180034 | AE52: -0.2729072587 | AF52: 163596.9019 | AG52: -0.03897163279 | AH52: 6.163370081 | AI52: 228299.8295 | AJ52: -0.6186527024 | AK52: 2.778400669
A53: 2008-06-01 | B53: 156666.7176 | C53: -1.371660127 | D53: 1.512703097 | E53: 170988.5318 | F53: -0.3804425383 | G53: -0.5509016133 | H53: 168795.6436 | I53: -1.557655062 | J53: -0.1509573149 | K53: 174860.5655 | L53: 0.2176325194 | M53: -1.420447334 | N53: 185459.7044 | O53: -1.103466193 | P53: -0.4839721085 | Q53: 236450.0616 | R53: -0.6072769779 | S53: 2.06707797 | T53: 354336.5855 | U53: -0.64697175 | V53: 3.866153174 | W53: 278357.7687 | X53: -0.9159991327 | Y53: 2.696645398 | Z53: 232397.5624 | AA53: -0.97718432 | AB53: -0.9141736186 | AC53: 163270.5147 | AD53: -0.9180442581 | AE53: -1.768903988 | AF53: 163574.5757 | AG53: -0.01364711094 | AH53: 3.528052119 | AI53: 226513.4825 | AJ53: -0.7824565554 | AK53: 1.183070196
A54: 2008-07-01 | B54: 152987.42 | C54: -2.348487077 | D54: -0.5647031976 | E54: 169128.0286 | F54: -1.088086566 | G54: -1.946643878 | H54: 165719.6116 | I54: -1.822340861 | J54: -1.426679246 | K54: 172779.726 | L54: -1.189999333 | M54: -2.762370342 | N54: 182917.4986 | O54: -1.370759111 | P54: -1.516623976 | Q54: 232658.1895 | R54: -1.6036672 | S54: 0.0584397522 | T54: 349323.581 | U54: -1.414757815 | V54: 1.041444843 | W54: 274375.5228 | X54: -1.430621418 | Y54: 1.041726864 | Z54: 228765.354 | AA54: -1.562928763 | AB54: -2.472835939 | AC54: 161586.9967 | AD54: -1.0311219 | AE54: -3.477954001 | AF54: 162941.5597 | AG54: -0.3869891934 | AH54: 2.004627504 | AI54: 223227.0558 | AJ54: -1.450874619 | AK54: -0.6033822387
A55: 2008-08-01 | B55: 149893.5152 | C55: -2.022326293 | D55: -2.366958248 | E55: 167277.505 | F55: -1.094155486 | G55: -3.420165068 | H55: 164056.0885 | I55: -1.003817883 | J55: -3.257142601 | K55: 170160.8072 | L55: -1.515755845 | M55: -4.227687684 | N55: 180870.7177 | O55: -1.118963979 | P55: -3.528051284 | Q55: 228074.6351 | R55: -1.970080865 | S55: -2.584708933 | T55: 344758.6893 | U55: -1.30678028 | V55: -1.650625572 | W55: 270334.6878 | X55: -1.472738907 | Y55: -1.56196194 | Z55: 225315.9487 | AA55: -1.507835577 | AB55: -4.246046859 | AC55: 161598.383 | AD55: 0.007046575197 | AE55: -4.464834444 | AF55: 161729.2375 | AG55: -0.7440227412 | AH55: 0.3868594226 | AI55: 220141.0875 | AJ55: -1.382434722 | AK55: -2.765504278
A56: 2008-09-01 | B56: 148459.4469 | C56: -0.9567246724 | D56: -3.161697264 | E56: 164673.0942 | F56: -1.556940235 | G56: -5.961990454 | H56: 162226.2895 | I56: -1.115349664 | J56: -5.505733245 | K56: 166679.8464 | L56: -2.045688913 | M56: -7.245636445 | N56: 178152.6991 | O56: -1.502741076 | P56: -5.662525073 | Q56: 223245.5957 | R56: -2.117306622 | S56: -5.213136201 | T56: 338018.9739 | U56: -1.954908044 | V56: -4.313206507 | W56: 266369.1573 | X56: -1.46689665 | Y56: -3.73973099 | Z56: 221472.2589 | AA56: -1.705911102 | AB56: -6.483488558 | AC56: 159497.606 | AD56: -1.299998774 | AE56: -6.291247154 | AF56: 159850.6008 | AG56: -1.161593737 | AH56: -1.178697418 | AI56: 216463.2716 | AJ56: -1.670663103 | AK56: -5.135863228
A57: 2008-10-01 | B57: 146877.7939 | C57: -1.06537712 | D57: -4.826159942 | E57: 161399.119 | F57: -1.988166432 | G57: -8.013853483 | H57: 160634.6393 | I57: -0.981129603 | J57: -7.65569823 | K57: 164568.1258 | L57: -1.266932166 | M57: -8.572382459 | N57: 175526.5018 | O57: -1.474127126 | P57: -7.452605858 | Q57: 218210.2785 | R57: -2.255505742 | S57: -7.944999021 | T57: 331665.9121 | U57: -1.879498582 | V57: -6.439174482 | W57: 260054.0946 | X57: -2.370793489 | Y57: -6.70535487 | Z57: 218069.9252 | AA57: -1.536234673 | AB57: -8.513792312 | AC57: 157410.4047 | AD57: -1.308609819 | AE57: -8.275608672 | AF57: 157854.0797 | AG57: -1.248991899 | AH57: -2.850086038 | AI57: 212510.6568 | AJ57: -1.825997896 | AK57: -7.399351611
A58: 2008-11-01 | B58: 144590.2116 | C58: -1.557473248 | D58: -7.195350418 | E58: 159680.2211 | F58: -1.064998305 | G58: -8.90565276 | H58: 158131.334 | I58: -1.558384513 | J58: -9.203550969 | K58: 162536.9498 | L58: -1.234246307 | M58: -9.412481962 | N58: 172331.6265 | O58: -1.820166941 | P58: -8.888345308 | Q58: 213010.3722 | R58: -2.382979534 | S58: -9.640942671 | T58: 322987.0219 | U58: -2.616756765 | V58: -8.632691877 | W58: 252245.1397 | X58: -3.002819469 | Y58: -9.769547896 | Z58: 213934.8469 | AA58: -1.896216704 | AB58: -10.03981192 | AC58: 154725.4185 | AD58: -1.705723497 | AE58: -9.521793455 | AF58: 157197.2337 | AG58: -0.4161096108 | AH58: -3.645412946 | AI58: 207922.6284 | AJ58: -2.158963903 | AK58: -9.295623747
A59: 2008-12-01 | B59: 142734.9854 | C59: -1.283092495 | D59: -8.379127801 | E59: 158092.9224 | F59: -0.9940484472 | G59: -9.541412624 | H59: 156680.3772 | I59: -0.9175643447 | J59: -10.10878513 | K59: 160037.0736 | L59: -1.53803562 | M59: -10.23438074 | N59: 170302.4444 | O59: -1.177486775 | P59: -9.350706471 | Q59: 210396.5661 | R59: -1.227079255 | S59: -11.37410683 | T59: 320020.9685 | U59: -0.9183196782 | V59: -9.677225594 | W59: 244854.9403 | X59: -2.929768795 | Y59: -12.64534697 | Z59: 210158.0124 | AA59: -1.765413427 | AB59: -11.77962165 | AC59: 153321.3264 | AD59: -0.9074734497 | AE59: -10.031493 | AF59: 156414.4071 | AG59: -0.4979900704 | AH59: -4.201087028 | AI59: 204675.2422 | AJ59: -1.561824333 | AK59: -10.77974596
A60: 2009-01-01 | B60: 142272.2163 | C60: -0.324215604 | D60: -10.65410589 | E60: 158728.7583 | F60: 0.4021912465 | G60: -9.27232384 | H60: 155385.5363 | I60: -0.8264219112 | J60: -10.69623618 | K60: 158265.1521 | L60: -1.107194435 | M60: -11.15718935 | N60: 169110.9254 | O60: -0.6996487851 | P60: -10.03579178 | Q60: 211045.9671 | R60: 0.3086556924 | S60: -11.09812472 | T60: 317058.6913 | U60: -0.9256509982 | V60: -11.24654529 | W60: 241586.0694 | X60: -1.335023454 | Y60: -14.44032569 | Z60: 206793.1709 | AA60: -1.601100714 | AB60: -12.24240065 | AC60: 154171.8972 | AD60: 0.554763559 | AE60: -8.616944866 | AF60: 153799.6623 | AG60: -1.671677706 | AH60: -5.508905106 | AI60: 203165.3302 | AJ60: -0.7377111248 | AK60: -11.6111428
A61: 2009-02-01 | B61: 142700.4351 | C61: 0.3009855001 | D61: -11.56850294 | E61: 156853.7623 | F61: -1.181257892 | G61: -10.6899448 | H61: 154228.3487 | I61: -0.7447202285 | J61: -11.11866288 | K61: 157532.6757 | L61: -0.4628159163 | M61: -12.08800181 | N61: 168150.1037 | O61: -0.568160629 | P61: -10.8295708 | Q61: 210140.2536 | R61: -0.4291545896 | S61: -12.89380882 | T61: 315274.4375 | U61: -0.5627518828 | V61: -12.42954829 | W61: 240306.2459 | X61: -0.529758805 | Y61: -14.97065861 | Z61: 205050.2925 | AA61: -0.8428124014 | AB61: -12.51143999 | AC61: 153079.9372 | AD61: -0.7082743289 | AE61: -9.001240886 | AF61: 150926.732 | AG61: -1.867969234 | AH61: -7.178570066 | AI61: 201911.844 | AJ61: -0.6169784123 | AK61: -12.50841849
A62: 2009-03-01 | B62: 142179.2847 | C62: -0.3652058951 | D62: -12.54807968 | E62: 156436.2217 | F62: -0.2661973751 | G62: -10.2557573 | H62: 152516.3356 | I62: -1.110050891 | J62: -12.12888603 | K62: 157101.0668 | L62: -0.2739805849 | M62: -11.63946658 | N62: 165757.004 | O62: -1.423192527 | P62: -12.47089414 | Q62: 207602.2366 | R62: -1.207772897 | S62: -13.51627926 | T62: 311789.2141 | U62: -1.105457024 | V62: -13.09242933 | W62: 238714.5507 | X62: -0.6623611602 | Y62: -15.43571416 | Z62: 203507.1477 | AA62: -0.7525689337 | AB62: -12.81031724 | AC62: 152157.4447 | AD62: -0.6026214593 | AE62: -9.389600998 | AF62: 146795.0469 | AG62: -2.737543589 | AH62: -10.06691159 | AI62: 200225.8128 | AJ62: -0.8350333071 | AK62: -13.00320095
A63: 2009-04-01 | B63: 142592.9294 | C63: 0.2909318068 | D63: -10.99381902 | E63: 154900.1516 | F63: -0.9819145627 | G63: -10.78144124 | H63: 151046.608 | I63: -0.9636525526 | J63: -12.75358453 | K63: 156006.6347 | L63: -0.6966420545 | M63: -11.83184117 | N63: 164974.463 | O63: -0.4721013266 | P63: -12.83822021 | Q63: 205551.1143 | R63: -0.9880058663 | S63: -14.35580982 | T63: 310563.1066 | U63: -0.3932488311 | V63: -13.32085628 | W63: 239733.5539 | X63: 0.4268710002 | Y63: -14.76334804 | Z63: 203124.5365 | AA63: -0.1880086905 | AB63: -13.43756354 | AC63: 149533.2529 | AD63: -1.724655509 | AE63: -10.55605856 | AF63: 148864.3103 | AG63: 1.409627517 | AH63: -9.040884226 | AI63: 199383.576 | AJ63: -0.420643473 | AK63: -13.2062058
A64: 2009-05-01 | B64: 141806.1044 | C64: -0.5517980874 | D64: -10.72704609 | E64: 154814.4136 | F64: -0.05535054625 | G64: -9.803638854 | H64: 150734.1709 | I64: -0.2068481804 | J64: -12.09118359 | K64: 155521.5786 | L64: -0.3109201756 | M64: -10.86609857 | N64: 164978.9647 | O64: 0.002728762076 | P64: -12.02483679 | Q64: 205689.3329 | R64: 0.06724291817 | S64: -13.53767153 | T64: 314190.1917 | U64: 1.167905956 | V64: -11.90368631 | W64: 239652.2529 | X64: -0.03391306454 | Y64: -14.6935825 | Z64: 204945.3248 | AA64: 0.8963901422 | AB64: -12.6743718 | AC64: 148523.9376 | AD64: -0.6749771798 | AE64: -9.867116936 | AF64: 149504.0764 | AG64: 0.4297645978 | AH64: -8.614359672 | AI64: 199859.2526 | AJ64: 0.2385736194 | AK64: -12.457555
A65: 2009-06-01 | B65: 142112.1059 | C65: 0.2157886913 | D65: -9.290174643 | E65: 154704.29 | F65: -0.07113264016 | G65: -9.523587145 | H65: 151373.4973 | I65: 0.4241416872 | J65: -10.32144307 | K65: 156257.5461 | L65: 0.4732253055 | M65: -10.63877349 | N65: 168508.0615 | O65: 2.13911925 | P65: -9.140337481 | Q65: 207510.2557 | R65: 0.8852782 | S65: -12.23928879 | T65: 316770.1766 | U65: 0.8211538612 | V65: -10.60189957 | W65: 242237.8977 | X65: 1.078915318 | Y65: -12.97605995 | Z65: 206214.4292 | AA65: 0.6192404519 | AB65: -11.2665266 | AC65: 148482.0361 | AD65: -0.02821195874 | AE65: -9.057654204 | AF65: 151057.2046 | AG65: 1.038853437 | AH65: -7.652394026 | AI65: 201412.9252 | AJ65: 0.7773833631 | AK65: -11.08126412
A66: 2009-07-01 | B66: 141113.3695 | C66: -0.7027807058 | D66: -7.761455495 | E66: 156667.0416 | F66: 1.268711803 | G66: -7.367783513 | H66: 153273.0402 | I66: 1.254871486 | J66: -7.510620678 | K66: 158269.9796 | L66: 1.28789527 | M66: -8.397829255 | N66: 169209.6608 | O66: 0.4163595025 | P66: -7.494000222 | Q66: 209377.246 | R66: 0.8997098786 | S66: -10.00650078 | T66: 320724.6418 | U66: 1.248370431 | V66: -8.186947787 | W66: 243249.7461 | X66: 0.4177085508 | Y66: -11.34422501 | Z66: 207390.1367 | AA66: 0.5701383065 | AB66: -9.343730162 | AC66: 148859.7214 | AD66: 0.2543642918 | AE66: -7.876422972 | AF66: 149437.3088 | AG66: -1.072372441 | AH66: -8.287787953 | AI66: 203027.6098 | AJ66: 0.8016787387 | AK66: -9.048834141
A67: 2009-08-01 | B67: 142369.9187 | C67: 0.8904536837 | D67: -5.019294192 | E67: 158374.8441 | F67: 1.090084087 | G67: -5.322090925 | H67: 155687.8632 | I67: 1.57550409 | J67: -5.100831905 | K67: 159393.568 | L67: 0.7099188433 | M67: -6.327684588 | N67: 171455.8149 | O67: 1.327438443 | P67: -5.205321714 | Q67: 212227.0878 | R67: 1.361103856 | S67: -6.948404102 | T67: 323824.8543 | U67: 0.9666274901 | V67: -6.072025335 | W67: 246893.315 | X67: 1.497871614 | Y67: -8.671241157 | Z67: 208002.5917 | AA67: 0.2953154076 | AB67: -7.68403527 | AC67: 151320.039 | AD67: 1.652775896 | AE67: -6.36042508 | AF67: 149093.5981 | AG67: -0.230003233 | AH67: -7.812835537 | AI67: 205323.7096 | AJ67: 1.130929823 | AK67: -6.730855241
A68: 2009-09-01 | B68: 145739.0334 | C68: 2.366451245 | D68: -1.832428722 | E68: 160293.3772 | F68: 1.211387547 | G68: -2.659643347 | H68: 158266.7874 | I68: 1.656470955 | J68: -2.440727733 | K68: 160916.4163 | L68: 0.9554013115 | M68: -3.457784662 | N68: 171280.7424 | O68: -0.1021093918 | P68: -3.857340751 | Q68: 213712.9123 | R68: 0.7001106798 | S68: -4.270043228 | T68: 331379.5269 | U68: 2.332950208 | V68: -1.964223168 | W68: 250639.2162 | X68: 1.517214496 | Y68: -5.905316225 | Z68: 210124.1943 | AA68: 1.019988524 | AB68: -5.123921466 | AC68: 152922.9643 | AD68: 1.059294826 | AE68: -4.122094309 | AF68: 149564.1865 | AG68: 0.3156328587 | AH68: -6.435017579 | AI68: 208069.0928 | AJ68: 1.33709993 | AK68: -3.877876724
A69: 2009-10-01 | B69: 148677.7211 | C69: 2.016404054 | D69: 1.225459045 | E69: 161619.7893 | F69: 0.8274902439 | G69: 0.136723327 | H69: 160271.5078 | I69: 1.266671529 | J69: -0.2260605509 | K69: 161618.711 | L69: 0.4364345213 | M69: -1.79221509 | N69: 171657.641 | O69: 0.2200472296 | P69: -2.204146285 | Q69: 216416.1366 | R69: 1.264885828 | S69: -0.8222077728 | T69: 334477.3138 | U69: 0.9348154043 | V69: 0.8476607292 | W69: 254551.8462 | X69: 1.561060573 | Y69: -2.115809193 | Z69: 213299.0593 | AA69: 1.510946945 | AB69: -2.187768848 | AC69: 155822.9342 | AD69: 1.896359979 | AE69: -1.008491477 | AF69: 150756.779 | AG69: 0.7973784032 | AH69: -4.496114827 | AI69: 210492.42 | AJ69: 1.164674281 | AK69: -0.9497108811
A70: 2009-11-01 | B70: 149765.9173 | C70: 0.7319161148 | D70: 3.579568563 | E70: 162890.8843 | F70: 0.7864724154 | G70: 2.010683079 | H70: 161232.0523 | I70: 0.5993233229 | J70: 1.960850035 | K70: 162335.3698 | L70: 0.4434256178 | M70: -0.1240210316 | N70: 170931.1149 | O70: -0.423241297 | P70: -0.8126839886 | Q70: 215208.3369 | R70: -0.558091353 | S70: 1.031858045 | T70: 336300.8803 | U70: 0.5451988717 | V70: 4.122103218 | W70: 254575.2213 | X70: 0.009182838563 | Y70: 0.9237369769 | Z70: 213707.7485 | AA70: 0.1916038435 | AB70: -0.1061530415 | AC70: 156172.3797 | AD70: 0.2242580837 | AE70: 0.935180067 | AF70: 152367.7202 | AG70: 1.068569637 | AH70: -3.072263682 | AI70: 210907.5998 | AJ70: 0.1972421632 | AK70: 1.435616395
A71: 2009-12-01 | B71: 147186.9538 | C71: -1.721996285 | D71: 3.119044967 | E71: 163755.921 | F71: 0.5310528365 | G71: 3.58206966 | H71: 163758.9341 | I71: 1.56723295 | J71: 4.517832437 | K71: 164390.0752 | L71: 1.26571642 | M71: 2.719995757 | N71: 175208.1814 | O71: 2.502216441 | P71: 2.880602833 | Q71: 221488.0505 | R71: 2.917969511 | S71: 5.271704102 | T71: 342174.16 | U71: 1.746435999 | V71: 6.922418723 | W71: 260762.6124 | X71: 2.430476571 | Y71: 6.496774012 | Z71: 220579.467 | AA71: 3.21547465 | AB71: 4.958866201 | AC71: 157865.7668 | AD71: 1.084306379 | AE71: 2.963997604 | AF71: 153494.4965 | AG71: 0.7395111326 | AH71: -1.866778582 | AI71: 215086.6215 | AJ71: 1.981446721 | AK71: 5.086779991
A72: 2010-01-01 | B72: 149794.2231 | C72: 1.771399689 | D72: 5.287052462 | E72: 164155.9039 | F72: 0.2442555521 | G72: 3.41913192 | H72: 164957.8543 | I72: 0.7321250436 | J72: 6.16036619 | K72: 167522.7991 | L72: 1.905664809 | M72: 5.84945383 | N72: 179548.9936 | O72: 2.477516853 | P72: 6.172320456 | Q72: 224301.7104 | R72: 1.270343874 | S72: 6.280974468 | T72: 349722.2008 | U72: 2.205906149 | V72: 10.30203886 | W72: 265160.3978 | X72: 1.686509168 | Y72: 9.7581489 | Z72: 223800.6889 | AA72: 1.460345318 | AB72: 8.224409889 | AC72: 157597.8797 | AD72: -0.1696929805 | AE72: 2.222183504 | AF72: 154264.3099 | AG72: 0.5015251441 | AH72: 0.302112247 | AI72: 218354.7965 | AJ72: 1.51946922 | AK72: 7.476406675
A73: 2010-02-01 | B73: 151740.6326 | C73: 1.299388926 | D73: 6.335087567 | E73: 164912.6964 | F73: 0.461020555 | G73: 5.137864701 | H73: 166105.8483 | I73: 0.695931702 | J73: 7.701242775 | K73: 168721.3072 | L73: 0.715429877 | M73: 7.102419491 | N73: 182316.4892 | O73: 1.541359566 | P73: 8.424844956 | Q73: 229961.5161 | R73: 2.523300273 | S73: 9.43239674 | T73: 357966.881 | U73: 2.357494075 | V73: 13.54135902 | W73: 270281.8973 | X73: 1.931472266 | Y73: 12.47393769 | Z73: 227729.2961 | AA73: 1.755404428 | AB73: 11.06021524 | AC73: 158697.6181 | AD73: 0.6978129754 | AE73: 3.669769529 | AF73: 155047.7352 | AG73: 0.5078461082 | AH73: 2.730466121 | AI73: 222015.5501 | AJ73: 1.676516246 | AK73: 9.956675042
A74: 2010-03-01 | B74: 153799.0882 | C74: 1.356561901 | D74: 8.172641716 | E74: 165504.6331 | F74: 0.3589394589 | G74: 5.796874486 | H74: 164133.8799 | I74: -1.187175762 | J74: 7.617245921 | K74: 166905.7216 | L74: -1.07608557 | M74: 6.240985484 | N74: 179483.4975 | O74: -1.553886748 | P74: 8.281094098 | Q74: 227966.0976 | R74: -0.8677184301 | S74: 9.809075923 | T74: 356724.1127 | U74: -0.347174095 | V74: 14.41194775 | W74: 269193.9658 | X74: -0.4025173408 | Y74: 12.76814297 | Z74: 224990.369 | AA74: -1.202711819 | AB74: 10.55649474 | AC74: 157347.5489 | AD74: -0.8507180032 | AE74: 3.411009068 | AF74: 155372.8453 | AG74: 0.2096838361 | AH74: 5.843384078 | AI74: 220623.6627 | AJ74: -0.6269324355 | AK74: 10.18742266
A75: 2010-04-01 | B75: 151792.5026 | C75: -1.30467977 | D75: 6.451633482 | E75: 166045.1713 | F75: 0.3266000491 | G75: 7.194970153 | H75: 163302.1393 | I75: -0.5067452402 | J75: 8.11374148 | K75: 165855.9522 | L75: -0.628959478 | M75: 6.313396566 | N75: 177623.2723 | O75: -1.036432435 | P75: 7.667131674 | Q75: 227903.9222 | R75: -0.02727397284 | S75: 10.87457392 | T75: 354124.7906 | U75: -0.728664534 | V75: 14.02667704 | W75: 268827.6408 | X75: -0.1360821571 | Y75: 12.13600954 | Z75: 225341.3339 | AA75: 0.1559910635 | AB75: 10.93752518 | AC75: 156667.509 | AD75: -0.4321896918 | AE75: 4.771016453 | AF75: 156155.6673 | AG75: 0.5038345395 | AH75: 4.897988692 | AI75: 219905.9007 | AJ75: -0.3253331874 | AK75: 10.29288623
A76: 2010-05-01 | B76: 149708.0553 | C76: -1.373221552 | D76: 5.572362989 | E76: 165602.4471 | F76: -0.2666287727 | G76: 6.968365094 | H76: 162412.8428 | I76: -0.5445712579 | J76: 7.747859605 | K76: 166347.7918 | L76: 0.2965462211 | M76: 6.961228967 | N76: 176785.2794 | O76: -0.4717810302 | P76: 7.156254532 | Q76: 228860.3541 | R76: 0.4196645085 | S76: 11.26505728 | T76: 352996.6157 | U76: -0.3185811725 | V76: 12.35125254 | W76: 271019.1443 | X76: 0.8152076298 | Y76: 13.08850263 | Z76: 226251.2469 | AA76: 0.403793209 | AB76: 10.39590536 | AC76: 156381.0779 | AD76: -0.1828273804 | AE76: 5.290150839 | AF76: 156107.0169 | AG76: -0.03115508882 | AH76: 4.416562212 | AI76: 220113.6265 | AJ76: 0.09446123487 | AK76: 10.13431882
A77: 2010-06-01 | B77: 149588.2725 | C77: =B77/B76*100-100 -> -0.08001091448 | D77: 5.260752775 | E77: 163617.9682 | F77: =E77/E76*100-100 -> -1.198339144 | G77: 5.76175243 | H77: 161906.2183 | I77: =H77/H76*100-100 -> -0.3119362505 | J77: 6.958101077 | K77: 167313.1364 | L77: =K77/K76*100-100 -> 0.5803170668 | M77: 7.07523612 | N77: 178392.9994 | O77: =N77/N76*100-100 -> 0.9094196535 | P77: 5.866151348 | Q77: 230562.3447 | R77: =Q77/Q76*100-100 -> 0.7436808418 | S77: 11.10889141 | T77: 357489.4917 | U77: =T77/T76*100-100 -> 1.272781595 | V77: 12.85452928 | W77: 272036.2319 | X77: =W77/W76*100-100 -> 0.3752825879 | Y77: 12.3012685 | Z77: 225721.3393 | AA77: -0.2342119867 | AB77: 9.459527243 | AC77: 156827.2198 | AD77: =AC77/AC76*100-100 -> 0.285291468 | AE77: 5.62033222 | AF77: 156318.9484 | AG77: 0.1357603774 | AH77: 3.483278931 | AI77: 220921.7171 | AJ77: =AI77/AI76*100-100 -> 0.3671243125 | AK77: 9.685968217
A78: 2010-07-01 | B78: 148878.6406 | C78: -0.4743900195 | D78: 5.502860013 | E78: 162767.0298 | F78: -0.5200763484 | G78: 3.893600201 | H78: 162042.798 | I78: 0.08435729258 | J78: 5.721657105 | K78: 166468.9878 | L78: -0.5045321439 | M78: 5.180393819 | N78: 178042.7382 | O78: -0.1963424628 | P78: 5.220196851 | Q78: 232042.7009 | R78: 0.6420633093 | S78: 10.82517578 | T78: 361176.3501 | U78: 1.031319399 | V78: 12.61259757 | W78: 273511.2545 | X78: 0.5422154657 | Y78: 12.44050972 | Z78: 225881.0145 | AA78: 0.0707399442 | AB78: 8.915987087 | AC78: 156506.7311 | AD78: -0.204357836 | AE78: 5.137057663 | AF78: 156630.8326 | AG78: 0.1995178452 | AH78: 4.813740203 | AI78: 221564.9158 | AJ78: 0.2911432413 | AK78: 9.130435997
A79: 2010-08-01 | B79: 148165.5035 | C79: -0.4790056419 | D79: 4.07079315 | E79: 163557.1983 | F79: 0.4854597786 | G79: 3.272207937 | H79: 163186.6747 | I79: 0.7059102824 | J79: 4.816567841 | K79: 166326.1185 | L79: -0.08582339735 | M79: 4.349328883 | N79: 179937.7852 | O79: 1.064377576 | P79: 4.947029813 | Q79: 232939.3817 | R79: 0.3864292397 | S79: 9.759495928 | T79: 363573.839 | U79: 0.6638000597 | V79: 12.27484058 | W79: 273825.2251 | X79: 0.1147925927 | Y79: 10.90831887 | Z79: 225592.8579 | AA79: -0.1275700681 | AB79: 8.456753385 | AC79: 156909.3564 | AD79: 0.2572574955 | AE79: 3.693706046 | AF79: 157714.7397 | AG79: 0.6920138856 | AH79: 5.782368707 | AI79: 222318.0293 | AJ79: 0.3399064902 | AK79: 8.276842331
A80: 2010-09-01 | B80: 149175.1539 | C80: 0.6814341831 | D80: 2.357721533 | E80: 165473.0623 | F80: 1.171372509 | G80: 3.231378132 | H80: 163349.1148 | I80: 0.09954249385 | J80: 3.211240642 | K80: 166234.1716 | L80: -0.05528108175 | M80: 3.30466928 | N80: 179886.9555 | O80: -0.02824851496 | P80: 5.02462384 | Q80: 232765.3407 | R80: -0.07471515403 | S80: 8.914963659 | T80: 361657.1619 | U80: -0.5271768228 | V80: 9.136845383 | W80: 273006.9263 | X80: -0.2988398205 | Y80: 8.924265897 | Z80: 226189.6667 | AA80: 0.2645513045 | AB80: 7.64570332 | AC80: 156904.6212 | AD80: -0.003017790354 | AE80: 2.60370109 | AF80: 158489.2857 | AG80: 0.4911056539 | AH80: 5.967403954 | AI80: 222269.4252 | AJ80: -0.02186241335 | AK80: 6.824815863
A81: 2010-10-01 | B81: 149689.1568 | C81: 0.3445633311 | D81: 0.6802873137 | E81: 164825.1382 | F81: -0.3915587112 | G81: 1.983265109 | H81: 161978.7726 | I81: -0.8389039534 | J81: 1.065232933 | K81: 165943.1817 | L81: -0.175048224 | M81: 2.675723987 | N81: 179762.4083 | O81: -0.06923637258 | P81: 4.721471903 | Q81: 230945.2283 | R81: -0.7819516721 | S81: 6.713497375 | T81: 361214.1058 | U81: -0.1225072307 | V81: 7.99360401 | W81: 271628.5844 | X81: -0.5048743206 | Y81: 6.708550144 | Z81: 225560.9987 | AA81: -0.2779384369 | AB81: 5.748707667 | AC81: 156098.8725 | AD81: -0.5135277027 | AE81: 0.1770845216 | AF81: 158618.0518 | AG81: 0.08124596815 | AH81: 5.214540177 | AI81: 221434.6842 | AJ81: -0.3755536882 | AK81: 5.198412473
A82: 2010-11-01 | B82: 147834.4989 | C82: -1.239006164 | D82: -1.289624795 | E82: 163229.3311 | F82: -0.9681818255 | G82: 0.2077751612 | H82: 161060.1593 | I82: -0.5671195706 | J82: -0.1066121536 | K82: 164827.0289 | L82: -0.6726114265 | M82: 1.53488365 | N82: 177795.1036 | O82: -1.094391578 | P82: 4.015646103 | Q82: 228075.4316 | R82: -1.242630837 | S82: 5.978901635 | T82: 361496.1745 | U82: 0.07808907864 | V82: 7.491890645 | W82: 269158.5056 | X82: -0.9093589386 | Y82: 5.72847753 | Z82: 224401.2101 | AA82: -0.5141795815 | AB82: 5.00377813 | AC82: 154335.6122 | AD82: -1.129579163 | AE82: -1.176115501 | AF82: 157714.6747 | AG82: -0.5695298658 | AH82: 3.509243599 | AI82: 219854.9235 | AJ82: -0.7134206106 | AK82: 4.242295557
A83: 2010-12-01 | B83: 146070.5948 | C83: -1.193161375 | D83: -0.7584632897 | E83: 162308.7636 | F83: -0.563971859 | G83: -0.8837282637 | H83: 159797.2731 | I83: -0.7841083891 | J83: -2.419202991 | K83: 163870.7494 | L83: -0.580171503 | M83: -0.3159106968 | N83: 176787.5889 | O83: -0.5666718144 | P83: 0.9014461787 | Q83: 228225.5662 | R83: 0.06582672002 | S83: 3.041931913 | T83: 364411.3025 | U83: 0.8064063075 | V83: 6.498779016 | W83: 268901.0878 | X83: -0.09563799163 | Y83: 3.1210285 | Z83: 226337.3691 | AA83: 0.8628113109 | AB83: 2.610352724 | AC83: 153126.5091 | AD83: -0.7834245338 | AE83: -3.002080684 | AF83: 158307.8245 | AG83: 0.3760904456 | AH83: 3.135831022 | AI83: 219866.0297 | AJ83: 0.005051579166 | AK83: 2.222085282
A84: 2011-01-01 | B84: 145807.1338 | C84: -0.1803655595 | D84: -2.661710991 | E84: 161763.4204 | F84: -0.3359912642 | G84: -1.457445938 | H84: 160264.7137 | I84: 0.2925210329 | J84: -2.845054324 | K84: 163878.8932 | L84: 0.0049696479 | M84: -2.175170106 | N84: 176588.1145 | O84: -0.1128327705 | P84: -1.649064715 | Q84: 228449.5139 | R84: 0.09812560164 | S84: 1.849207264 | T84: 366666.4845 | U84: 0.6188562157 | V84: 4.845069495 | W84: 271413.4633 | X84: 0.9343121247 | Y84: 2.358220007 | Z84: 225034.9881 | AA84: -0.5754158278 | AB84: 0.551517141 | AC84: 153393.4987 | AD84: 0.1743588581 | AE84: -2.667790292 | AF84: 157982.6848 | AG84: -0.2053844987 | AH84: 2.410392146 | AI84: 220405.9993 | AJ84: 0.2455902931 | AK84: 0.9393898416
A85: 2011-02-01 | B85: 149256.8748 | C85: 2.365961786 | D85: -1.636844223 | E85: 161634.1789 | F85: -0.0798953524 | G85: -1.988032176 | H85: 159157.7153 | I85: -0.6907312363 | J85: -4.182955073 | K85: 163907.3087 | L85: 0.01733932401 | M85: -2.853224995 | N85: 175499.2093 | O85: -0.6166356288 | P85: -3.739255813 | Q85: 230495.3534 | R85: 0.89553242 | S85: 0.2321420207 | T85: 372367.6552 | U85: 1.5548655 | V85: 4.022934785 | W85: 275310.6173 | X85: 1.435873484 | Y85: 1.860546345 | Z85: 226669.7381 | AA85: 0.7264425706 | AB85: -0.4652708752 | AC85: 154082.8144 | AD85: 0.4493773613 | AE85: -2.907922491 | AF85: 156846.6049 | AG85: -0.7191166935 | AH85: 1.160203762 | AI85: 222145.8852 | AJ85: 0.7894004549 | AK85: 0.05870539285
A86: 2011-03-01 | B86: 148313.8762 | C86: -0.6317957648 | D86: -3.566478882 | E86: 160278.2642 | F86: -0.8388787279 | G86: -3.157838456 | H86: 159815.3942 | I86: 0.4132246508 | J86: -2.631075148 | K86: 162996.3284 | L86: -0.5557899042 | M86: -2.34227629 | N86: 174977.7252 | O86: -0.2971432626 | P86: -2.510410314 | Q86: 230693.0011 | R86: 0.0857491238 | S86: 1.19618818 | T86: 375398.9111 | U86: 0.8140492051 | V86: 5.235081601 | W86: 277989.398 | X86: 0.9730030749 | Y86: 3.26732147 | Z86: 224302.4146 | AA86: -1.044393263 | AB86: -0.3057706005 | AC86: 153694.6105 | AD86: -0.2519449418 | AE86: -2.321573106 | AF86: 155576.2512 | AG86: -0.8099338297 | AH86: 0.1309147065 | AI86: 222431.1454 | AJ86: 0.1284111844 | AK86: 0.8192606075
A87: 2011-04-01 | B87: 147237.6792 | C87: -0.7256212191 | D87: -3.000690607 | E87: 158800.9712 | F87: -0.9217051051 | G87: -4.362788782 | H87: 159105.7203 | I87: -0.4440585169 | J87: -2.56972688 | K87: 161954.9061 | L87: -0.6389238197 | M87: -2.35206883 | N87: 174231.2399 | O87: -0.4266173537 | P87: -1.909677908 | Q87: 229402.2861 | R87: -0.5594946411 | S87: 0.6574542165 | T87: 370712.4 | U87: -1.248408293 | V87: 4.684114128 | W87: 272939.1993 | X87: -1.816687528 | Y87: 1.529440373 | Z87: 224025.5602 | AA87: -0.1234290711 | AB87: -0.5839024897 | AC87: 151662.5069 | AD87: -1.322169772 | AE87: -3.194665061 | AF87: 154727.9002 | AG87: -0.5452959297 | AH87: -0.9143229604 | AI87: 220277.3328 | AJ87: -0.9683053319 | AK87: 0.168905023
A88: 2011-05-01 | B88: 145641.8899 | C88: -1.083818563 | D88: =B88/B76*100-100 -> -2.71606314 | E88: 156927.587 | F88: -1.179705786 | G88: =E88/E76*100-100 -> -5.238364711 | H88: 157300.9076 | I88: -1.134348094 | J88: =H88/H76*100-100 -> -3.147494418 | K88: 160868.3421 | L88: -0.6709052268 | M88: =K88/K76*100-100 -> -3.293971976 | N88: 173970.6758 | O88: -0.1495507058 | P88: =N88/N76*100-100 -> -1.592102886 | Q88: 227165.0366 | R88: -0.9752516472 | S88: =Q88/Q76*100-100 -> -0.7407650443 | T88: 361471.8916 | U88: -2.492635362 | V88: =T88/T76*100-100 -> 2.400951031 | W88: 269149.4141 | X88: -1.388508954 | Y88: =W88/W76*100-100 -> -0.6898886029 | Z88: 221777.8344 | AA88: =Z88/Z87*100-100 -> -1.003334528 | AB88: =Z88/Z76*100-100 -> -1.977187981 | AC88: 149976.3431 | AD88: -1.111786849 | AE88: =AC88/AC76*100-100 -> -4.095594532 | AF88: 155224.671 | AG88: 0.3210609169 | AH88: -0.5652185827 | AI88: 217364.0707 | AJ88: -1.322542818 | AK88: =AI88/AI76*100-100 -> -1.249152906
A89: 2011-06-01 | B89: 144153.1356 | C89: -1.022202019 | D89: -3.633397707 | E89: 157149.5663 | F89: 0.1414533376 | G89: -3.953356692 | H89: 155777.3166 | I89: -0.9685837839 | J89: -3.785464066 | K89: 161772.5738 | L89: 0.5620942149 | M89: -3.311492895 | N89: 172243.4721 | O89: -0.9928131446 | P89: -3.447179747 | Q89: 225657.2436 | R89: -0.6637434078 | S89: -2.127451069 | T89: 356422.9784 | U89: -1.3967651 | V89: -0.2983341679 | W89: 266790.4226 | X89: -0.8764616682 | Y89: -1.92834949 | Z89: 220320.2795 | AA89: -0.6572139825 | AB89: -2.392799845 | AC89: 150239.0219 | AD89: 0.1751468747 | AE89: -4.200927543 | AF89: 154325.0782 | AG89: -0.5795424345 | AH89: -1.27551407 | AI89: 215781.5288 | AJ89: -0.7280605059 | AK89: -2.32670125
A90: 2011-07-01 | B90: 140438.367 | C90: -2.576959996 | D90: -5.669230743 | E90: 158685.2659 | F90: 0.9772216995 | G90: -2.507733834 | H90: 155732.4278 | I90: -0.02881595197 | J90: -3.894261399 | K90: 162267.6372 | L90: 0.3060243332 | M90: -2.523803794 | N90: 171364.1434 | O90: -0.5105149719 | P90: -3.751118927 | Q90: 226624.7497 | R90: 0.4287502844 | S90: -2.334894048 | T90: 362291.0083 | U90: 1.646366902 | V90: 0.3086188148 | W90: 268470.9902 | X90: 0.6299204796 | Y90: -1.8427996 | Z90: 220119.7059 | AA90: -0.09103724715 | AB90: -2.550594408 | AC90: 151123.4363 | AD90: 0.5886715742 | AE90: -3.439657008 | AF90: 154893.0133 | AG90: 0.3680121922 | AH90: -1.10950012 | AI90: 216886.9612 | AJ90: 0.5122924473 | AK90: -2.11132458
A91: 2011-08-01 | B91: 138472.1116 | C91: -1.400084174 | D91: -6.542273131 | E91: 159361.5553 | F91: 0.4261827988 | G91: -2.565245111 | H91: 157298.0667 | I91: 1.00533905 | J91: -3.608510317 | K91: 162734.1894 | L91: 0.2875201785 | M91: -2.159570079 | N91: 172575.7589 | O91: 0.7070414188 | P91: -4.091428798 | Q91: 227507.8559 | R91: 0.3896777448 | S91: -2.331733605 | T91: 368753.127 | U91: 1.783681779 | V91: 1.424549154 | W91: 270301.6101 | X91: 0.6818687983 | Y91: -1.286811705 | Z91: 220259.4363 | AA91: 0.06347926162 | AB91: -2.364180163 | AC91: 152962.6863 | AD91: 1.217051436 | AE91: -2.515254781 | AF91: 156049.771 | AG91: 0.7468107474 | AH91: -1.055683647 | AI91: 218462.386 | AJ91: 0.7263805696 | AK91: -1.734291782
A92: 2011-09-01 | B92: 138264.5122 | C92: -0.1499214971 | D92: -7.313980573 | E92: 158881.8941 | F92: -0.3009892576 | G92: -3.983227335 | H92: 157018.3652 | I92: -0.1778162509 | J92: -3.875594681 | K92: 162563.2711 | L92: -0.1050291431 | M92: -2.208270719 | N92: 172470.5018 | O92: -0.06099180946 | P92: -4.122841297 | Q92: 226858.5024 | R92: -0.2854202391 | S92: -2.537679481 | T92: 370701.0787 | U92: 0.5282536127 | V92: 2.500687868 | W92: 268981.9624 | X92: -0.4882130092 | Y92: -1.474308332 | Z92: 221703.219 | AA92: 0.6554918554 | AB92: -1.983489274 | AC92: 153232.8057 | AD92: 0.1765917233 | AE92: -2.34015762 | AF92: 157482.4961 | AG92: 0.9181205937 | AH92: -0.6352414492 | AI92: 218447.9596 | AJ92: -0.006603599201 | AK92: -1.719294321
A93: 2011-10-01 | B93: 140194.543 | C93: 1.395897452 | D93: -6.342886858 | E93: 158094.672 | F93: -0.4954762858 | G93: -4.083397863 | H93: 156429.9616 | I93: -0.374735523 | J93: -3.425640857 | K93: 162276.5015 | L93: -0.1764048845 | M93: -2.209599747 | N93: 173630.6811 | O93: 0.6726827467 | P93: -3.411017485 | Q93: 227093.3625 | R93: 0.1035270969 | S93: -1.667869834 | T93: 372851.0983 | U93: 0.5799873992 | V93: 3.221632906 | W93: 268108.9447 | X93: -0.3245636858 | Y93: -1.29575456 | Z93: 221866.654 | AA93: 0.07371793089 | AB93: -1.637847301 | AC93: 156145.139 | AD93: 1.900593859 | AE93: 0.02963925465 | AF93: 157767.5559 | AG93: 0.1810104648 | AH93: -0.5361911724 | AI93: 218746.4509 | AJ93: 0.1366418391 | AK93: -1.214007318
A94: 2011-11-01 | B94: 139290.4994 | C94: -0.6448493058 | D94: -5.779435501 | E94: 157259.8013 | F94: -0.5280827282 | G94: -3.657142839 | H94: 155862.7088 | I94: -0.3626241328 | J94: -3.227024305 | K94: 162700.9665 | L94: 0.2615689516 | M94: -1.289874841 | N94: 172021.0374 | O94: -0.9270502444 | P94: -3.247595719 | Q94: 225151.6004 | R94: -0.8550500987 | S94: -1.281957978 | T94: 371753.878 | U94: -0.2942783988 | V94: 2.837569027 | W94: 265779.0511 | X94: -0.869010011 | Y94: -1.25556297 | Z94: 220533.341 | AA94: -0.6009524188 | AB94: -1.72364006 | AC94: 155596.0399 | AD94: -0.3516594538 | AE94: 0.8166797791 | AF94: 157664.6474 | AG94: -0.06522790165 | AH94: -0.03172011751 | AI94: 217505.5387 | AJ94: -0.5672833518 | AK94: -1.06860686
A95: 2011-12-01 | B95: 139053.6559 | C95: -0.1700356566 | D95: -4.803799764 | E95: 155858.7283 | F95: -0.8909289073 | G95: -3.973929187 | H95: 157222.0374 | I95: 0.8721319721 | J95: -1.611564265 | K95: 162188.9559 | L95: -0.3146942358 | M95: -1.02629267 | N95: 173374.6517 | O95: 0.786888767 | P95: -1.930529872 | Q95: 225266.7507 | R95: 0.05114342952 | S95: -1.2964435 | T95: 373579.3893 | U95: 0.4910537263 | V95: 2.515862362 | W95: 264534.941 | X95: -0.4680993875 | Y95: -1.623699957 | Z95: 221353.1458 | AA95: 0.3717373719 | AB95: -2.202121262 | AC95: 154738.2691 | AD95: -0.5512806278 | AE95: 1.05256756 | AF95: 156849.9466 | AG95: -0.5167301785 | AH95: -0.920913367 | AI95: 217590.9114 | AJ95: 0.03925079607 | AK95: -1.034774807
A96: 2012-01-01 | B96: 140385.8271 | C96: 0.9580267325 | D96: -3.718135394 | E96: 156211.2754 | F96: 0.2261965922 | G96: -3.432262325 | H96: 157444.6547 | I96: 0.1415942127 | J96: -1.759625692 | K96: 162779.7812 | L96: 0.3642820662 | M96: -0.6706855212 | N96: 173723.4359 | O96: 0.2011737233 | P96: -1.622237513 | Q96: 226440.308 | R96: 0.5209633927 | S96: -0.8794966935 | T96: 374815.107 | U96: 0.3307777987 | V96: 2.222352691 | W96: 266188.4835 | X96: 0.6250752752 | Y96: -1.925099713 | Z96: 221503.8555 | AA96: 0.06808562335 | AB96: -1.569148266 | AC96: 153140.1232 | AD96: -1.03280583 | AE96: -0.1651801007 | AF96: 154933.5903 | AG96: -1.221776824 | AH96: -1.930018144 | AI96: 218300.9237 | AJ96: 0.3263060741 | AK96: -0.9550899509
A97: 2012-02-01 | B97: 143086.4213 | C97: 1.923694314 | D97: -4.134116802 | E97: 158015.1788 | F97: 1.154784358 | G97: -2.239006705 | H97: 158002.8857 | I97: 0.3545569996 | J97: -0.7255881961 | K97: 163690.6414 | L97: 0.5595659237 | M97: -0.1321889285 | N97: 173989.9219 | O97: 0.1533966655 | P97: -0.859996723 | Q97: 227494.6424 | R97: 0.4656125286 | S97: -1.301853115 | T97: 374670.0922 | U97: -0.03868968853 | V97: 0.618323581 | W97: 267345.534 | X97: 0.4346733951 | Y97: -2.893126069 | Z97: 221229.2193 | AA97: -0.1239870864 | AB97: -2.400196334 | AC97: 153326.255 | AD97: 0.1215434733 | AE97: -0.4910082744 | AF97: 154190.899 | AG97: -0.4793610274 | AH97: -1.693186711 | AI97: 219064.0398 | AJ97: 0.3495707046 | AK97: -1.387307008
A98: 2012-03-01 | B98: 144993.1573 | C98: 1.332576529 | D98: -2.238980563 | E98: 158558.8178 | F98: 0.3440422733 | G98: -1.072788225 | H98: 156613.3613 | I98: -0.8794297405 | J98: -2.003582253 | K98: 164002.6785 | L98: 0.1906261145 | M98: 0.617406587 | N98: 173185.4409 | O98: -0.462372183 | P98: -1.024292875 | Q98: 230172.0299 | R98: 1.176901338 | S98: -0.2258287815 | T98: 379765.5576 | U98: 1.359987245 | V98: 1.163201709 | W98: 272700.0143 | X98: 2.002831372 | Y98: -1.902728601 | Z98: 221644.4239 | AA98: 0.1876806976 | AB98: -1.185003172 | AC98: 154386.9378 | AD98: 0.6917815621 | AE98: 0.450456427 | AF98: 154402.8418 | AG98: 0.1374548003 | AH98: -0.7542342461 | AI98: 220982.893 | AJ98: 0.8759325466 | AK98: -0.6511014323
A99: 2012-04-01 | B99: 143922.1016 | C99: -0.7386939735 | D99: -2.251854033 | E99: 157387.1636 | F99: -0.7389397919 | G99: -0.8903016083 | H99: 157613.0846 | I99: 0.6383384056 | J99: -0.9381408601 | K99: 163866.8161 | L99: -0.08284155785 | M99: 1.180520003 | N99: 171862.6322 | O99: -0.7638105308 | P99: -1.359462096 | Q99: 229626.3126 | R99: -0.2370910875 | S99: 0.09765657532 | T99: 386413.1579 | U99: 1.75044844 | V99: 4.235293442 | W99: 274453.0276 | X99: 0.6428358208 | Y99: 0.5546393915 | Z99: 222479.6736 | AA99: 0.376842199 | AB99: -0.6900492151 | AC99: 154708.214 | AD99: 0.2080980768 | AE99: 2.008213661 | AF99: 155718.4891 | AG99: 0.8520874494 | AH99: 0.6402134557 | AI99: 221888.0727 | AJ99: 0.4096152747 | AK99: 0.7312327289
A100: 2012-05-01 | B100: 142765.1327 | C100: -0.803885533 | D100: -1.975226547 | E100: 156356.619 | F100: -0.6547831661 | G100: -0.363841705 | H100: 157775.553 | I100: 0.103080548 | J100: 0.3017435636 | K100: 163288.0127 | L100: -0.3532157403 | M100: 1.504131001 | N100: 172430.0767 | O100: 0.3301732584 | P100: -0.8855510604 | Q100: 232349.8033 | R100: 1.186053421 | S100: 2.28237884 | T100: 396795.199 | U100: 2.686772152 | V100: 9.77207586 | W100: 277514.1516 | X100: 1.115354428 | Y100: 3.107841627 | Z100: 225012.2899 | AA100: 1.138358525 | AB100: 1.458421451 | AC100: 154371.1453 | AD100: -0.2178738354 | AE100: 2.930330329 | AF100: 155855.9361 | AG100: 0.08826636884 | AH100: 0.4066783156 | AI100: 224080.2552 | AJ100: 0.9879677145 | AK100: 3.089831956
A101: 2012-06-01 | B101: 142291.9411 | C101: -0.3314475852 | D101: -1.291123159 | E101: 156972.7505 | F101: 0.394055278 | G101: -0.1125143468 | H101: 158665.6097 | I101: 0.5641283936 | J101: 1.854116635 | K101: 163572.5772 | L101: 0.1742715231 | M101: 1.112675297 | N101: 172755.8202 | O101: 0.1889133921 | P101: 0.2974557314 | Q101: 231805.1252 | R101: -0.2344216065 | S101: 2.7244335 | T101: 398148.7306 | U101: 0.3411159228 | V101: 11.70680759 | W101: 276663.4884 | X101: -0.3065296906 | Y101: 3.700682208 | Z101: 224243.9379 | AA101: -0.3414711058 | AB101: 1.780888488 | AC101: 153776.2551 | AD101: -0.3853635852 | AE101: 2.354403778 | AF101: 156411.4182 | AG101: 0.3564074083 | AH101: 1.351912497 | AI101: 224094.7671 | AJ101: 0.006476199712 | AK101: 3.852618156
A102: 2012-07-01 | B102: 141658.4963 | C102: -0.4451726598 | D102: 0.8688005466 | E102: 156362.48 | F102: -0.3887748129 | G102: -1.463769162 | H102: 157048.3036 | I102: -1.019317336 | J102: 0.8449594022 | K102: 162890.3049 | L102: -0.4171067908 | M102: 0.3837288256 | N102: 172670.6373 | O102: -0.04930826854 | P102: 0.7624079714 | Q102: 232467.6842 | R102: 0.2858258806 | S102: 2.578242013 | T102: 398925.0293 | U102: 0.1949770384 | V102: 10.11176654 | W102: 277337.9576 | X102: 0.2437868709 | Y102: 3.30276558 | Z102: 223054.1982 | AA102: -0.5305560178 | AB102: 1.333134755 | AC102: 153159.2271 | AD102: -0.4012504997 | AE102: 1.347104626 | AF102: 155810.8509 | AG102: -0.3839664314 | AH102: 0.5925622814 | AI102: 223904.7386 | AJ102: -0.08479828635 | AK102: 3.235684302
A103: 2012-08-01 | B103: 141366.1902 | C103: -0.2063455884 | D103: 2.090008276 | E103: 157796.2875 | F103: 0.9169766895 | G103: -0.982211676 | H103: 157081.6778 | I103: 0.02125088144 | J103: -0.137566198 | K103: 161990.2544 | L103: -0.5525500603 | M103: -0.4571473163 | N103: 172361.7893 | O103: -0.1788653857 | P103: -0.1239858855 | Q103: 231986.0076 | R103: -0.20720155 | S103: 1.968350337 | T103: 396910.5577 | U103: -0.5049749766 | V103: 7.63584865 | W103: 276172.4286 | X103: -0.4202558736 | Y103: 2.171950986 | Z103: 222740.67 | AA103: -0.1405614438 | AB103: 1.126505079 | AC103: 152417.4553 | AD103: -0.4843141988 | AE103: -0.3564470834 | AF103: 154795.8953 | AG103: -0.6514023721 | AH103: -0.8035101031 | AI103: 223391.425 | AJ103: -0.2292553532 | AK103: 2.2562415
A104: 2012-09-01 | B104: 140810.6799 | C104: -0.3929583843 | D104: 1.84151936 | E104: 157087.3764 | F104: -0.4492571462 | G104: -1.129466481 | H104: 157252.9054 | I104: 0.1090054865 | J104: 0.149371191 | K104: 162472.2059 | L104: 0.2975188116 | M104: -0.05601829634 | N104: 172238.1152 | O104: -0.07175260313 | P104: -0.1347398963 | Q104: 232684.2764 | R104: 0.3009960969 | S104: 2.568020982 | T104: 402180.403 | U104: 1.327716096 | V104: 8.491835099 | W104: 275308.3554 | X104: -0.3128745121 | Y104: 2.351976658 | Z104: 220705.991 | AA104: -0.9134744176 | AB104: -0.4498031068 | AC104: 153136.8815 | AD104: 0.4720104269 | AE104: -0.06260030028 | AF104: 154656.2693 | AG104: -0.09020004129 | AH104: -1.794629112 | AI104: 223676.6209 | AJ104: 0.1276664506 | AK104: 2.393550074
A105: 2012-10-01 | B105: 142355.8769 | C105: 1.097357777 | D105: 1.541667641 | E105: 158059.0441 | F105: 0.6185524313 | G105: -0.0225357659 | H105: 157117.8476 | I105: -0.08588575635 | J105: 0.4397405331 | K105: 163221.8019 | L105: 0.4613687524 | M105: 0.5825244913 | N105: 172797.0119 | O105: 0.324490696 | P105: -0.4801393509 | Q105: 233142.9515 | R105: 0.1971233946 | S105: 2.66392157 | T105: 403001.2132 | U105: 0.2040900438 | V105: 8.086368814 | W105: 274516.3155 | X105: -0.2876919252 | Y105: 2.38983852 | Z105: 221356.9241 | AA105: 0.2949322168 | AB105: -0.2297460712 | AC105: 153788.2148 | AD105: 0.4253274627 | AE105: -1.509444542 | AF105: 153768.6494 | AG105: -0.5739307675 | AH105: -2.534682375 | AI105: 224076.65 | AJ105: 0.1788425828 | AK105: 2.43670195
A106: 2012-11-01 | B106: 141950.1905 | C106: -0.2849803802 | D106: 1.909456231 | E106: 156148.6514 | F106: -1.208657679 | G106: -0.7065696085 | H106: 157093.5876 | I106: -0.01544060282 | J106: 0.7897198794 | K106: 163753.5093 | L106: 0.3257575851 | M106: 0.6469186043 | N106: 172658.6709 | O106: -0.0800597949 | P106: 0.3706718112 | Q106: 231576.4619 | R106: -0.6719009134 | S106: 2.853571306 | T106: 408029.1342 | U106: 1.247619312 | V106: 9.757868923 | W106: 275073.8452 | X106: 0.2030952932 | Y106: 3.497188391 | Z106: 220130.6256 | AA106: -0.5539914887 | AB106: -0.1826097652 | AC106: 153783.6259 | AD106: -0.002983855551 | AE106: -1.164820104 | AF106: 153214.7772 | AG106: -0.3601984045 | AH106: -2.822363962 | AI106: 224222.0196 | AJ106: 0.06487496025 | AK106: 3.087958546
A107: 2012-12-01 | B107: 141315.1312 | C107: -0.4473818074 | D107: 1.626332867 | E107: 156160.1075 | F107: 0.007336689269 | G107: 0.1933669109 | H107: 156331.2763 | I107: -0.4852593475 | J107: -0.5665624575 | K107: 163293.9266 | L107: -0.2806551633 | M107: 0.6812860343 | N107: 173495.1565 | O107: 0.484473533 | P107: 0.06950545336 | Q107: 232354.6075 | R107: 0.3360210337 | S107: 3.146428318 | T107: 407981.4693 | U107: -0.01168172154 | V107: 9.208773563 | W107: 277446.4093 | X107: 0.8625189529 | Y107: 4.880817722 | Z107: 222554.9678 | AA107: 1.101319814 | AB107: 0.5429432363 | AC107: 153455.9943 | AD107: -0.2130471295 | AE107: -0.8286733056 | AF107: 151743.7919 | AG107: -0.9600805624 | AH107: -3.255439215 | AI107: 224932.0686 | AJ107: 0.316672274 | AK107: 3.373834476
A108: 2013-01-01 | B108: 140849.852 | C108: -0.3292494217 | D108: 0.3305354033 | E108: 156662.0732 | F108: 0.3214429721 | G108: 0.2885820923 | H108: 156684.1568 | I108: 0.2257261122 | J108: -0.4830255012 | K108: 163552.4404 | L108: 0.1583119193 | M108: 0.4746653238 | N108: 174532.3614 | O108: 0.5978293235 | P108: 0.4656398325 | Q108: 232000.5738 | R108: -0.1523678313 | S108: 2.455510638 | T108: 413035.8465 | U108: 1.23887419 | V108: 10.19722492 | W108: 277912.263 | X108: 0.1679076465 | Y108: 4.404315075 | Z108: 222686.0796 | AA108: 0.05891213626 | AB108: 0.5337262178 | AC108: 152637.0557 | AD108: -0.5336635276 | AE108: -0.3285014583 | AF108: 151552.8719 | AG108: -0.125817337 | AH108: -2.182043523 | AI108: 225725.6907 | AJ108: 0.3528274924 | AK108: 3.401161513
A109: 2013-02-01 | B109: 143180.6671 | C109: 1.65482255 | D109: 0.06586634653 | E109: 158868.5828 | F109: 1.408451707 | G109: 0.5400772529 | H109: 156507.5352 | I109: -0.1127246284 | J109: -0.9464070879 | K109: 165533.6652 | L109: 1.211369763 | M109: 1.125918857 | N109: 176232.4095 | O109: 0.9740589707 | P109: 1.288860675 | Q109: 236090.1912 | R109: 1.762761739 | S109: 3.77835217 | T109: 415176.2458 | U109: 0.5182115304 | V109: 10.81115213 | W109: 279467.9587 | X109: 0.5597794269 | Y109: 4.534365874 | Z109: 224078.3585 | AA109: 0.6252204084 | AB109: 1.287867467 | AC109: 154666.4593 | AD109: 1.329561579 | AE109: 0.8740866234 | AF109: 152293.1593 | AG109: 0.4884680782 | AH109: -1.230772849 | AI109: 227657.6836 | AJ109: 0.8559029548 | AK109: 3.922891127
A110: 2013-03-01 | B110: 143466.6331 | C110: 0.199723908 | D110: -1.052825025 | E110: 158788.9722 | F110: -0.0501109802 | G110: 0.1451539704 | H110: 157047.1087 | I110: 0.3447588309 | J110: 0.2769542797 | K110: 164655.1996 | L110: -0.5306869432 | M110: 0.3978722464 | N110: 175455.9445 | O110: -0.4405914896 | P110: 1.311024571 | Q110: 236202.6597 | R110: 0.04763795439 | S110: 2.620053274 | T110: 421489.5757 | U110: 1.520638517 | V110: 10.9867831 | W110: 281367.5235 | X110: 0.6797075676 | Y110: 3.178404417 | Z110: 223385.3111 | AA110: -0.3092879551 | AB110: 0.7854414735 | AC110: 154128.6042 | AD110: -0.3477516261 | AE110: -0.1673286664 | AF110: 152525.0153 | AG110: 0.1522432072 | AH110: -1.216186503 | AI110: 228536.3184 | AJ110: 0.3859456053 | AK110: 3.418104125
A111: 2013-04-01 | B111: 143318.4615 | C111: -0.1032794841 | D111: -0.4194214238 | E111: 158609.0917 | F111: -0.1132827658 | G111: 0.7763835692 | H111: 157832.7081 | I111: 0.5002316575 | J111: 0.1393434617 | K111: 164546.3853 | L111: -0.06608619528 | M111: 0.4147082211 | N111: 174885.4948 | O111: -0.3251241867 | P111: 1.75888299 | Q111: 238040.275 | R111: 0.7779824391 | S111: 3.664197842 | T111: 423833.7689 | U111: 0.5561687249 | V111: 9.684093374 | W111: 282052.5614 | X111: 0.2434672724 | Y111: 2.768974284 | Z111: 223789.5894 | AA111: 0.1809780392 | AB111: 0.5887800188 | AC111: 153856.5071 | AD111: -0.1765390078 | AE111: -0.5505247193 | AF111: 153011.7331 | AG111: 0.3191068746 | AH111: -1.738236716 | AI111: 229161.736 | AJ111: 0.2736622393 | AK111: 3.278077643
A112: 2013-05-01 | B112: 141464.52 | C112: -1.293581772 | D112: -0.9110156264 | E112: 157496.9854 | F112: -0.7011617728 | G112: 0.7293368325 | H112: 158053.02 | I112: 0.1395857308 | J112: 0.1758618687 | K112: 163498.853 | L112: -0.636618213 | M112: 0.1291217186 | N112: 173638.9289 | O112: -0.7127897984 | P112: 0.7010680558 | Q112: 236905.0556 | R112: -0.476902239 | S112: 1.960514787 | T112: 425421.861 | U112: 0.3746969199 | V112: 7.214467829 | W112: 283181.4577 | X112: 0.4002432328 | Y112: 2.042168307 | Z112: 223552.8131 | AA112: -0.1058030886 | AB112: -0.6486209113 | AC112: 152667.9426 | AD112: -0.7725149476 | AE112: -1.103316784 | AF112: 153179.3681 | AG112: 0.1095569283 | AH112: -1.717334686 | AI112: 228933.7457 | AJ112: -0.09948881507 | AK112: 2.165960799
A113: 2013-06-01 | B113: 142695.03 | C113: 0.8698364858 | D113: 0.283283033 | E113: 158995.0466 | F113: 0.9511682027 | G113: 1.288310322 | H113: 158388.0149 | I113: 0.2119509236 | J113: -0.1749558846 | K113: 164942.0943 | L113: 0.8827225636 | M113: 0.8372534513 | N113: 175330.2352 | O113: 0.9740363951 | P113: 1.490204521 | Q113: 237958.3084 | R113: 0.4445885817 | S113: 2.654463837 | T113: 425299.2969 | U113: -0.02881000916 | V113: 6.819202024 | W113: 281541.21 | X113: -0.5792214414 | Y113: 1.763052158 | Z113: 223239.223 | AA113: -0.1402756619 | AB113: -0.4480455563 | AC113: 151816.91 | AD113: -0.5574402657 | AE113: -1.274153255 | AF113: 153311.4429 | AG113: 0.08622234234 | AH113: -1.981936709 | AI113: 229215.6185 | AJ113: 0.1231241571 | AK113: 2.285127588
A114: 2013-07-01 | B114: 142725.6737 | C114: 0.02147497271 | D114: 0.7533451872 | E114: 159794.6823 | F114: 0.5029311876 | G114: 2.195029359 | H114: 157946.3104 | I114: -0.2788749126 | J114: 0.5718029331 | K114: 165168.9135 | L114: 0.1375144541 | M114: 1.398860784 | N114: 175974.065 | O114: 0.3672097683 | P114: 1.91313807 | Q114: 238650.9899 | R114: 0.2910936453 | S114: 2.65985602 | T114: 427395.2618 | U114: 0.4928211324 | V114: 7.136737587 | W114: 282727.6442 | X114: 0.4214069591 | Y114: 1.943364204 | Z114: 224582.8982 | AA114: 0.6018992711 | AB114: 0.6853491106 | AC114: 152384.6136 | AD114: 0.3739396669 | AE114: -0.5057570058 | AF114: 154180.6524 | AG114: 0.5669566705 | AH114: -1.046267646 | AI114: 230067.8738 | AJ114: 0.3718138008 | AK114: 2.752570228
A115: 2013-08-01 | B115: 143003.6146 | C115: 0.19473783 | D115: 1.158285725 | E115: 160754.4721 | F115: 0.6006393743 | G115: 1.874685822 | H115: 159676.056 | I115: 1.095147827 | J115: 1.651610984 | K115: 165522.5837 | L115: 0.2141263497 | M115: 2.180581327 | N115: 177393.6353 | O115: 0.8066929077 | P115: 2.919351221 | Q115: 239723.8927 | R115: 0.4495697963 | S115: 3.335496476 | T115: 433011.6586 | U115: 1.314098991 | V115: 9.095525479 | W115: 282530.1511 | X115: -0.0698527637 | Y115: 2.302084465 | Z115: 226961.0069 | AA115: 1.058900172 | AB115: 1.894731151 | AC115: 153470.5168 | AD115: 0.7126068197 | AE115: 0.6909061101 | AF115: 154227.5132 | AG115: 0.03039347193 | AH115: -0.367181629 | AI115: 231582.3515 | AJ115: 0.6582743219 | AK115: 3.666625301
A116: 2013-09-01 | B116: 142964.7283 | C116: -0.02719253067 | D116: 1.529747884 | E116: 161383.9275 | F116: 0.391563245 | G116: 2.735134581 | H116: 160015.9984 | I116: 0.212895019 | J116: 1.757101377 | K116: 167506.4889 | L116: 1.198570707 | M116: 3.098550261 | N116: 178023.74 | O116: 0.3552014084 | P116: 3.35908504 | Q116: 240673.8617 | R116: 0.3962763287 | S116: 3.433659311 | T116: 439368.7912 | U116: 1.468120421 | V116: 9.246693237 | W116: 282800.6335 | X116: 0.0957357679 | Y116: 2.721413272 | Z116: 228256.5593 | AA116: 0.5708259855 | AB116: 3.421098027 | AC116: 155604.0196 | AD116: 1.390171152 | AE116: 1.611067208 | AF116: 154663.3345 | AG116: 0.2825833462 | AH116: 0.004568284986 | AI116: 233071.2689 | AJ116: 0.6429321572 | AK116: 4.200102798
A117: 2013-10-01 | B117: 143894.9962 | C117: 0.650697504 | D117: 1.08117726 | E117: 161309.7639 | F117: -0.04595477594 | G117: 2.056648997 | H117: 161457.0414 | I117: 0.9005618109 | J117: 2.761744674 | K117: 167842.5353 | L117: 0.2006169696 | M117: 2.830953561 | N117: 179072.167 | O117: 0.5889253861 | P117: 3.631518296 | Q117: 240784.2623 | R117: 0.04587147171 | S117: 3.277521696 | T117: 445242.7404 | U117: 1.336906339 | V117: 10.48173698 | W117: 284973.4515 | X117: 0.7683214538 | Y117: 3.809294887 | Z117: 228575.747 | AA117: 0.1398372334 | AB117: 3.261168775 | AC117: 157184.6872 | AD117: 1.015826932 | AE117: 2.20853881 | AF117: 154718.4939 | AG117: 0.03566415864 | AH117: 0.6177100685 | AI117: 234544.7057 | AJ117: 0.6321829256 | AK117: 4.671640591
A118: 2013-11-01 | B118: 143856.8839 | C118: -0.0264861959 | D118: 1.343212975 | E118: 160869.7829 | F118: -0.2727553453 | G118: 3.023485298 | H118: 160754.9829 | I118: -0.4348267615 | J118: 2.330709586 | K118: 168942.5373 | L118: 0.6553773393 | M118: 3.168804123 | N118: 179682.1714 | O118: 0.3406472379 | P118: 4.06785271 | Q118: 241957.2972 | R118: 0.4871725442 | S118: 4.482681517 | T118: 451713.7669 | U118: 1.453370472 | V118: 10.70625333 | W118: 286466.3472 | X118: 0.523871875 | Y118: 4.141615866 | Z118: 227977.1372 | AA118: -0.2618868153 | AB118: 3.564479792 | AC118: 156865.5694 | AD118: -0.2030208789 | AE118: 2.00407779 | AF118: 155934.1541 | AG118: 0.7857239364 | AH118: 1.774878991 | AI118: 235649.6538 | AJ118: 0.47110341 | AK118: 5.0965709
A119: 2013-12-01 | B119: 144228.972 | C119: 0.2586515814 | D119: 2.061945374 | E119: 161045.8373 | F119: 0.1094390697 | G119: 3.128667012 | H119: 161882.4556 | I119: 0.7013609089 | J119: 3.55090764 | K119: 168634.1125 | L119: -0.1825619455 | M119: 3.27029055 | N119: 181002.5483 | O119: 0.7348402659 | P119: 4.327147777 | Q119: 242954.9472 | R119: 0.4123248534 | S119: 4.562138801 | T119: 458418.1747 | U119: 1.484215953 | V119: 12.36249907 | W119: 290961.582 | X119: 1.569201671 | Y119: 4.871273235 | Z119: 229925.7815 | AA119: 0.8547542722 | AB119: 3.311907105 | AC119: 157655.8791 | AD119: 0.5038133412 | AE119: 2.736865886 | AF119: 156825.8014 | AG119: 0.5718101288 | AH119: 3.349072413 | AI119: 237829.1321 | AJ119: 0.9248807549 | AK119: 5.733759359
A120: 2014-01-01 | B120: 146574.7449 | C120: 1.626422803 | D120: 4.06453601 | E120: 162750.8768 | F120: 1.058729308 | G120: 3.88658431 | H120: 162810.4123 | I120: 0.5732287471 | J120: 3.909939344 | K120: 172223.2648 | L120: 2.128366718 | M120: 5.301556129 | N120: 182124.8151 | O120: 0.6200281588 | P120: 4.350169557 | Q120: 245974.6531 | R120: 1.242907758 | S120: 6.023295132 | T120: 470761.0533 | U120: 2.692493282 | V120: 13.97583461 | W120: 294238.1481 | X120: 1.126116423 | Y120: 5.874474528 | Z120: 231124.134 | AA120: 0.5211909911 | AB120: 3.789215013 | AC120: 158486.9737 | AD120: 0.5271573996 | AE120: 3.832567419 | AF120: 158592.6047 | AG120: 1.126602435 | AH120: 4.645067217 | AI120: 241172.5179 | AJ120: 1.405793235 | AK120: 6.843185263
A121: 2014-02-01 | B121: 148186.9302 | C121: 1.099906602 | D121: 3.496465856 | E121: 163741.4334 | F121: 0.6086336904 | G121: 3.067221028 | H121: 163125.7133 | I121: 0.1936614207 | J121: 4.228664183 | K121: 173610.577 | L121: 0.8055312432 | M121: 4.879316733 | N121: 183679.8983 | O121: 0.8538557823 | P121: 4.225947324 | Q121: 249006.6522 | R121: 1.232646969 | S121: 5.47098588 | T121: 475168.9982 | U121: 0.9363444486 | V121: 14.44994818 | W121: 298174.9698 | X121: 1.337971196 | Y121: 6.693794589 | Z121: 233472.8958 | AA121: 1.016233886 | AB121: 4.192523267 | AC121: 160084.339 | AD121: 1.007884276 | AE121: 3.50294416 | AF121: 157170.3798 | AG121: -0.8967788391 | AH121: 3.202521027 | AI121: 243555.9015 | AJ121: 0.9882483944 | AK121: 6.983387353
A122: 2014-03-01 | B122: 150890.1695 | C122: 1.824208958 | D122: 5.174399238 | E122: 164797.4587 | F122: 0.644934682 | G122: 3.783944434 | H122: 164162.6631 | I122: 0.6356752953 | J122: 4.530840747 | K122: 175011.6606 | L122: 0.8070266421 | M122: 6.289786782 | N122: 184312.1244 | O122: 0.3441999271 | P122: 5.047523407 | Q122: 251908.1739 | R122: 1.165238606 | S122: 6.649169043 | T122: 482060.5939 | U122: 1.450346229 | V122: 14.37070372 | W122: 301572.6796 | X122: 1.13950203 | Y122: 7.181054803 | Z122: 236005.5895 | AA122: 1.084791347 | AB122: 5.649556095 | AC122: 159978.2385 | AD122: -0.06627787192 | AE122: 3.795294436 | AF122: 158037.2496 | AG122: 0.5515478543 | AH122: 3.61398706 | AI122: 246091.0443 | AJ122: 1.040887456 | AK122: 7.681372487
A123: 2014-04-01 | B123: 149931.9232 | C123: -0.6350620775 | D123: 4.614521851 | E123: 164225.9037 | F123: -0.3468227406 | G123: 3.541292554 | H123: 164311.6454 | I123: 0.09075281493 | J123: 4.104939563 | K123: 174411.4452 | L123: -0.3429573814 | M123: 5.995306377 | N123: 184522.2495 | O123: 0.1140050477 | P123: 5.510322464 | Q123: 254190.2772 | R123: 0.9059266592 | S123: 6.784567117 | T123: 487894.8105 | U123: 1.210266242 | V123: 15.11466199 | W123: 303529.2415 | X123: 0.648786181 | Y123: 7.614424771 | Z123: 238221.3643 | AA123: 0.9388653605 | AB123: 6.448814204 | AC123: 159647.8991 | AD123: -0.2064902219 | AE123: 3.764151506 | AF123: 158252.1308 | AG123: 0.1359687012 | AH123: 3.424833897 | AI123: 247497.8722 | AJ123: 0.5716696823 | AK123: 8.001395211
A124: 2014-05-01 | B124: 151120.9331 | C124: 0.7930331957 | D124: 6.826031812 | E124: 165423.3761 | F124: 0.7291617378 | G124: 5.032725361 | H124: 164757.4526 | I124: 0.2713180685 | J124: 4.241888273 | K124: 174727.5857 | L124: 0.1812613004 | M124: 6.867774565 | N124: 184791.5482 | O124: 0.1459437585 | P124: 6.422879623 | Q124: 256066.7856 | R124: 0.7382298251 | S124: 8.088358442 | T124: 500954.7693 | U124: 2.676798041 | V124: 17.7548253 | W124: 306419.3747 | X124: 0.9521762125 | Y124: 8.206016466 | Z124: 238559.6917 | AA124: 0.1420222911 | AB124: 6.712900794 | AC124: 158637.9837 | AD124: -0.6325892446 | AE124: 3.910474592 | AF124: 161224.4688 | AG124: 1.878229371 | AH124: 5.25207856 | AI124: 250020.4972 | AJ124: 1.019251172 | AK124: 9.210853281
A125: 2014-06-01 | B125: 149680.7686 | C125: -0.9529881376 | D125: 4.89557244 | E125: 165305.9584 | F125: -0.07098013776 | G125: 3.969250536 | H125: 164662.6738 | I125: -0.05752625533 | J125: 3.961574301 | K125: 175241.7108 | L125: 0.2942438209 | M125: 6.244383245 | N125: 185416.6092 | O125: 0.3382519361 | P125: 5.752786445 | Q125: 258811.5063 | R125: 1.071876881 | S125: 8.763382985 | T125: 512041.9099 | U125: 2.213201933 | V125: 20.39566338 | W125: 309125.9767 | X125: 0.8832998743 | Y125: 9.797772313 | Z125: 237961.5405 | AA125: -0.250734417 | AB125: 6.594861472 | AC125: 160036.2007 | AD125: 0.8813885524 | AE125: 5.413949419 | AF125: 162413.9296 | AG125: 0.7377669018 | AH125: 5.937251979 | AI125: 252131.9695 | AJ125: 0.8445196931 | AK125: 9.99772667
A126: 2014-07-01 | B126: 148926.1831 | C126: -0.5041298874 | D126: 4.344354587 | E126: 166159.1603 | F126: 0.5161350051 | G126: 3.98290975 | H126: 164963.4961 | I126: 0.1826900481 | J126: 4.442766425 | K126: 176867.5327 | L126: 0.9277596651 | M126: 7.082821421 | N126: 187407.7475 | O126: 1.073872661 | P126: 6.497367969 | Q126: 260110.4187 | R126: 0.5018758304 | S126: 8.991971414 | T126: 514440.211 | U126: 0.4683798456 | V126: 20.36638143 | W126: 312591.8383 | X126: 1.121180976 | Y126: 10.56288436 | Z126: 239130.8112 | AA126: 0.4913696433 | AB126: 6.477747477 | AC126: 160074.9121 | AD126: 0.0241891605 | AE126: 5.046637124 | AF126: 162928.1681 | AG126: 0.3166221934 | AH126: 5.673549592 | AI126: 253728.94 | AJ126: 0.6333867525 | AK126: 10.28438513
A127: 2014-08-01 | B127: 148611.0711 | C127: -0.2115893881 | D127: 3.921199118 | E127: 167365.3521 | F127: 0.7259255354 | G127: 4.112408127 | H127: 166008.0747 | I127: 0.6332180232 | J127: 3.965540488 | K127: 177945.3504 | L127: 0.6093926517 | M127: 7.50517935 | N127: 188928.8609 | O127: 0.8116598383 | P127: 6.50261529 | Q127: 262974.2762 | R127: 1.101016084 | S127: 9.698817798 | T127: 516890.5514 | U127: 0.4763119971 | V127: 19.37104722 | W127: 314524.9513 | X127: 0.6184144269 | Y127: 11.32438435 | Z127: 242141.8135 | AA127: 1.259144428 | AB127: 6.688728966 | AC127: 162232.278 | AD127: 1.347722653 | AE127: 5.709084305 | AF127: 163300.7034 | AG127: 0.2286500064 | AH127: 5.882990652 | AI127: 255600.623 | AJ127: 0.7376702814 | AK127: 10.37137386
A128: 2014-09-01 | B128: 147990.9101 | C128: -0.4173046762 | D128: 3.515679627 | E128: 168412.1489 | F128: 0.6254561312 | G128: 4.354969861 | H128: 167141.2723 | I128: 0.6826159675 | J128: 4.452850951 | K128: 179458.1855 | L128: 0.8501683737 | M128: 7.135064881 | N128: 189229.4709 | O128: 0.159112778 | P128: 6.294514945 | Q128: 264596.4069 | R128: 0.6168400561 | S128: 9.93981857 | T128: 521889.2884 | U128: 0.9670784072 | V128: 18.78160189 | W128: 315530.5347 | X128: 0.3197149593 | Y128: 11.57348932 | Z128: 243630.7823 | AA128: 0.6149160313 | AB128: 6.735501088 | AC128: 162804.5752 | AD128: 0.3527640759 | AE128: 4.62748684 | AF128: 163257.8471 | AG128: -0.02624378142 | AH128: 5.556916684 | AI128: 257111.2287 | AJ128: 0.5910023616 | AK128: 10.31442437
A129: 2014-10-01 | B129: 149505.4615 | C129: 1.023408372 | D129: 3.898999562 | E129: 169156.347 | F129: 0.4418909852 | G129: 4.864295217 | H129: 168713.0563 | I129: 0.9403925153 | J129: 4.494083929 | K129: 179049.7799 | L129: -0.2275770238 | M129: 6.677237448 | N129: 190619.2733 | O129: 0.7344534697 | P129: 6.44829765 | Q129: 266322.9583 | R129: 0.6525226033 | S129: 10.60646392 | T129: 523367.6073 | U129: 0.2832629388 | V129: 17.54657849 | W129: 315670.7377 | X129: 0.04443407495 | Y129: 10.77198107 | Z129: 244469.0827 | AA129: 0.3440863944 | AB129: 6.953203026 | AC129: 164548.1059 | AD129: 1.07093475 | AE129: 4.68456495 | AF129: 163717.4321 | AG129: 0.2815086954 | AH129: 5.81633008 | AI129: 258073.5809 | AJ129: 0.3742941011 | AK129: 10.03172299
A130: 2014-11-01 | B130: 148548.9353 | C130: -0.6397934595 | D130: 3.261610631 | E130: 168338.3436 | F130: -0.4835783313 | G130: 4.642612528 | H130: 169513.5406 | I130: 0.4744649294 | J130: 5.448389528 | K130: 179269.6436 | L130: 0.1227946925 | M130: 6.112792239 | N130: 190874.8143 | O130: 0.1340583433 | P130: 6.229133864 | Q130: 265782.6325 | R130: -0.202883655 | S130: 9.846917464 | T130: 523617.0294 | U130: 0.04765715618 | V130: 15.91788158 | W130: 316865.5489 | X130: 0.3784991785 | Y130: 10.61178806 | Z130: 243507.2256 | AA130: -0.3934473364 | AB130: 6.812125371 | AC130: 163986.9802 | AD130: -0.3410101303 | AE130: 4.539817636 | AF130: 162576.1433 | AG130: -0.697108939 | AH130: 4.259483268 | AI130: 258087.0833 | AJ130: 0.005232000125 | AK130: 9.521520234
A131: 2014-12-01 | B131: 150209.8086 | C131: 1.118064709 | D131: 4.146765003 | E131: 168868.0347 | F131: 0.3146586482 | G131: 4.857124896 | H131: 169550.6369 | I131: 0.02188397824 | J131: 4.736882281 | K131: 179218.6088 | L131: -0.02846816837 | M131: 6.276604508 | N131: 191362.7988 | O131: 0.255656793 | P131: 5.7238147 | Q131: 267891.3925 | R131: 0.7934152781 | S131: 10.26381458 | T131: 519365.2246 | U131: -0.8120066016 | V131: 13.29507712 | W131: 317687.6515 | X131: 0.2594483982 | Y131: 9.185428998 | Z131: 245090.9583 | AA131: 0.6503842742 | AB131: 6.595683478 | AC131: 164296.86 | AD131: 0.1889660776 | AE131: 4.212326823 | AF131: 163218.0047 | AG131: 0.3948066218 | AH131: 4.075989562 | AI131: 258355.1462 | AJ131: 0.1038653059 | AK131: 8.630571844
A132: 2015-01-01 | B132: 151229.1977 | C132: 0.6786435473 | D132: 3.175480756 | E132: 170322.2849 | F132: 0.8611755075 | G132: 4.652145834 | H132: 169778.0442 | I132: 0.1341235263 | J132: 4.279598445 | K132: 180847.4019 | L132: 0.9088303335 | M132: 5.00753314 | N132: 192515.1678 | O132: 0.602190724 | P132: 5.705072491 | Q132: 271201.5366 | R132: 1.235629119 | S132: 10.2558874 | T132: 521809.9283 | U132: 0.4707099455 | V132: 10.84390366 | W132: 320105.1011 | X132: 0.7609517067 | Y132: 8.791162238 | Z132: 243946.3045 | AA132: -0.4670322485 | AB132: 5.547741939 | AC132: 164635.0679 | AD132: 0.2058517041 | AE132: 3.87924256 | AF132: 164242.2382 | AG132: 0.6275248128 | AH132: 3.562356194 | AI132: 259818.5821 | AJ132: 0.5664434946 | AK132: 7.731421614
A133: 2015-02-01 | B133: 154451.29 | C133: 2.130601946 | D133: 4.227336205 | E133: 171160.4948 | F133: 0.4921316967 | G133: 4.530961566 | H133: 169464.8529 | I133: -0.1844710448 | J133: 3.886045589 | K133: 182891.5251 | L133: 1.130302814 | M133: 5.345842566 | N133: 192892.5291 | O133: 0.1960163815 | P133: 5.015590061 | Q133: 274899.7031 | R133: 1.363623005 | S133: 10.39853782 | T133: 520298.9785 | U133: -0.2895594189 | V133: 9.497669346 | W133: 321295.0738 | X133: 0.3717443749 | Y133: 7.753871501 | Z133: 246466.7377 | AA133: 1.033191778 | AB133: 5.565460548 | AC133: 165983.3793 | AD133: 0.8189697629 | AE133: 3.68495776 | AF133: 168493.0083 | AG133: 2.588110213 | AH133: 7.204047322 | AI133: 261058.5967 | AJ133: 0.4772617069 | AK133: 7.186315395
A134: 2015-03-01 | B134: 155116.0907 | C134: 0.430427465 | D134: 2.80066043 | E134: 171632.0307 | F134: 0.2754934266 | G134: 4.147255721 | H134: 169549.2547 | I134: 0.04980491431 | J134: 3.281252538 | K134: 183811.9693 | L134: 0.5032732608 | M134: 5.02841275 | N134: 193146.5729 | O134: 0.1317022893 | P134: 4.79319988 | Q134: 275826.0477 | R134: 0.3369754606 | S134: 9.494679519 | T134: 518592.2486 | U134: -0.3280286815 | V134: 7.578228801 | W134: 323470.4582 | X134: 0.6770674609 | Y134: 7.261194415 | Z134: 247816.2501 | AA134: 0.5475434168 | AB134: 5.004398647 | AC134: 166021.8372 | AD134: 0.02316976172 | AE134: 3.777763011 | AF134: 184247.2226 | AG134: 9.350070059 | AH134: 16.58468055 | AI134: 261701.1 | AJ134: 0.2461145799 | AK134: 6.343203479
A135: 2015-04-01 | B135: 154487.2291 | C135: -0.4054135597 | D135: 3.03824946 | E135: 171353.1391 | F135: -0.162493917 | G135: 4.339897257 | H135: 169209.6036 | I135: -0.2003259292 | J135: 2.980895347 | K135: 184122.9562 | L135: 0.1691875348 | M135: 5.568161535 | N135: 192549.7161 | O135: -0.309017578 | P135: 4.350405742 | Q135: 276919.5926 | R135: 0.3964618209 | S135: 8.94185085 | T135: 522003.6876 | U135: 0.6578268399 | V135: 6.991030934 | W135: 324293.0881 | X135: 0.2543137654 | Y135: 6.840806012 | Z135: 249700.5803 | AA135: 0.7603739657 | AB135: 4.818718121 | AC135: 164515.2359 | AD135: -0.9074718102 | AE135: 3.048794751 | AF135: 181443.8303 | AG135: -1.521538443 | AH135: 14.65490503 | AI135: 262401.6633 | AJ135: 0.267695993 | AK135: 6.021785569
A136: 2015-05-01 | B136: 151914.5853 | C136: -1.665279235 | D136: 0.5251768657 | E136: 170929.3217 | F136: -0.2473356943 | G136: 3.328396317 | H136: 170612.9674 | I136: 0.8293641991 | J136: 3.554021255 | K136: 185060.9465 | L136: 0.509436902 | M136: 5.913983643 | N136: 193858.4144 | O136: 0.6796677329 | P136: 4.906537235 | Q136: 277153.278 | R136: 0.08438744213 | S136: 8.234762791 | T136: 526015.2795 | U136: 0.768498758 | V136: 5.00254949 | W136: 326613.0393 | X136: 0.7153871881 | Y136: 6.590204875 | Z136: 250369.3221 | AA136: 0.2678174813 | AB136: 4.950388026 | AC136: 163904.3936 | AD136: -0.3712982947 | AE136: 3.319766061 | AF136: 178013.3391 | AG136: -1.890662909 | AH136: 10.41335128 | AI136: 263522.5721 | AJ136: 0.4271728892 | AK136: 5.400387212
A137: 2015-06-01 | B137: 151248.0268 | C137: -0.438771937 | D137: 1.047067163 | E137: 171409.4518 | F137: 0.2808939732 | G137: 3.69224045 | H137: 171809.7423 | I137: 0.7014560005 | J137: 4.340430293 | K137: 186555.3827 | L137: 0.8075373076 | M137: 6.45603826 | N137: 195370.2527 | O137: 0.7798672857 | P137: 5.368258824 | Q137: 278741.2883 | R137: 0.5729718488 | S137: 7.700500745 | T137: 532839.7287 | U137: 1.297386121 | V137: 4.061741519 | W137: 327659.8038 | X137: 0.3204907382 | Y137: 5.995557979 | Z137: 250067.0569 | AA137: -0.1207277271 | AB137: 5.08717352 | AC137: 163479.7193 | AD137: -0.259098789 | AE137: 2.1517123 | AF137: 161596.387 | AG137: -9.222315687 | AH137: -0.5033697459 | AI137: 265038.0572 | AJ137: 0.5750873804 | AK137: 5.118782716
A138: 2015-07-01 | B138: 150626.5164 | C138: -0.4109212671 | D138: 1.141728959 | E138: 171999.5211 | F138: 0.3442454706 | G138: 3.514919556 | H138: 172752.939 | I138: 0.5489774091 | J138: 4.72191916 | K138: 186502.3085 | L138: -0.02844957247 | M138: 5.447453035 | N138: 195846.4149 | O138: 0.2437229904 | P138: 4.502838087 | Q138: 280142.4937 | R138: 0.5026903109 | S138: 7.701373564 | T138: 534438.6151 | U138: 0.3000689103 | V138: 3.887410758 | W138: 329454.6285 | X138: 0.5477707801 | Y138: 5.394507506 | Z138: 252018.773 | AA138: 0.7804770958 | AB138: 5.389502816 | AC138: 164544.2139 | AD138: 0.651147826 | AE138: 2.792006431 | AF138: 162858.8347 | AG138: 0.7812350804 | AH138: -0.04255462262 | AI138: 266149.5581 | AJ138: 0.4193740935 | AK138: 4.89523116
A139: 2015-08-01 | B139: 151937.8646 | C139: 0.870595817 | D139: 2.238590629 | E139: 174268.7094 | F139: 1.319299178 | G139: 4.124723086 | H139: 174233.6248 | I139: 0.8571118033 | J139: 4.954909685 | K139: 187037.0906 | L139: 0.2867428926 | M139: 5.109287836 | N139: 196757.9053 | O139: 0.4654107862 | P139: 4.143911266 | Q139: 284712.9242 | R139: 1.63146635 | S139: 8.266454158 | T139: 543775.2716 | U139: 1.747002605 | V139: 5.201240401 | W139: 331245.1418 | X139: 0.5434779549 | Y139: 5.316013996 | Z139: 252481.7943 | AA139: 0.1837249195 | AB139: 4.270216968 | AC139: 165004.3258 | AD139: 0.2796281067 | AE139: 1.708690707 | AF139: 163463.2779 | AG139: 0.3711454807 | AH139: 0.09955527902 | AI139: 268751.2728 | AJ139: 0.977538593 | AK139: 5.144999116
A140: 2015-09-01 | B140: 151792.1377 | C140: -0.09591215876 | D140: 2.568554765 | E140: 174571.5021 | F140: 0.1737504832 | G140: 3.657309299 | H140: 175117.0851 | I140: 0.5070549448 | J140: 4.771899032 | K140: 188832.1203 | L140: 0.959718565 | M140: 5.223464567 | N140: 196834.4901 | O140: 0.03892335754 | P140: 4.018940148 | Q140: 286951.6289 | R140: 0.786302458 | S140: 8.448800307 | T140: 549523.5291 | U140: 1.057101671 | V140: 5.295038886 | W140: 334934.1225 | X140: 1.113670882 | Y140: 6.149511909 | Z140: 253330.4269 | AA140: 0.3361163297 | AB140: 3.981288582 | AC140: 166453.8012 | AD140: 0.8784468961 | AE140: 2.241476344 | AF140: 164297.4241 | AG140: 0.510295794 | AH140: 0.6367699934 | AI140: 270772.8042 | AJ140: 0.7521941969 | AK140: 5.313488494
A141: 2015-10-01 | B141: 152613.1768 | C141: =B141/B140*100-100 -> 0.5408970023 | D141: 2.078663415 | E141: 175439.4348 | F141: =E141/E140*100-100 -> 0.4971788909 | G141: 3.714367121 | H141: 176565.1994 | I141: =H141/H140*100-100 -> 0.8269406456 | J141: 4.654140744 | K141: 191147.6025 | L141: =K141/K140*100-100 -> 1.226212048 | M141: 6.756681044 | N141: 198505.7288 | O141: =N141/N140*100-100 -> 0.8490578692 | P141: 4.137281269 | Q141: 289548.5948 | R141: =Q141/Q140*100-100 -> 0.9050186916 | S141: 8.720854073 | T141: 557640.7379 | U141: =T141/T140*100-100 -> 1.477135799 | V141: 6.548576969 | W141: 339071.974 | X141: =W141/W140*100-100 -> 1.235422521 | Y141: 7.413178832 | Z141: 255227.4291 | AA141: 0.7488252766 | AB141: 4.400698155 | AC141: 167554.8756 | AD141: =AC141/AC140*100-100 -> 0.6614895208 | AE141: 1.827289171 | AF141: 165187.3402 | AG141: 0.5416494867 | AH141: 0.8978323699 | AI141: 273642.2079 | AJ141: 1.059708967 | AK141: 6.032631092
A142: 2015-11-01 | B142: 153040.0989 | C142: 0.2797413062 | D142: 3.023356297 | E142: 173984.8215 | F142: -0.8291255785 | G142: 3.354243501 | H142: 176484.454 | I142: -0.04573120939 | J142: 4.112304766 | K142: 191287.0042 | L142: 0.07292885968 | M142: 6.703511226 | N142: 198361.0783 | O142: -0.07286969403 | P142: 3.922080531 | Q142: 288496.3978 | R142: -0.3633921909 | S142: 8.545993058 | T142: 561155.5978 | U142: 0.630309035 | V142: 7.169088537 | W142: 340683.6274 | X142: 0.4753130499 | Y142: 7.516777568 | Z142: 257035.5016 | AA142: 0.7084162022 | AB142: 5.555595294 | AC142: 168134.9077 | AD142: 0.3461743545 | AE142: 2.529424858 | AF142: 166147.5834 | AG142: 0.5813055053 | AH142: 2.196779912 | AI142: 274283.8611 | AJ142: 0.2344861646 | AK142: 6.275702597
A143: 2015-12-01 | B143: 154556.9401 | C143: 0.9911396778 | D143: 2.894039713 | E143: 174564.4364 | F143: 0.3331410861 | G143: 3.373285966 | H143: 176890.224 | I143: 0.2299182692 | J143: 4.328846673 | K143: 190407.7287 | L143: -0.4596629816 | M143: 6.2432802 | N143: 200537.7888 | O143: 1.09734762 | P143: 4.794552616 | Q143: 291495.0471 | R143: 1.039406133 | S143: 8.810904427 | T143: 566749.223 | U143: 0.9968046578 | V143: 9.123444577 | W143: 343584.8964 | X143: 0.8516021204 | Y143: 8.151794627 | Z143: 259649.8085 | AA143: 1.017099555 | AB143: 5.940182498 | AC143: 168799.4693 | AD143: 0.3952549786 | AE143: 2.740532759 | AF143: 166574.152 | AG143: 0.2567407892 | AH143: 2.056235954 | AI143: 276419.9263 | AJ143: 0.7787790459 | AK143: 6.992227695
A144: 2016-01-01 | B144: 156335.6651 | C144: 1.15085418 | D144: 3.376641166 | E144: 174902.4734 | F144: 0.1936459563 | G144: 2.689130513 | H144: 178115.669 | I144: 0.6927714458 | J144: 4.910896938 | K144: 191228.5609 | L144: 0.4310918673 | M144: 5.740286542 | N144: 200429.8941 | O144: -0.05380268394 | P144: 4.111222212 | Q144: 295568.8228 | R144: 1.397545438 | S144: 8.984936646 | T144: 573772.7502 | U144: 1.239265433 | V144: 9.95818957 | W144: 346499.1097 | X144: 0.8481785435 | Y144: 8.245419576 | Z144: 260390.5477 | AA144: 0.2852839164 | AB144: 6.740927352 | AC144: 170201.111 | AD144: 0.8303590987 | AE144: 3.380836906 | AF144: 166418.9738 | AG144: -0.0931586228 | AH144: 1.325320244 | AI144: 278666.8943 | AJ144: 0.8128820832 | AK144: 7.254412701
A145: 2016-02-01 | B145: 158474.7214 | C145: 1.368245901 | D145: 2.604984035 | E145: 178064.4755 | F145: 1.807865855 | G145: 4.033629773 | H145: 178922.7705 | I145: 0.4531333911 | J145: 5.581049709 | K145: 193877.3484 | L145: 1.38514221 | M145: 6.006742689 | N145: 202777.1231 | O145: 1.171097238 | P145: 5.124404805 | Q145: 303358.2108 | R145: 2.635388911 | S145: 10.3523239 | T145: 586147.0154 | U145: 2.15664917 | V145: 12.65580745 | W145: 355846.4956 | X145: 2.697665175 | Y145: 10.75379755 | Z145: 266044.1931 | AA145: 2.17121759 | AB145: 7.943244417 | AC145: 172900.7376 | AD145: 1.586139219 | AE145: 4.167500573 | AF145: 164765.2698 | AG145: -0.9936991591 | AH145: -2.212399487 | AI145: 284429.3261 | AJ145: 2.067856596 | AK145: 8.952292577
A146: 2016-03-01 | B146: 157969.631 | C146: -0.3187198582 | D146: 1.839615899 | E146: 179403.8432 | F146: 0.7521813085 | G146: 4.528183017 | H146: 179134.0633 | I146: 0.118091621 | J146: 5.65311164 | K146: 194310.5038 | L146: 0.2234172023 | M146: 5.711561963 | N146: 201748.059 | O146: -0.5074853024 | P146: 4.453346452 | Q146: 304826.191 | R146: 0.4839098379 | S146: 10.51392485 | T146: 589504.0462 | U146: 0.5727284533 | V146: 13.67390232 | W146: 356009.7645 | X146: 0.04588184903 | Y146: 10.05943681 | Z146: 265074.1035 | AA146: -0.3646347212 | AB146: 6.963971683 | AC146: 171820.6821 | AD146: -0.6246679457 | AE146: 3.492820548 | AF146: 166543.0764 | AG146: 1.07899353 | AH146: -9.608908031 | AI146: 284960.1081 | AJ146: 0.1866129698 | AK146: 8.887623369
A147: 2016-04-01 | B147: 156922.0235 | C147: -0.6631701669 | D147: 1.576049024 | E147: 180017.0879 | F147: 0.3418236137 | G147: 5.056194956 | H147: 177750.2021 | I147: -0.7725282239 | J147: 5.04734861 | K147: 193872.3481 | L147: -0.2254925254 | M147: 5.295044202 | N147: 202273.0055 | O147: 0.2601990264 | P147: 5.049755252 | Q147: 306420.8072 | R147: 0.5231230807 | S147: 10.65335041 | T147: 588116.9696 | U147: -0.2352955197 | V147: 12.6652902 | W147: 355878.9397 | X147: -0.03674752322 | Y147: 9.739908995 | Z147: 266058.191 | AA147: 0.3712499214 | AB147: 6.550890115 | AC147: 170789.1022 | AD147: -0.6003816515 | AE147: 3.813547319 | AF147: 167274.3142 | AG147: 0.4390682472 | AH147: -7.8093127 | AI147: 284944.646 | AJ147: -0.00542606541 | AK147: 8.591021243
A148: 2016-05-01 | B148: 154743.9383 | C148: -1.388004813 | D148: 1.86246302 | E148: 178548.4577 | F148: -0.8158282342 | G148: 4.457477483 | H148: 178126.4829 | I148: 0.2116907406 | J148: 4.403836082 | K148: 193632.6305 | L148: -0.1236471679 | M148: 4.631816776 | N148: 202914.4135 | O148: 0.3171001771 | P148: 4.67145014 | Q148: 305106.7673 | R148: -0.4288350706 | S148: 10.08593133 | T148: 582349.3315 | U148: -0.9806957477 | V148: 10.70958471 | W148: 352895.8521 | X148: -0.8382310177 | Y148: 8.047080071 | Z148: 262775.3237 | AA148: -1.233890708 | AB148: 4.95508053 | AC148: 169242.7401 | AD148: -0.9054219993 | AE148: 3.25698806 | AF148: 168783.9473 | AG148: 0.9024894581 | AH148: -5.184663058 | AI148: 282948.0081 | AJ148: -0.7007107928 | AK148: 7.37145051
A149: 2016-06-01 | B149: 155480.0049 | C149: 0.4756674855 | D149: 2.798038581 | E149: 178999.0502 | F149: 0.2523642913 | G149: 4.427759573 | H149: 178863.1219 | I149: 0.4135482696 | J149: 4.105343163 | K149: 194687.1376 | L149: 0.5445916456 | M149: 4.358895891 | N149: 204755.1488 | O149: 0.9071486033 | P149: 4.803646386 | Q149: 307024.2721 | R149: 0.6284701066 | S149: 10.14667904 | T149: 577859.6501 | U149: -0.7709601571 | V149: 8.449054935 | W149: 355668.6439 | X149: 0.785725249 | Y149: 8.548146504 | Z149: 264734.3844 | AA149: 0.7455268942 | AB149: 5.865357722 | AC149: 170146.7651 | AD149: 0.5341588006 | AE149: 4.07820973 | AF149: 167415.9594 | AG149: -0.8104964389 | AH149: 3.601301051 | AI149: 283814.0977 | AJ149: 0.3060949518 | AK149: 7.084280914
A150: 2016-07-01 | B150: 154752.0862 | C150: =B150/B149*100-100 -> -0.4681751503 | D150: =B150/B138*100-100 -> 2.738939863 | E150: 178345.5181 | F150: =E150/E149*100-100 -> -0.3651036793 | G150: =E150/E138*100-100 -> 3.689543424 | H150: 178770.3365 | I150: =H150/H149*100-100 -> -0.05187506706 | J150: =H150/H138*100-100 -> 3.483238843 | K150: 196456.0456 | L150: =K150/K149*100-100 -> 0.9085900701 | M150: =K150/K138*100-100 -> 5.337058399 | N150: 205829.437 | O150: =N150/N149*100-100 -> 0.5246697026 | P150: =N150/N138*100-100 -> 5.097372906 | Q150: 307200.9166 | R150: =Q150/Q149*100-100 -> 0.05753436846 | S150: =Q150/Q138*100-100 -> 9.658807039 | T150: 576186.5934 | U150: =T150/T149*100-100 -> -0.289526483 | V150: =T150/T138*100-100 -> 7.811557235 | W150: 357686.4877 | X150: =W150/W149*100-100 -> 0.5673381169 | Y150: =W150/W138*100-100 -> 8.569270773 | Z150: 265428.8551 | AA150: =Z150/Z149*100-100 -> 0.2623273683 | AB150: =Z150/Z138*100-100 -> 5.321064742 | AC150: 169759.767 | AD150: =AC150/AC149*100-100 -> -0.2274495812 | AE150: =AC150/AC138*100-100 -> 3.169697038 | AF150: 167425.0912 | AG150: 0.005454589647 | AH150: 2.803812628 | AI150: 284190.9627 | AJ150: 0.13278587 | AK150: 6.778671621
A151: 2016-08-01 | B151: 154138.3869 | C151: =B151/B150*100-100 -> -0.3965692904 | D151: =B151/B139*100-100 -> 1.448304087 | E151: 179231.8625 | F151: =E151/E150*100-100 -> 0.4969815576 | G151: =E151/E139*100-100 -> 2.847988662 | H151: 178482.241 | I151: =H151/H150*100-100 -> -0.1611539846 | J151: =H151/H139*100-100 -> 2.438459354 | K151: 197375.0812 | L151: =K151/K150*100-100 -> 0.4678072395 | M151: =K151/K139*100-100 -> 5.527240921 | N151: 206200.9152 | O151: =N151/N150*100-100 -> 0.1804786437 | P151: =N151/N139*100-100 -> 4.799303954 | Q151: 308818.8508 | R151: =Q151/Q150*100-100 -> 0.5266697101 | S151: =Q151/Q139*100-100 -> 8.466748262 | T151: 577217.1268 | U151: =T151/T150*100-100 -> 0.1788541108 | V151: =T151/T139*100-100 -> 6.149940413 | W151: 359276.6971 | X151: =W151/W150*100-100 -> 0.4445819024 | Y151: =W151/W139*100-100 -> 8.462480432 | Z151: 266515.1438 | AA151: =Z151/Z150*100-100 -> 0.4092579325 | AB151: =Z151/Z139*100-100 -> 5.558162904 | AC151: 169229.1702 | AD151: =AC151/AC150*100-100 -> -0.3125574899 | AE151: =AC151/AC139*100-100 -> 2.560444593 | AF151: 167831.7572 | AG151: 0.2428942777 | AH151: 2.672453037 | AI151: 285049.3671 | AJ151: 0.3020519628 | AK151: 6.064378462
A152: 2016-09-01 | B152: 154220.3026 | C152: =B152/B151*100-100 -> 0.05314426242 | D152: =B152/B140*100-100 -> 1.599664471 | E152: 179223.3965 | F152: =E152/E151*100-100 -> -0.004723437132 | G152: =E152/E140*100-100 -> 2.664750202 | H152: 179128.8246 | I152: =H152/H151*100-100 -> 0.3622677763 | J152: =H152/H140*100-100 -> 2.290889867 | K152: 198804.3977 | L152: =K152/K151*100-100 -> 0.724162584 | M152: =K152/K140*100-100 -> 5.281028143 | N152: 206494.2573 | O152: =N152/N151*100-100 -> 0.1422603231 | P152: =N152/N140*100-100 -> 4.907558239 | Q152: 311182.7485 | R152: =Q152/Q151*100-100 -> 0.7654641909 | S152: =Q152/Q140*100-100 -> 8.444322009 | T152: 586077.1859 | U152: =T152/T151*100-100 -> 1.534961234 | V152: =T152/T140*100-100 -> 6.651882021 | W152: 360485.0976 | X152: =W152/W151*100-100 -> 0.3363425932 | Y152: =W152/W140*100-100 -> 7.628656938 | Z152: 266972.7169 | AA152: =Z152/Z151*100-100 -> 0.1716874775 | AB152: =Z152/Z140*100-100 -> 5.385176265 | AC152: 170762.1528 | AD152: =AC152/AC151*100-100 -> 0.9058619277 | AE152: =AC152/AC140*100-100 -> 2.58831673 | AF152: 168143.3231 | AG152: 0.1856417801 | AH152: 2.340815131 | AI152: 286912.583 | AJ152: 0.6536467482 | AK152: 5.960635075
A153: 2016-10-01 | B153: 156122.3856 | C153: =B153/B152*100-100 -> 1.233354435 | D153: =B153/B141*100-100 -> 2.299413975 | E153: 182239.7129 | F153: =E153/E152*100-100 -> 1.682992506 | G153: =E153/E141*100-100 -> 3.876140013 | H153: 181507.6286 | I153: =H153/H152*100-100 -> 1.327985049 | J153: =H153/H141*100-100 -> 2.799209147 | K153: 200005.334 | L153: =K153/K152*100-100 -> 0.6040793344 | M153: =K153/K141*100-100 -> 4.633974674 | N153: 208802.0238 | O153: =N153/N152*100-100 -> 1.117593546 | P153: =N153/N141*100-100 -> 5.186900681 | Q153: 313844.8824 | R153: =Q153/Q152*100-100 -> 0.8554889144 | S153: =Q153/Q141*100-100 -> 8.391091524 | T153: 593690.4493 | U153: =T153/T152*100-100 -> 1.299020599 | V153: =T153/T141*100-100 -> 6.464683978 | W153: 361957.8119 | X153: =W153/W152*100-100 -> 0.4085367908 | Y153: =W153/W141*100-100 -> 6.749551598 | Z153: 268949.7609 | AA153: =Z153/Z152*100-100 -> 0.7405415898 | AB153: =Z153/Z141*100-100 -> 5.376511371 | AC153: 172992.0452 | AD153: =AC153/AC152*100-100 -> 1.305846999 | AE153: =AC153/AC141*100-100 -> 3.245008274 | AF153: 169561.1617 | AG153: 0.8432321709 | AH153: 2.647794556 | AI153: 289670.7119 | AJ153: 0.9613133225 | AK153: 5.857467699
A154: 2016-11-01 | B154: 157245.9846 | C154: 0.7196911903 | D154: 2.748224619 | E154: 182853.75 | F154: 0.3369392472 | G154: 5.097530001 | H154: 183047.2037 | I154: 0.8482150665 | J154: 3.718599297 | K154: 201075.6481 | L154: 0.5351427727 | M154: 5.117255012 | N154: 209641.2149 | O154: 0.4019075505 | P154: 5.686668329 | Q154: 315284.3241 | R154: 0.4586475045 | S154: 9.285359021 | T154: 600853.4496 | U154: 1.206521054 | V154: 7.074303794 | W154: 363373.568 | X154: 0.3911384403 | Y154: 6.660120657 | Z154: 269703.7448 | AA154: 0.2803437947 | AB154: 4.928596702 | AC154: 174285.465 | AD154: 0.7476758747 | AE154: 3.658108505 | AF154: 169741.617 | AG154: 0.1064249245 | AH154: 2.163157336 | AI154: 291498.9245 | AJ154: 0.6311347865 | AK154: 6.276367623
A155: 2016-12-01 | B155: 158128.9643 | C155: 0.5615276319 | D155: 2.311138008 | E155: 184160.9785 | F155: 0.7149038587 | G155: 5.497421044 | H155: 183569.6086 | I155: 0.2853935689 | J155: 3.776005514 | K155: 201876.5261 | L155: 0.398296878 | M155: 6.023283543 | N155: 211620.0113 | O155: 0.9438966714 | P155: 5.526251464 | Q155: 315854.1181 | R155: 0.1807238487 | S155: 8.356598596 | T155: 604079.8167 | U155: 0.5369640703 | V155: 6.586792225 | W155: 367012.4008 | X155: 1.001402716 | Y155: 6.818548973 | Z155: 274330.436 | AA155: 1.715471598 | AB155: 5.654010506 | AC155: 175413.319 | AD155: 0.6471302665 | AE155: 3.918169759 | AF155: 169554.4526 | AG155: -0.110264305 | AH155: 1.789173513 | AI155: 293656.6606 | AJ155: 0.7402209564 | AK155: 6.235706149
A156: 2017-01-01 | B156: 158920.5027 | C156: 0.500565131 | D156: 1.653389607 | E156: 183780.1104 | F156: -0.2068125968 | G156: 5.07576412 | H156: 183797.9198 | I156: 0.1243731003 | J156: 3.19020269 | K156: 203649.8919 | L156: 0.878440845 | M156: 6.495541751 | N156: 213677.9581 | O156: 0.9724726877 | P156: 6.609824385 | Q156: 318784.483 | R156: 0.9277589648 | S156: 7.854570031 | T156: 609468.5722 | U156: 0.8920601782 | V156: 6.221247353 | W156: 371373.3765 | X156: 1.188236608 | Y156: 7.178739009 | Z156: 276665.524 | AA156: 0.8511953726 | AB156: 6.250217772 | AC156: 176088.895 | AD156: 0.3851337878 | AE156: 3.459309949 | AF156: 169274.726 | AG156: -0.1649774263 | AH156: 1.716001581 | AI156: 296047.7973 | AJ156: 0.8142627193 | AK156: 6.237161051
A157: 2017-02-01 | B157: 159529.926 | C157: 0.3834768211 | D157: 0.665850421 | E157: 185688.1328 | F157: 1.038209388 | G157: 4.281402695 | H157: 183405.7434 | I157: -0.2133737018 | J157: 2.505535127 | K157: 204825.4759 | L157: 0.577257355 | M157: 5.646934811 | N157: 215089.8679 | O157: 0.6607652782 | P157: 6.072058145 | Q157: 321203.1734 | R157: 0.7587227651 | S157: 5.882472274 | T157: 611827.1537 | U157: 0.3869898487 | V157: 4.38117701 | W157: 374216.6562 | X157: 0.7656121396 | Y157: 5.162383451 | Z157: 279146.2847 | AA157: 0.8966642256 | AB157: 4.924780181 | AC157: 177877.7845 | AD157: 1.015901406 | AE157: 2.878557387 | AF157: 169544.3805 | AG157: 0.1592998927 | AH157: 2.900557032 | AI157: 297923.9805 | AJ157: 0.6337433298 | AK157: 4.744466611
A158: 2017-03-01 | B158: 158872.5301 | C158: -0.4120831549 | D158: 0.5715649579 | E158: 186293.3997 | F158: 0.3259588922 | G158: 3.840250247 | H158: 184706.5742 | I158: 0.7092639617 | J158: 3.110804726 | K158: 206182.8543 | L158: 0.6626999605 | M158: 6.109989037 | N158: 216401.3568 | O158: 0.6097399529 | P158: 7.263166668 | Q158: 324485.2307 | R158: 1.021801002 | S158: 6.449261986 | T158: 617292.8083 | U158: 0.8933331241 | V158: 4.713922212 | W158: 375324.944 | X158: 0.2961620896 | Y158: 5.425463411 | Z158: 279207.5316 | AA158: 0.02194075686 | AB158: 5.331878072 | AC158: 177523.3941 | AD158: -0.1992325515 | AE158: 3.318990427 | AF158: 170112.9761 | AG158: 0.3353668498 | AH158: 2.143529316 | AI158: 299530.4713 | AJ158: 0.5392284207 | AK158: 5.113123822
A159: 2017-04-01 | B159: 157709.0164 | C159: -0.7323567015 | D159: 0.5015184498 | E159: 186122.4953 | F159: -0.09173938433 | G159: 3.391571037 | H159: 185228.4089 | I159: 0.2825208837 | J159: 4.20714388 | K159: 206437.4071 | L159: 0.1234597532 | M159: 6.481099087 | N159: 215049.3916 | O159: -0.6247489391 | P159: 6.316406916 | Q159: 324914.7959 | R159: 0.1323835996 | S159: 6.035487243 | T159: 619326.8968 | U159: 0.329517601 | V159: 5.306755093 | W159: 374611.1451 | X159: -0.1901815756 | Y159: 5.263645386 | Z159: 278845.6603 | AA159: -0.1296065643 | AB159: 4.806267857 | AC159: 175269.2969 | AD159: -1.269746552 | AE159: 2.623232165 | AF159: 172146.2898 | AG159: 1.195272538 | AH159: 2.91256647 | AI159: 299402.9967 | AJ159: -0.04255813331 | AK159: 5.074091028
A160: 2017-05-01 | B160: 157597.439 | C160: -0.07074894975 | D160: 1.844014504 | E160: 185672.2017 | F160: -0.2419340356 | G160: 3.989809866 | H160: 185442.1488 | I160: 0.1153926186 | J160: 4.10700634 | K160: 206312.6714 | L160: -0.06042300298 | M160: 6.548504218 | N160: 215017.662 | O160: -0.01475455635 | P160: 5.964706131 | Q160: 326723.7538 | R160: 0.5567484014 | S160: 7.085056401 | T160: 617370.8612 | U160: -0.3158325006 | V160: 6.01383531 | W160: 374196.2824 | X160: -0.1107449084 | Y160: 6.035897037 | Z160: 278724.3877 | AA160: -0.04349090947 | AB160: 6.069467967 | AC160: 173638.1898 | AD160: -0.9306290905 | AE160: 2.597127475 | AF160: 173594.9024 | AG160: 0.8415009082 | AH160: 2.850362968 | AI160: 299171.5449 | AJ160: -0.07730442874 | AK160: 5.733751913
A161: 2017-06-01 | B161: 157382.6642 | C161: -0.1362806294 | D161: 1.223732457 | E161: 185460.4727 | F161: -0.1140337714 | G161: 3.609752347 | H161: 183541.6094 | I161: -1.02486915 | J161: 2.615680379 | K161: 207604.9233 | L161: 0.6263560273 | M161: 6.635151072 | N161: 215163.201 | O161: 0.06768701962 | P161: 5.083169974 | Q161: 327235.0321 | R161: 0.156486402 | S161: 6.582788985 | T161: 608996.0051 | U161: -1.356535698 | V161: 5.388220984 | W161: 372748.2588 | X161: -0.3869689988 | Y161: 4.802114314 | Z161: 278195.0294 | AA161: -0.1899218055 | AB161: 5.084585075 | AC161: 173717.3461 | AD161: 0.0455869083 | AE161: 2.09853005 | AF161: 174403.8871 | AG161: 0.4660187263 | AH161: 4.17399141 | AI161: 297864.1829 | AJ161: -0.43699412 | AK161: 4.950453594
A162: 2017-07-01 | B162: 157368.8663 | C162: -0.008767068803 | D162: 1.69094986 | E162: 187172.8584 | F162: 0.9233157572 | G162: 4.949572266 | H162: 183646.3737 | I162: 0.05707929546 | J162: 2.727542668 | K162: 207455.8857 | L162: -0.07178904248 | M162: 5.599135459 | N162: 215298.0738 | O162: 0.06268394168 | P162: 4.600234508 | Q162: 326326.5474 | R162: -0.2776245083 | S162: 6.225772714 | T162: 603190.3323 | U162: -0.9533186966 | V162: 4.68663089 | W162: 372724.4919 | X162: -0.006376103058 | Y162: 4.204241641 | Z162: 279957.7844 | AA162: 0.6336400153 | AB162: 5.473756526 | AC162: 175559.0262 | AD162: 1.060158983 | AE162: 3.416156403 | AF162: 174205.5591 | AG162: -0.1137176547 | AH162: 4.049851698 | AI162: 297601.7576 | AJ162: -0.08810232979 | AK162: 4.718937847
A163: 2017-08-01 | B163: 156568.1129 | C163: -0.5088385415 | D163: 1.576327635 | E163: 188541.6827 | F163: 0.7313155677 | G163: 5.194288612 | H163: 185763.2646 | I163: 1.152699527 | J163: 4.079410684 | K163: 208441.5545 | L163: 0.4751221087 | M163: 5.60682393 | N163: 216562.0818 | O163: 0.5870967513 | P163: 5.024791766 | Q163: 326517.4495 | R163: 0.05850030253 | S163: 5.731061636 | T163: 600328.4956 | U163: -0.474450019 | V163: 4.003929846 | W163: 372874.4799 | X163: 0.04024098128 | Y163: 3.784766163 | Z163: 280042.6284 | AA163: 0.03030599939 | AB163: 5.075690802 | AC163: 177225.6027 | AD163: 0.9492969894 | AE163: 4.725209348 | AF163: 174464.9435 | AG163: 0.1488955596 | AH163: 3.952283159 | AI163: 297917.9228 | AJ163: 0.1062376891 | AK163: 4.514500725
A164: 2017-09-01 | B164: 157553.537 | C164: 0.6293900597 | D164: 2.161346051 | E164: 189336.1251 | F164: 0.421361688 | G164: 5.642527 | H164: 188261.6298 | I164: 1.344918869 | J164: 5.098456476 | K164: 208766.735 | L164: 0.1560055925 | M164: 5.011125204 | N164: 218012.4854 | O164: 0.6697403334 | P164: 5.577989568 | Q164: 326177.1418 | R164: -0.104223413 | S164: 4.818516903 | T164: 609821.7218 | U164: 1.581338584 | V164: 4.051434927 | W164: 372676.0115 | X164: -0.05322659829 | Y164: 3.381808008 | Z164: 282346.7631 | AA164: 0.8227799938 | AB164: 5.758658192 | AC164: 179644.9753 | AD164: 1.365137158 | AE164: 5.201868422 | AF164: 175061.6033 | AG164: 0.3419941065 | AH164: 4.114513805 | AI164: 299836.6745 | AJ164: 0.6440538078 | AK164: 4.504539821
A165: 2017-10-01 | B165: 158099.5562 | C165: 0.34656106 | D165: 1.266423569 | E165: 190081.5876 | F165: 0.3937243869 | G165: 4.303054797 | H165: 188470.8691 | I165: 0.1111428546 | J165: 3.836334898 | K165: 209473.7603 | L165: 0.3386676438 | M165: 4.734086932 | N165: 218980.8196 | O165: 0.4441645677 | P165: 4.874854979 | Q165: 328758.6856 | R165: 0.7914545305 | S165: 4.751966344 | T165: 617643.1116 | U165: 1.282569895 | V165: 4.034537239 | W165: 371863.0577 | X165: -0.2181395597 | Y165: 2.736574682 | Z165: 283549.9616 | AA165: 0.4261421283 | AB165: 5.428597775 | AC165: 181080.7701 | AD165: 0.799240154 | AE165: 4.675778485 | AF165: 175014.4888 | AG165: -0.02691306815 | AH165: 3.216141682 | AI165: 301370.9214 | AJ165: 0.5116941994 | AK165: 4.039141363
A166: 2017-11-01 | B166: 158915.4308 | C166: 0.5160511512 | D166: 1.061678119 | E166: 190681.3058 | F166: 0.3155056918 | G166: 4.280774017 | H166: 188417.5224 | I166: -0.02830500112 | J166: 2.933843652 | K166: 210317.3926 | L166: 0.4027388812 | M166: 4.596153069 | N166: 219571.976 | O166: 0.269958076 | P166: 4.737027099 | Q166: 328263.4811 | R166: -0.1506285655 | S166: 4.116651536 | T166: 626405.1983 | U166: 1.418632623 | V166: 4.252575846 | W166: 371216.5542 | X166: -0.1738552675 | Y166: 2.158381037 | Z166: 285887.6176 | AA166: 0.8244247341 | AB166: 6.000611076 | AC166: 181603.116 | AD166: 0.2884601715 | AE166: 4.198658186 | AF166: 175552.5223 | AG166: 0.3074222595 | AH166: 3.42338282 | AI166: 302755.675 | AJ166: 0.4594848036 | AK166: 3.861678226
A167: 2017-12-01 | B167: 158681.3791 | C167: -0.1472806951 | D167: 0.3493444795 | E167: 192836.1743 | F167: 1.130089013 | G167: 4.710659045 | H167: 188916.8498 | I167: 0.2650111164 | J167: 2.912922917 | K167: 210978.0519 | L167: 0.3141249051 | M167: 4.508461695 | N167: 220072.5179 | O167: 0.2279625607 | P167: 3.994190605 | Q167: 329101.3764 | R167: 0.2552508512 | S167: 4.194106575 | T167: 633266.0567 | U167: 1.095274825 | V167: 4.831520464 | W167: 374150.229 | X167: 0.7902866334 | Y167: 1.944846605 | Z167: 289082.1407 | AA167: 1.117405203 | AB167: 5.377348928 | AC167: 181270.4516 | AD167: -0.1831820907 | AE167: 3.339046658 | AF167: 176969.248 | AG167: 0.8070095924 | AH167: 4.37310572 | AI167: 304929.5877 | AJ167: 0.7180419284 | AK167: 3.838811976
A168: 2018-01-01 | B168: 161962.7995 | C168: 2.067930382 | D168: 1.914351355 | E168: 193197.5378 | F168: 0.1873940408 | G168: 5.124290856 | H168: 190421.5368 | I168: 0.7964810784 | J168: 3.60374968 | K168: 215111.382 | L168: 1.959128002 | M168: 5.628036417 | N168: 222871.0888 | O168: 1.271658506 | P168: 4.302329904 | Q168: 330794.3492 | R168: 0.5144228747 | S168: 3.767393597 | T168: 637745.9083 | U168: 0.7074201348 | V168: 4.639670912 | W168: 378225.2646 | X168: 1.089144207 | Y168: 1.845013265 | Z168: 289222.5278 | AA168: 0.04856302755 | AB168: 4.538694826 | AC168: 182825.8342 | AD168: 0.8580453297 | AE168: 3.825874 | AF168: 178566.2814 | AG168: 0.9024355033 | AH168: 5.489038783 | AI168: 307385.6026 | AJ168: 0.8054367192 | AK168: 3.829721185
A169: 2018-02-01 | B169: 164328.2334 | C169: 1.460479716 | D169: 3.007778828 | E169: 194111.8321 | F169: 0.4732432285 | G169: 4.536476926 | H169: 190715.7497 | I169: 0.1545060955 | J169: 3.985701929 | K169: 216971.1513 | L169: 0.8645610933 | M169: 5.929767947 | N169: 224895.0212 | O169: 0.9081179683 | P169: 4.558630974 | Q169: 333812.554 | R169: 0.912411245 | S169: 3.925671238 | T169: 633901.2571 | U169: -0.6028499898 | V169: 3.607898617 | W169: 381605.0314 | X169: 0.8935856971 | Y169: 1.974357675 | Z169: 290337.3043 | AA169: 0.3854390446 | AB169: 4.009016134 | AC169: 186680.3744 | AD169: 2.10831264 | AE169: 4.948672981 | AF169: 181501.236 | AG169: 1.643621957 | AH169: 7.052345515 | AI169: 308740.0101 | AJ169: 0.4406216736 | AK169: 3.630466273
A170: 2018-03-01 | B170: 165920.7302 | C170: 0.9690950701 | D170: 4.436386893 | E170: 193566.5531 | F170: -0.2809096967 | G170: 3.904139045 | H170: 190360.2651 | I170: -0.1863949676 | J170: 3.060903964 | K170: 217325.9835 | L170: 0.1635388527 | M170: 5.404488768 | N170: 224451.8364 | O170: -0.1970630032 | P170: 3.720161333 | Q170: 335142.0754 | R170: 0.3982838079 | S170: 3.284231051 | T170: 628069.1947 | U170: -0.9200269559 | V170: 1.745749538 | W170: 381474.5162 | X170: -0.03420166592 | Y170: 1.638466141 | Z170: 288062.0771 | AA170: -0.7836496447 | AB170: 3.171313281 | AC170: 184397.9804 | AD170: -1.222621298 | AE170: 3.872495978 | AF170: 182945.2736 | AG170: 0.7956076171 | AH170: 7.543397227 | AI170: 307771.7527 | AJ170: -0.313615802 | AK170: 2.751400003
A171: 2018-04-01 | B171: 163337.0269 | C171: -1.557191369 | D171: 3.568604103 | E171: 192621.4189 | F171: -0.4882734877 | G171: 3.491745372 | H171: 190101.1582 | I171: -0.1361139387 | J171: 2.63067063 | K171: 216172.0689 | L171: -0.5309602531 | M171: 4.715551267 | N171: 224830.395 | O171: 0.168659204 | P171: 4.548259071 | Q171: 334385.6966 | R171: -0.225688995 | S171: 2.914887476 | T171: 615600.1774 | U171: -1.98529357 | V171: -0.601737057 | W171: 381000.5684 | X171: -0.1242409965 | Y171: 1.705614838 | Z171: 287427.7858 | AA171: -0.2201925835 | AB171: 3.07773321 | AC171: 181693.8132 | AD171: -1.466484144 | AE171: 3.665511553 | AF171: 183556.1307 | AG171: 0.3339015313 | AH171: 6.627991181 | AI171: 305694.1728 | AJ171: -0.6750391627 | AK171: 2.101240195
A172: 2018-05-01 | B172: 161648.2354 | C172: -1.03393056 | D172: 2.570344096 | E172: 190723.7694 | F172: -0.9851705661 | G172: 2.720691472 | H172: 189361.9755 | I172: -0.3888365468 | J172: 2.113773318 | K172: 215689.8123 | L172: -0.2230892165 | M172: 4.54511146 | N172: 224076.9954 | O172: -0.3350968647 | P172: 4.213297342 | Q172: 333621.33 | R172: -0.2285883052 | S172: 2.111133973 | T172: 614778.2039 | U172: -0.1335239144 | V172: -0.4199513508 | W172: 378503.1778 | X172: -0.6554821224 | Y172: 1.150972267 | Z172: 286538.7275 | AA172: -0.309315339 | AB172: 2.803608194 | AC172: 177307.0743 | AD172: -2.414357898 | AE172: 2.112947885 | AF172: 182978.2989 | AG172: -0.3147984473 | AH172: 5.405341018 | AI172: 304412.6244 | AJ172: -0.4192256514 | AK172: 1.751864303
A173: 2018-06-01 | B173: 161310.7063 | C173: -0.2088047156 | D173: 2.495854376 | E173: 190667.716 | F173: -0.02938983673 | G173: 2.807737569 | H173: 190168.9743 | I173: 0.426167295 | J173: 3.610824196 | K173: 216728.7447 | L173: 0.4816789261 | M173: 4.394800107 | N173: 225545.0591 | O173: 0.6551603703 | P173: 4.825108575 | Q173: 334475.6307 | R173: 0.2560689638 | S173: 2.212659981 | T173: 607575.8039 | U173: -1.171544455 | V173: -0.2332036825 | W173: 378100.6124 | X173: -0.1063572096 | Y173: 1.435916466 | Z173: 286090.1339 | AA173: -0.1565560256 | AB173: 2.837974689 | AC173: 179842.6828 | AD173: 1.430066151 | AE173: 3.526036269 | AF173: 181579.897 | AG173: -0.7642446502 | AH173: 4.114592839 | AI173: 304271.6971 | AJ173: -0.0462948505 | AK173: 2.151152962
A174: 2018-07-01 | B174: 159469.5191 | C174: -1.141391783 | D174: 1.334859213 | E174: 191222.0693 | F174: 0.2907431412 | G174: 2.163353672 | H174: 190365.7604 | I174: 0.1034796136 | J174: 3.658872522 | K174: 215336.313 | L174: -0.6424766966 | M174: 3.798603868 | N174: 224142.0343 | O174: -0.6220596365 | P174: 4.107775029 | Q174: 332281.7601 | R174: -0.6559134313 | S174: 1.824924362 | T174: 608439.4335 | U174: 0.1421435062 | V174: 0.8702230353 | W174: 375341.4853 | X174: -0.7297335748 | Y174: 0.702125398 | Z174: 286649.9858 | AA174: 0.1956907378 | AB174: 2.390432329 | AC174: 181707.9744 | AD174: 1.03717959 | AE174: 3.502496176 | AF174: 180671.9709 | AG174: -0.5000146603 | AH174: 3.711943401 | AI174: 303780.4389 | AJ174: -0.1614537786 | AK174: 2.076157538
A175: 2018-08-01 | B175: 159067.4178 | C175: -0.2521493251 | D175: 1.596305207 | E175: 192701.1451 | F175: 0.7734859198 | G175: 2.206123535 | H175: 190873.4463 | I175: 0.2666897367 | J175: 2.750910833 | K175: 215755.2334 | L175: 0.1945423829 | M175: 3.508743222 | N175: 225270.3014 | O175: 0.5033714947 | P175: 4.02111928 | Q175: 330712.8137 | R175: -0.4721734921 | S175: 1.284882098 | T175: 609844.1646 | U175: 0.2308744283 | V175: 1.585077003 | W175: 374709.0809 | X175: -0.1684877246 | Y175: 0.4920157051 | Z175: 287146.4743 | AA175: 0.1732037579 | AB175: 2.536701634 | AC175: 183373.1717 | AD175: 0.9164140175 | AE175: 3.468781531 | AF175: 180476.8092 | AG175: -0.1080199098 | AH175: 3.44588752 | AI175: 304056.1968 | AJ175: 0.09077540988 | AK175: 2.060390988
A176: 2018-09-01 | B176: 157948.9219 | C176: -0.7031584088 | D176: 0.2509527127 | E176: 192719.0298 | F176: 0.009281027567 | G176: 1.786719076 | H176: 190125.8823 | I176: -0.3916543052 | J176: 0.990245598 | K176: 215781.4755 | L176: 0.01216290858 | M176: 3.360085382 | N176: 225800.8834 | O176: 0.2355312744 | P176: 3.572455042 | Q176: 327951.0477 | R176: -0.8350949404 | S176: 0.5438474015 | T176: 614500.8497 | U176: 0.7635860734 | V176: 0.7672943979 | W176: 372984.2344 | X176: -0.4603161847 | Y176: 0.08270531201 | Z176: 287207.7419 | AA176: 0.02133671051 | AB176: 1.721634336 | AC176: 183925.1448 | AD176: 0.3010108472 | AE176: 2.382571263 | AF176: 182714.7137 | AG176: 1.239995618 | AH176: 4.371667043 | AI176: 303343.4936 | AJ176: -0.2343985136 | AK176: 1.169576439
A177: 2018-10-01 | B177: 159531.2246 | C177: 1.001781272 | D177: 0.9055486427 | E177: 193477.8445 | F177: 0.3937414874 | G177: 1.786736414 | H177: 189510.2669 | I177: -0.3237935777 | J177: 0.5514898724 | K177: 216892.5038 | L177: 0.5148858738 | M177: 3.54160993 | N177: 226980.053 | O177: 0.5222165166 | P177: 3.652937886 | Q177: 328137.9792 | R177: 0.05699980993 | S177: -0.1888030369 | T177: 622508.3199 | U177: 1.303085292 | V177: 0.7877054223 | W177: 373216.4915 | X177: 0.06226994844 | Y177: 0.363960262 | Z177: 287640.6555 | AA177: 0.1507318668 | AB177: 1.442671296 | AC177: 185892.8457 | AD177: 1.069837859 | AE177: 2.657419454 | AF177: 184569.4372 | AG177: 1.015092565 | AH177: 5.459518466 | AI177: 304789.1732 | AJ177: 0.4765816835 | AK177: 1.1342341

Sheet INTERACTIVE REGIONS CHARTS
C2: YOUR MOVE ACADATA SCOTLAND HPI NATIONAL AND REGIONAL FORMATTED DATA FROM 2000 | O2: =SERIES!$K$2 -> 21st December 2018
C3: A TRUE MEASURE OF HOUSE PRICE INFLATION
O4: =SERIES!$K$3 -> OCTOBER 2018
O5: © Acadata Limited
O6: Your Move Acadata Scotland HPI clb/cms
Q8: Select Region(s)
Q11: North East
Q12: North West
Q13: East Midlands
Q14: West Midlands
Q15: Wales
Q16: Yorks & Humber
Q17: South West
Q18: East of England
Q19: South East
Q20: Greater London
Q21: Scotland
D29: To change the date range, click on the start and end dates below and select from the drop down lists, then click Reset Dates.
D31: Start Date | E31: 2005-01-01 | G31: End Date | H31: 2018-10-01
E32: =MATCH(E31,dates)+ROW(dates)-1 -> 12 | H32: =MATCH(H31,dates)+ROW(dates)-1 -> 177
Q38: Select Region(s)
Q41: North East
Q42: North West
Q43: East Midlands
Q44: West Midlands
Q45: Wales
Q46: Yorks & Humber
Q47: South West
Q48: East of England
Q49: South East
Q50: Greater London
Q51: Scotland
D58: To change the date range, click on the start and end dates below and select from the drop down lists, then click Reset Dates.
D60: Start Date | E60: 2005-01-01 | G60: End Date | H60: 2018-10-01
E61: =MATCH(E60,dates)+ROW(dates)-1 -> 12 | H61: =MATCH(H60,dates)+ROW(dates)-1 -> 177
Q65: Select Region(s)
Q68: North East
Q69: North West
Q70: East Midlands
Q71: West Midlands
Q72: Wales
Q73: Yorks & Humber
Q74: South West
Q75: East of England
Q76: South East
Q77: Greater London
Q78: Scotland
D85: To change the date range, click on the start and end dates below and select from the drop down lists, then click Reset Dates.
D87: Start Date | E87: 2005-01-01 | G87: End Date | H87: 2018-10-01
E88: =MATCH(E87,dates)+ROW(dates)-1 -> 12 | H88: =MATCH(H87,dates)+ROW(dates)-1 -> 177
